Workbook

Sheet Instructivo
A1: CRITERIO DE PRIORIZACIÓN DE TRÁMITES ADMINISTRATIVOS
A2: Instructivo
A3: Consideraciones generales
A5: En las hojas “COSTO DE ADMINISTRACIÓN PÚBLICA”y “RESUMEN” para añadir más trámites y que apliquen las fórmulas, se deberá seleccionar la primera fila y copiarla una por cada trámite de la entidad
A7: Todas las hojas tienen columnas de color celeste, en las cuales NO deben ingresar valores ya que contienen fórmulas.
A8: Para la carga en GOB.EC. La institución debe recordar que el peso máximo del archivo es de 2 MB.
A9: Esquema de puntuación
A10: Para priorizar un trámite, se realizará un análisis de criterios básicos y adicionales basado en información que disponen las instituciones sujetas a esta norma técnica. Cada criterio será puntuado según los lineamientos presentes en esta norma.
A11: a) Demanda Anual
A12: Considerará el volumen o frecuencia de las solicitudes que ingresan al año a cada institución para la gestión de un trámite en particular.
A13: La identificación del volumen anual de los trámites se realizará a través de sus registros de transacciones y/o el número de visitas de consulta de información realizadas a través de páginas web institucionales.
A14: Para realizar el registro realice lo siguiente:
A15: 1.- Seleccione la hoja DEMANDA ANUAL
A16: 2.- Ingrese los trámites de la institución registrando el identificador y nombre en las columnas respectivas.
A17: 3.- Para cada trámite debe especificar en la columna DEMANDA ANUAL el volumen o frecuencia anual, de acuerdo a lo mencionado anteriormente.
A18: 4.- Una vez terminado el llenado solicitado presione el botón PUNTUACIÓN, se ordenara de menor a mayor.
A19: 5.- Usted visualizará el ordenamiento de los trámites ingresados de acuerdo al número de volumen o frecuencia anual.
A20: 6.- Así mismo, usted visualizará el puntaje obtenido en la columna PUNTUACIÓN de acuerdo al grupo obtenido por cada trámite de acuerdo al número de volumen o frecuencia anual cosiderando lo siguiente: ** Primer grupo (trámites con menor demanda no incluye los trámites con demanda 0 ) = 3 ** Segundo grupo (trámites con demanda intermedia) = 6 ** Tercer grupo (trámites con mayor demanda) = 10
A21: Cada vez que requiera actualizar el puntaje presionando el botón puntuación, debe verificar que la celda de la columna puntaje se encuentren vacías, es decir, se debe borrar cualquier valor de puntaje obtenido previamente.
A22: b) Volumen de quejas asociadas a un trámite:
A23: Considerará la cantidad de quejas recibidas en relación a un trámite durante un año. Estas quejas deberán estar documentadas en medios físicos y/o digitales.
A24: Para determinar la puntuación, se colocará en una tabla todos los trámites con sus correspondientes quejas ordenándose de menor a mayor. Se dividirá en 2 partes en los que cada grupo contenga la misma cantidad de trámites.
A25: Para realizar el registro realice lo siguiente:
A26: 1.- Seleccione la hoja VOLUMEN DE QUEJAS
A27: 2.- Ingrese los trámites de la institución registrando el identificador y nombre en las columnas respectivas. Si usted requiere de acuerdo al número de trámites copie filas adicionales que estén dentro del cuadro
A28: 3.- Para cada trámite debe especificar en la columna VOLUMEN QUEJAS el número de quejas anual, de acuerdo a lo mencionado anteriormente.
A29: 4.- Una vez terminado el llenado solicitado presione el botón PUNTUACIÓN.
A30: 5.- Usted visualizará el ordenamiento de los trámites ingresados de acuerdo al número de volumen o frecuencia anual.
A31: 6.- Así mismo, usted visualizará el puntaje obtenido en la columna PUNTUACIÓN de acuerdo al grupo obtenido por cada trámite de acuerdo al número de volumen o frecuencia anual cosiderando lo siguiente: La puntuación se basará en los siguientes grupos: ** Primer grupo (trámites con menor cantidad de quejas, no incluye los trámites con queja 0 ) = 4 ** Segundo grupo (trámites con mayor porcentaje de quejas) = 10
A32: El valor del volumen de quejas no debe ser superior al valor del volumen de la demana, no le permitirá registrar un valor.
A33: c) Costo para la administración pública:
A34: En cada trámite, basado en un caso estándar, se deberá estimar el costo incurrido en el costo de personal y recursos necesarios para su atención desde que el administrado entregó todos los requisitos hasta que la institución entregue el producto, respuesta o servicio requerido en el trámite. Se considerará:
A35: • Costo de personal:
A36: Costo del personal para atender el trámite, se excluyen actividades realizadas automáticamente o que dependen del administrado. El tiempo deberá considerar únicamente el tiempo efectivo de trabajo del personal, no debe considerar el tiempo de espera o de movimiento.
A37: • Costo de recursos:
A38: Se deberá considerar el costo directo en el que la institución debe incurrir para atender un trámite. Se debe considerar los insumos o materia prima necesaria u cualquier otro que la institución considere pertinente.
A39: Para realizar el registro realice lo siguiente:
A40: 1.- Seleccione la hoja COSTO ADMINISTRACIÓN PÚBLICA
A41: 2.- Ingrese los trámites de la institución registrando el identificador y nombre en las columnas respectivas. Si usted requiere de acuerdo al número de trámites copie filas adicionales que estén dentro del cuadro
A42: 3.- Para calcular el tiempo de las actividades, utilizar la hoja AUXILIAR COSTO ADMINISTRACIÓN donde deberá listar todas las actividades que realiza la institución en un caso estándar y asignar el tiempo mínimo que toma cada actvidad (en horas). El tiempo total de las actividades, deberá ingresar en la correspondiente celda de la hoja COSTO ADMINISTRACIÓN PÚBLICA
A43: 4.- En función de la información registrada en el paso 3, la matriz entregará el costo del personal
A44: 5.- Completar la columna "Costo recursos", en la cual ingresará el costo directo en el que incurre la institución para entregar el trámite. En este valor se considerarán los valores correspondientes a insumos y/o materia prima mínimos que se invierten por cada trámite (no se considera mano de obra)
A45: 6.- La columna "Costo para la adm. pública" mostrará el costto de este criterio para cada trámite
A46: 7,- Para que la fórmula funcione debe arrastrar hacia abajo al último de los támites ingresados, no copiar
A47: 7.- Una vez que disponga del Costo para la administración pública, presionar el botón "GENERAR".
A48: 8. Visualizar la hoja “RESUMEN DE COSTO AP” en la que va a encontrar copiada las celdas necesarias para el ordenamiento y puntuación de las mismas al presionar el botón “PUNTUACIÓN”
A50: d) Tiempo de respuesta:
A51: Considerará los tiempos que a las instituciones les toma dar respuesta a un trámite desde que reciben la solicitud del administrado hasta la finalización del mismo. Para la definición del tiempo se considerará un caso estándar.
A52: Para determinar la puntuación, se colocará en una tabla todos los trámites con el tiempo de respuesta, ordenándose de menor a mayor. Se dividirá en 4 grupos, en los que cada uno contenga la misma cantidad de trámites.
A53: Para realizar el registro realice lo siguiente:
A54: 1.- Seleccione la hoja TIEMPO DE RESPUESTA
A55: 2.- Ingrese los trámites de la institución registrando el identificador y nombre en las columnas respectivas. Si usted requiere de acuerdo al número de trámites copie filas adicionales que estén dentro del cuadro
A56: 3.- Para cada trámite debe especificar en la columna TIEMPO RESPUESTA el tiempo, de acuerdo a lo mencionado anteriormente.
A57: 4.- Una vez terminado el llenado solicitado presione el botón PUNTUACIÓN.
A58: 5.- Usted visualizará el ordenamiento de los trámites ingresados de acuerdo al número de volumen o frecuencia anual.
A59: 6.- Así mismo, usted visualizará el puntaje obtenido en la columna PUNTUACIÓN de acuerdo al grupo obtenido por cada trámite de acuerdo al número de volumen o frecuencia anual cosiderando lo siguiente: La puntuación considera lo siguiente: ** Primer grupo (menor o igual a 40 horas laboralres) = 0 ** Segundo grupo mayor 40 horas laboralres) = 30
A60: e) Canal de atención:
A61: Considerará los canales de atención a través de los cuales el administrado puede iniciar el trámite.
A62: Para realizar el registro realice lo siguiente:
A63: 1.- Seleccione la hoja CANAL ATENCIÓN
A64: 2.- Ingrese los trámites de la institución registrando el identificador y nombre en las columnas respectivas. Si usted requiere de acuerdo al número de trámites copie filas adicionales que estén dentro del cuadro
A65: 3.- Para cada trámite debe seleccionar el canal de atención del trámite en la columna CANAL ATENCIÓN, que pueden ser: El trámite se puede completar totalmente en línea: Se considera trámite totalmente en línea cuando el administrado no requiere realizar ninguna interacción presencial con la institución = 0 El trámite no se puede completar totalmente en línea: Se considera este caso, cuando el trámite incluye al menos una actividad, incluido mecanismos de pago, en la que el administrado deba acudir presencialmente a la institución, para la realización de dicho trámite. Los trámites presenciales se consideran dentro de esta categoría = 10
A66: 4.- De acuerdo a la selección usted obtendrá la puntuación del trámite que se visualizará en la columna PUNTUACIÓN.
A68: f) Resumen
A69: En esta hoja deberá consolidar todas las puntuaciones obtenidas para cada trámite en los criterios a) hasta e). Adicionalmente deberá analizar los criterios adicionales que dispone la norma técnica, para estos últimos solamente deberá seleccionar en la celda correspondiente y la matriz asignará la puntuación adicional. Los criterios que deberá considerar son: - NECESIDADES CIUDADANAS: Si la institución ha implementado mecanismos para identificar necesidades ciudadanas respecto al trámite, seleccionar "SI", caso contrario, seleccionar "NO" - SUSCEPTIBILIDAD A CORRUPCIÓN: Si la institución dispone de información documentada sobre presuntos actos de corrupción, seleccionar "SI", caso contrario, seleccionar "NO" - VOLUMEN DE DEVOLUCIONES: Si la institución posee documentación sobre devoluciones del trámite en una cantidad significativa, seleccionar "SI", caso contrario, seleccionar "NO" Para que funcione la lista depelgable debe arrastrar la lista y la puntuación hacia abajo al último de los támites ingresados, no copiar
A70: En la columna puntaje total se realizará la sumatoria de los valores de los criterios básicos y adicionales. Este valor deberá registrarse en la plataforma GOB.EC

Sheet DEMANDA ANUAL
A1: PRIORIZACIÓN DE TRÁMITES ADMINISTRATIVOS
A2: DEMANDA ANUAL
A4: IDENTIFICADOR | B4: TRÁMITE | C4: DEMANDA ANUAL | D4: PUNTAJE
A5: ANT-032-06-04 | B5: Actualización de cambio de color primario y/o secundario del vehículo | C5: 0 | D5: 0
A6: ANT-032-06-11 | B6: Actualización de cambio de número de placa de vehículo adquirido mediante remate | C6: 0 | D6: 0
A7: ANT-032-06-12 | B7: Actualización de cambio de número de placa de vehículo gemelo o clonado | C7: 0 | D7: 0
A8: ANT-032-06-01 | B8: Actualización de chasis y/o motor por remarcado | C8: 0 | D8: 0
A9: ANT-032-06-10 | B9: Actualización de dominio por prescripción adquisitiva de vehículo | C9: 0 | D9: 0
A10: ANT-032-06-06 | B10: Actualización de información por cambio de servicio de transporte | C10: 0 | D10: 0
A11: ANT-032-08-02 | B11: Actualización de registro de pagos de delitos de tránsito | C11: 0 | D11: 0
A12: ANT-032-06-07 | B12: Actualización o registro de fecha de revisión técnica vehicular | C12: 0 | D12: 0
A13: ANT-032-08-01 | B13: Anulación de multa por infracciones de tránsito por sentencia absolutoria | C13: 0 | D13: 0
A14: ANT-032-08-06 | B14: Anulación de multas por infracciones de tránsito por duplicidad | C14: 0 | D14: 0
A15: ANT-032-08-10 | B15: Anulación de multas por infracciones de tránsito por fallecimiento | C15: 0 | D15: 0
A16: ANT-034-01-12 | B16: Aprobación de vehículo incompleto - chasis motorizado para carrozaje nacional en categorías M2 y M3 INEN | C16: 0 | D16: 0
A17: ANT-032-14-02 | B17: Atención al recurso de reposición | C17: 0 | D17: 0
A18: ANT-042-04-09 | B18: Autorización de cambio de categoría de licencia Tipo F a tipología anteriormente obtenido No Profesional | C18: 0 | D18: 0
A19: ANT-037-06-02 | B19: Autorización de cambio de socio con habilitación de vehículo para operadoras de transporte de carga pesada | C19: 0 | D19: 0
A20: ANT-038-03-02 | B20: Autorización de cambio de socio con habilitación de vehículo para operadoras de transporte mixto | C20: 0 | D20: 0
A21: ANT-038-03-01 | B21: Autorización de cambio de socio sin vehículo para operadoras de transporte mixto | C21: 0 | D21: 0
A22: ANT-037-06-01 | B22: Autorización de cambio de socio sin vehículo para operadoras de transporte terrestre de carga pesada | C22: 0 | D22: 0
A23: ANT-037-06-03 | B23: Autorización de cambio de socio y vehículo para operadoras de transporte de carga pesada | C23: 0 | D23: 0
A24: ANT-039-02-01 | B24: Autorización de fusión de operadoras de transporte público de pasajeros | C24: 0 | D24: 0
A25: ANT-040-02-02 | B25: Autorización de registro de flota vehicular en permiso especial complementario para transporte terrestre internacional por cuenta propia | C25: 0 | D25: 0
A26: ANT-039-06-02 | B26: Autorización de registro de vehículos de operadoras extranjeras de pasajeros que requieren circular en el territorio nacional | C26: 0 | D26: 0
A27: ANT-035-01-01 | B27: Autorización de uso de polarizados en vehículos | C27: 0 | D27: 0
A28: ANT-039-06-01 | B28: Autorización del permiso de prestación de servicios a operadoras extranjeras registradas en los países miembros de la Comunidad Andina de Naciones que requieran realizar operaciones de Transporte de carga en el Ecuador. | C28: 0 | D28: 0
A29: ANT-034-03-05 | B29: Calificación de aplicativos móviles para personas jurídicas | C29: 0 | D29: 0
A30: ANT-034-03-02 | B30: Calificación de empresas fabricantes y/o ensambladoras de carrocerías de vehículos tipo M2 y M3 INEN para personas jurídicas | C30: 0 | D30: 0
A31: ANT-034-03-01 | B31: Calificación de empresas fabricantes y/o ensambladoras de carrocerías de vehículos tipo M2 y M3 INEN para personas naturales | C31: 0 | D31: 0
A32: ANT-040-01-01 | B32: Concesión de autorización del transporte por cuenta propia nacional a personas naturales o jurídicas | C32: 0 | D32: 0
A33: ANT-032-04-04 | B33: Desactivación de bloqueo de reserva de dominio de vehículo por cupo discapacitado | C33: 0 | D33: 0
A34: ANT-032-04-03 | B34: Desactivación de bloqueo de reserva de dominio de vehículo por diplomático | C34: 0 | D34: 0
A35: ANT-032-04-07 | B35: Desactivación de bloqueo de vehículo por retención vehicular | C35: 0 | D35: 0
A36: ANT-040-03-02 | B36: Deshabilitación de un vehículo de una autorización de transporte por cuenta propia | C36: 0 | D36: 0
A37: ANT-037-04-02 | B37: Deshabilitación de vehículo para operadoras de transporte de carga pesada | C37: 0 | D37: 0
A38: ANT-038-02-03 | B38: Deshabilitación de vehículo para operadoras de transporte mixto | C38: 0 | D38: 0
A39: ANT-039-06-05 | B39: Desvinculación de vehículo de operadoras nacionales interprovinciales con permiso originario de prestación de servicios | C39: 0 | D39: 0
A40: ANT-037-01-05 | B40: Emisión de Certificado de Idoneidad de operadora nacional que requiere realizar operaciones en los países miembros de la CAN. | C40: 0 | D40: 0
A41: ANT-042-04-03 | B41: Emisión de duplicado de licencia profesional y NO profesional | C41: 0 | D41: 0
A42: ANT-042-05-04 | B42: Emisión de duplicado, cambio de servicio y/o reemplazos de placas para motos | C42: 0 | D42: 0
A43: ANT-037-03-01 | B43: Emisión de incremento de cupo para operadoras de transporte de carga pesada | C43: 0 | D43: 0
A44: ANT-036-01-05 | B44: Emisión de informe favorable previo a la reforma de estatutos para compañías o cooperativas de transporte turístico | C44: 0 | D44: 0
A45: ANT-039-01-01 | B45: Emisión de informe previo a la constitución jurídica de operadoras de transporte intraprovincial o interprovincial | C45: 0 | D45: 0
A46: ANT-037-01-01 | B46: Emisión de informe previo a la constitución jurídica para compañías de transporte de carga pesada | C46: 0 | D46: 0
A47: ANT-037-01-04 | B47: Emisión de informe previo a la reforma de estatutos para operadoras de transporte terrestre de carga pesada | C47: 0 | D47: 0
A48: ANT-038-01-04 | B48: Emisión de informe previo a la reforma de estatutos para operadoras de transporte terrestre mixto | C48: 0 | D48: 0
A49: ANT-042-04-08 | B49: Emisión de licencia de conducir por primera vez no profesional tipo: F | C49: 0 | D49: 0
A50: ANT-036-01-07 | B50: Emisión de Permiso de Circuito Cerrado a operadoras nacionales de turismo que realizan transporte internacional turístico de pasajeros (Ecuador - Perú) | C50: 0 | D50: 0
A51: ANT-042-03-01 | B51: Emisión de permiso de conducción para menor adulto (Licencia NO Profesional) | C51: 0 | D51: 0
A52: ANT-037-02-01 | B52: Emisión de Permiso de Prestación de Servicios de operadora extranjera que requiere circular en el territorio nacional (PPS) | C52: 0 | D52: 0
A53: ANT-040-02-01 | B53: Emisión de permiso especial complementario para transporte terrestre internacional por cuenta propia a empresas extranjeras | C53: 0 | D53: 0
A54: ANT-042-04-10 | B54: Emisión de permiso internacional para conductores profesionales y no profesionales | C54: 0 | D54: 0
A55: ANT-039-01-04 | B55: Emisión de reforma de estatutos de transporte intraprovincial o interprovincial por cambio de objeto social de transporte y otros a exclusivo | C55: 0 | D55: 0
A56: ANT-032-09-05 | B56: Exoneración de multas por calendarización a vehículos del sector público por retraso en la certificación respecto a la asignación presupuestaria | C56: 0 | D56: 0
A57: ANT-032-09-06 | B57: Exoneración de multas por calendarización a vehículos que previa su entrega a una institución pública se hubieren encontrado incautados por orden judicial | C57: 0 | D57: 0
A58: ANT-040-03-03 | B58: Habilitación de nuevos vehículos con permiso especial de origen para transporte terrestre internacional por cuenta propia | C58: 0 | D58: 0
A59: ANT-040-03-01 | B59: Habilitación de un vehículo de una autorización de transporte por cuenta propia | C59: 0 | D59: 0
A60: ANT-039-06-03 | B60: Habilitación de vehículo a operadoras nacionales interprovinciales con permiso originario de prestación de servicios | C60: 0 | D60: 0
A61: ANT-037-04-01 | B61: Habilitación de vehículo para operadoras de transporte de carga pesada | C61: 0 | D61: 0
A62: ANT-034-02-09 | B62: Homologación de dispositivo de medición, control y seguridad "Disco Pare" importados para personas jurídicas | C62: 0 | D62: 0
A63: ANT-034-02-08 | B63: Homologación de dispositivo de medición, control y seguridad "Disco Pare" importados para personas naturales | C63: 0 | D63: 0
A64: ANT-034-02-07 | B64: Homologación de dispositivo de medición, control y seguridad "Disco Pare" nacionales para personas jurídicas | C64: 0 | D64: 0
A65: ANT-034-02-06 | B65: Homologación de dispositivo de medición, control y seguridad "Disco Pare" nacionales para personas naturales | C65: 0 | D65: 0
A66: ANT-034-02-03 | B66: Homologación de dispositivos y equipos tecnológicos para detección y notificación de infracciones de tránsito nacionales por parte de persona jurídica | C66: 0 | D66: 0
A67: ANT-034-02-01 | B67: Homologación de dispositivos y equipos tecnológicos para detección y notificación de infracciones de tránsito nacionales por parte de persona natural | C67: 0 | D67: 0
A68: ANT-042-04-05 | B68: Homologación de licencia de conducir extranjera por la ecuatoriana | C68: 0 | D68: 0
A69: ANT-034-02-12 | B69: Homologación de simuladores de conducción y equipos psicosensométricos para personas jurídicas nacionales | C69: 0 | D69: 0
A70: ANT-034-02-05 | B70: Homologación de taxímetro (dispositivos de medición, control y seguridad) | C70: 0 | D70: 0
A71: ANT-034-01-05 | B71: Homologación de vehículos importados completos categoría M2 INEN destinados al servicio transporte público (incluye microbús de hasta 5000 kg de peso) | C71: 0 | D71: 0
A72: ANT-034-02-13 | B72: Homologación del sistema tecnológico de recaudo electrónico de transporte público intracantonal | C72: 0 | D72: 0
A73: ANT-032-08-04 | B73: Impugnación de multas por infracciones de tránsito | C73: 0 | D73: 0
A74: ANT-034-01-09 | B74: Inclusión de versiones y/o aplicaciones en un modelo base homologado para subcategoría M3 | C74: 0 | D74: 0
A75: ANT-032-07-01 | B75: Levantamiento de revocatoria o anulación de licencias de conducir | C75: 0 | D75: 0
A76: ANT-032-07-02 | B76: Levantamiento de suspensión de licencia de conducir por aprobación de pruebas de renovación o canje de licencia internacional de conducir o infracciones de tránsito que conlleven sanción | C76: 0 | D76: 0
A77: ANT-037-04-04 | B77: Matriculación de unidades de carga para operadoras de transporte terrestre de carga pesada | C77: 0 | D77: 0
A78: ANT-032-15-03 | B78: Modificación de datos en resoluciones de operadoras de transporte | C78: 0 | D78: 0
A79: ANT-032-15-01 | B79: Rectificación de chasis y/o motor por remarcado (por error de tipeo) | C79: 0 | D79: 0
A80: ANT-032-06-05 | B80: Rectificación de número de identificación del vehículo VIN | C80: 0 | D80: 0
A81: ANT-032-13-02 | B81: Recuperación automática de puntos a la licencia de conducir por no incurrir en multas por infracciones de tránsito durante un año | C81: 0 | D81: 0
A82: ANT-042-02-05 | B82: Regularización de aulas en la escuela de capacitación para conductores profesionales y no profesionales (aumento o disminución de aulas) | C82: 0 | D82: 0
A83: ANT-039-06-04 | B83: Renovación de habilitación de vehículo de operadoras nacionales interprovinciales con permiso originario de prestación de servicios | C83: 0 | D83: 0
A84: ANT-037-01-03 | B84: Renovación de permiso de operación para operadoras de transporte de carga pesada | C84: 0 | D84: 0
A85: ANT-039-04-03 | B85: Renovación de vehículo de operadora de transporte intraprovincial o interprovincial (cambio de vehículo) | C85: 0 | D85: 0
A86: ANT-037-04-03 | B86: Renovación de vehículo para operadoras de transporte de carga pesada | C86: 0 | D86: 0
A87: ANT-038-02-04 | B87: Renovación de vehículo para operadoras de transporte mixto (cambio de vehículo) | C87: 0 | D87: 0
A88: ANT-039-01-03 | B88: Renovación del contrato de operación para la prestación del servicio de transporte público intraprovincial o interprovincial de pasajeros | C88: 0 | D88: 0
A89: ANT-032-01-03 | B89: Revocación de licencia de conducir por incapacidad física y mental | C89: 0 | D89: 0
A90: ANT-038-03-03 | B90: Solicitud de cambio de socio con vehículo para operadoras de transporte de carga mixta. | C90: 0 | D90: 0
A91: ANT-039-02-02 | B91: Autorización de escisión de operadoras de transporte público de pasajeros | C91: 1 | D91: 3
A92: ANT-034-03-04 | B92: Calificación de aplicativos móviles para personas naturales | C92: 1 | D92: 3
A93: ANT-037-01-02 | B93: Concesión de permiso de operación para operadoras de transporte de carga pesada | C93: 1 | D93: 3
A94: ANT-039-01-02 | B94: Concesión del contrato de operación para la prestación del servicio de transporte público intraprovincial o interprovincial de pasajeros | C94: 1 | D94: 3
A95: ANT-032-04-01 | B95: Desactivación de bloqueo de prohibición de enajenar vehículo por juicio, embargo, insolvencia o inventario | C95: 1 | D95: 3
A96: ANT-039-01-05 | B96: Emisión de reforma de estatutos de transporte intraprovincial o interprovincial por cambio de objeto social referente al tipo de servicio (cambio de modalidad) | C96: 1 | D96: 3
A97: ANT-032-09-07 | B97: Exoneración de multas por calendarización a vehículo no matriculado por problemas técnicos de fuerza mayor presentados en la entidad competente | C97: 1 | D97: 3
A98: ANT-038-02-02 | B98: Habilitación de vehículo para operadoras de transporte mixto | C98: 1 | D98: 3
A99: ANT-042-01-03 | B99: Habilitación técnica y operación de terminal terrestre | C99: 1 | D99: 3
A100: ANT-034-01-11 | B100: Homologación de vehículos eléctricos para carga, subcategoría N | C100: 1 | D100: 3
A101: ANT-034-01-03 | B101: Inclusión de versiones y/o aplicaciones en un modelo base homologado de vehículos automotores, subcategoría M1 | C101: 1 | D101: 3
A102: ANT-034-01-15 | B102: Inclusión de versiones y/o aplicaciones en un modelo base homologado para categoría M2 y M3 INEN de fabricación o ensamblaje nacional | C102: 1 | D102: 3
A103: ANT-042-02-10 | B103: Rectificación de nómina de alumnos graduados del curso de recuperación de puntos de licencia de conducir | C103: 1 | D103: 3
A104: ANT-039-03-04 | B104: Reversión de ruta y/o frecuencia de operadoras de transporte intraprovincial o interprovincial | C104: 1 | D104: 3
A105: ANT-042-01-01 | B105: Aprobación y tipología de ubicación de terminal terrestre | C105: 2 | D105: 3
A106: ANT-032-04-02 | B106: Desactivación de bloqueo de vehículo por haber cumplido el tiempo establecido de reserva de dominio por menaje de casa | C106: 2 | D106: 3
A107: ANT-034-02-04 | B107: Homologación de dispositivos y equipos tecnológicos para detección y notificación de infracciones de tránsito importados por parte de persona jurídica | C107: 2 | D107: 3
A108: ANT-034-02-02 | B108: Homologación de dispositivos y equipos tecnológicos para detección y notificación de infracciones de tránsito importados por parte de persona natural | C108: 2 | D108: 3
A109: ANT-034-02-10 | B109: Homologación de sistemas de posicionamiento y administración para taxis ejecutivos (GPS) | C109: 2 | D109: 3
A110: ANT-034-01-13 | B110: Inclusión de versiones y/o aplicaciones de modelo base de aprobado de vehículo incompleto - chasis motorizados para carrozaje nacional en categoría M2 y M3 INEN | C110: 2 | D110: 3
A111: ANT-034-01-17 | B111: Inclusión de versiones y/o aplicaciones en un modelo base homologado de motocicletas, tricimotos y demás similares nacionales, Subcategoría L. | C111: 2 | D111: 3
A112: ANT-032-01-04 | B112: Suspensión de licencia de conducir por no aprobación de pruebas de renovación o canje de licencia internacional de conducir o infracciones de tránsito que conlleven sanción | C112: 2 | D112: 3
A113: ANT-032-03-08 | B113: Activación de bloqueo de vehículo por retención vehicular | C113: 3 | D113: 3
A114: ANT-042-01-02 | B114: Aprobación de estudios y diseños arquitectónicos previos a la implementación de terminal terrestre | C114: 3 | D114: 3
A115: ANT-034-03-03 | B115: Calificación de aplicativos móviles para personas jurídicas | C115: 3 | D115: 3
A116: ANT-040-02-03 | B116: Emisión de permiso especial de origen para transporte internacional por cuenta propia | C116: 3 | D116: 3
A117: ANT-032-09-04 | B117: Exoneración de multas por calendarización a vehículos del sector público que hubieren sido entregados por parte de otras instituciones, por haber asumido los derechos y obligaciones por mandato de la ley | C117: 3 | D117: 3
A118: ANT-042-02-07 | B118: Habilitación de funcionamiento de la escuela de capacitación como centro de recuperación de puntos (convenio como centro de recuperación de puntos) | C118: 3 | D118: 3
A119: ANT-032-02-02 | B119: Inactivación de vehículo por robo | C119: 3 | D119: 3
A120: ANT-039-04-04 | B120: Racionalización de corredores viales a operadoras de transporte intraprovincial o interprovincial | C120: 3 | D120: 3
A121: ANT-042-02-09 | B121: Rectificación de nóminas de alumnos matriculados de escuelas de conducción profesionales (por alumno) | C121: 3 | D121: 3
A122: ANT-038-01-02 | B122: Renovación de permiso de operación para operadoras de transporte mixto | C122: 3 | D122: 3
A123: ANT-034-01-06 | B123: Homologación de vehículos importados completos categoría M2 INEN destinados al servicio transporte comercial (incluye microbús de hasta 5000 kg de peso) | C123: 4 | D123: 3
A124: ANT-032-03-04 | B124: Activación de bloqueo de reserva de dominio de vehículo por cupo discapacitado | C124: 4 | D124: 3
A125: ANT-032-03-07 | B125: Activación de bloqueo de vehículo por gemelo o clonado | C125: 4 | D125: 3
A126: ANT-032-03-03 | B126: Activación de bloqueo por reserva de dominio de vehículo de diplomático | C126: 4 | D126: 3
A127: ANT-032-12-05 | B127: Atención de denuncia respecto a posibles actos de corrupción | C127: 4 | D127: 3
A128: ANT-034-02-11 | B128: Homologación de simuladores de conducción y equipos psicosensométricos para personas jurídicas importados | C128: 4 | D128: 3
A129: ANT-034-01-08 | B129: Inclusión de versiones y/o aplicaciones en un modelo base homologado para subcategoría M2 | C129: 4 | D129: 3
A130: ANT-032-08-03 | B130: Ingreso de sentencia condenatoria (delitos de tránsito) | C130: 4 | D130: 3
A131: ANT-039-03-02 | B131: Modificación de frecuencia (cambio de horario) de operadora de transporte intraprovincial o interprovincial | C131: 4 | D131: 3
A132: ANT-032-15-02 | B132: Rectificación de resoluciones de operadoras de transporte | C132: 4 | D132: 3
A133: ANT-042-02-04 | B133: Regularización de vehículos en escuelas de capacitación para conductores profesionales y no profesionales (aumento o disminución de vehículos) | C133: 4 | D133: 3
A134: ANT-032-14-03 | B134: Atención al recurso extraordinario de revisión | C134: 5 | D134: 3
A135: ANT-032-12-03 | B135: Atención de felicitaciones respecto a los servicios que presta la ANT | C135: 5 | D135: 3
A136: ANT-042-02-06 | B136: Autorización de cambio de domicilio de la escuela de capacitación para conductores profesionales y no profesionales | C136: 5 | D136: 3
A137: ANT-036-01-03 | B137: Renovación del permiso de operación para operadoras de transporte turístico | C137: 5 | D137: 3
A138: ANT-041-01-01 | B138: Autorización para funcionamiento como compañía de renta de vehículos | C138: 6 | D138: 6
A139: ANT-034-01-10 | B139: Homologación de vehículos eléctricos, subcategoría M1 | C139: 6 | D139: 6
A140: ANT-032-03-01 | B140: Activación de bloqueo por prohibición de enajenar vehículo (por juicio, embargo, insolvencia o inventario) | C140: 7 | D140: 6
A141: ANT-041-02-02 | B141: Deshabilitación de vehículo en compañía de renta de vehículos | C141: 8 | D141: 6
A142: ANT-032-09-03 | B142: Exoneración de multas por calendarización a vehículo que se encontraba dentro de un proceso judicial | C142: 8 | D142: 6
A143: ANT-038-01-01 | B143: Concesión de permiso de operación para operadoras de transporte mixto | C143: 9 | D143: 6
A144: ANT-032-11-05 | B144: Devolución de pagos por sentencias absolutorias de infracciones | C144: 9 | D144: 6
A145: ANT-032-03-02 | B145: Activación de bloqueo por reserva de dominio de vehículo por menaje de casa | C145: 11 | D145: 6
A146: ANT-032-12-04 | B146: Atención de denuncia respecto al Transporte Terrestre, Tránsito y Seguridad Vial | C146: 11 | D146: 6
A147: ANT-042-02-02 | B147: Autorización para funcionamiento por primera vez de escuelas de capacitación o sucursales para conductores profesionales y no profesionales | C147: 11 | D147: 6
A148: ANT-042-02-08 | B148: Rectificación de nóminas de alumnos graduados de escuelas de conducción profesionales (por alumno) | C148: 11 | D148: 6
A149: ANT-032-02-01 | B149: Inactivación definitiva voluntaria de vehículo por chatarrización | C149: 12 | D149: 6
A150: ANT-034-01-04 | B150: Inclusión de versiones y/o aplicaciones en un modelo base homologado de vehículos automotores para carga subcategoría N | C150: 12 | D150: 6
A151: ANT-042-02-01 | B151: Autorización para la creación de escuela de capacitación o sucursales para conductores profesionales y no profesionales | C151: 14 | D151: 6
A152: ANT-039-03-03 | B152: Modificación y/o alargue de ruta de operadora de transporte intraprovincial o interprovincial | C152: 15 | D152: 6
A153: ANT-038-02-01 | B153: Emisión de incremento de cupo para operadoras de transporte mixto | C153: 16 | D153: 6
A154: ANT-039-03-01 | B154: Emisión de incremento de frecuencia de operadoras de transporte intraprovincial o interprovincial | C154: 16 | D154: 6
A155: ANT-036-01-02 | B155: Emisión de permiso de operación a personas jurídicas en la modalidad de transporte turístico | C155: 19 | D155: 6
A156: ANT-032-08-11 | B156: Actualización de pago de multas por infracciones de tránsito | C156: 20 | D156: 6
A157: ANT-039-01-06 | B157: Concesión de nueva ruta y frecuencia de operadora de transporte intraprovincial o interprovincial | C157: 20 | D157: 6
A158: ANT-032-11-04 | B158: Devolución de pagos indebido para personas jurídicas | C158: 21 | D158: 6
A159: ANT-032-14-01 | B159: Atención al recurso de apelación | C159: 22 | D159: 6
A160: ANT-032-01-02 | B160: Anulación de licencia de conducir por acto viciado o sin requisitos | C160: 24 | D160: 6
A161: ANT-034-01-07 | B161: Homologación de vehículos importados completos categoría M3 INEN destinados al servicio transporte público y comercial (incluye microbús desde 5000 kg de peso) | C161: 25 | D161: 6
A162: ANT-036-01-06 | B162: Emisión de Documento Único de Transporte Turístico (DUTT) a operadoras nacionales de turismo que realizan transporte internacional turístico de pasajeros (Ecuador - Colombia) | C162: 26 | D162: 6
A163: ANT-034-03-07 | B163: Emisión de licencia de importación de un lote de tricimotos | C163: 27 | D163: 6
A164: ANT-039-01-07 | B164: Emisión de dimensionamiento de flota vehicular para operadoras de transporte intraprovincial o interprovincial | C164: 28 | D164: 6
A165: ANT-032-13-04 | B165: Registro de puntos recuperados que no se cargaron a tiempo por pago tardío de infracciones | C165: 31 | D165: 6
A166: ANT-032-08-09 | B166: Anulación de multas por infracciones de tránsito por prescripción | C166: 32 | D166: 6
A167: ANT-036-02-02 | B167: Deshabilitación de vehículo para operadoras de transporte turístico | C167: 33 | D167: 6
A168: ANT-032-09-02 | B168: Exoneración de multas por calendarización a vehículo que ha sido objeto de robo | C168: 33 | D168: 6
A169: ANT-037-04-06 | B169: Desvinculación de flota vehicular y unidades de carga de operadoras nacionales que realizan transporte terrestre internacional | C169: 35 | D169: 6
A170: ANT-032-13-01 | B170: Autorización para matrícula e inicio de clases de centros de recuperación de puntos para conductores profesionales y no profesionales | C170: 41 | D170: 6
A171: ANT-032-06-09 | B171: Actualización del beneficiario o arrendatario de un fideicomiso o leasing | C171: 44 | D171: 6
A172: ANT-036-01-04 | B172: Emisión de incremento de cupo para operadoras de transporte turístico | C172: 45 | D172: 6
A173: ANT-032-08-08 | B173: Actualización de registro de pagos de citaciones de tránsito que no dieron de baja en el sistema "pagos en línea" | C173: 46 | D173: 6
A174: ANT-041-02-01 | B174: Habilitación de vehículo en compañía de renta de vehículos | C174: 50 | D174: 6
A175: ANT-037-05-01 | B175: Registro de flota de operadora extranjera que requiere circular en el territorio nacional | C175: 53 | D175: 6
A176: ANT-038-01-03 | B176: Emisión de informe previo a la constitución jurídica para operadoras de transporte mixto | C176: 54 | D176: 6
A177: ANT-034-01-14 | B177: Homologación de vehículos de subtecategoría M2 y M3 INEN de fabricación o ensamblaje nacional | C177: 61 | D177: 6
A178: ANT-036-02-03 | B178: Renovación de vehículo para operadoras de transporte turístico (Cambio de vehículo) | C178: 61 | D178: 6
A179: ANT-036-01-01 | B179: Emisión de informe previo a la constitución jurídica para compañías o cooperativas de transporte turístico | C179: 66 | D179: 6
A180: ANT-036-02-01 | B180: Habilitación de vehículo para operadoras de transporte turístico | C180: 74 | D180: 6
A181: ANT-039-05-02 | B181: Autorización de cambio de socio con habilitación de vehículo de operadoras de transporte intraprovincial o interprovincial | C181: 79 | D181: 10
A182: ANT-032-05-03 | B182: Actualización o registro de información de licencia de conducir | C182: 82 | D182: 10
A183: ANT-039-05-01 | B183: Autorización de cambio de socio y vehículo de operadora de transporte intraprovincial o interprovincial | C183: 83 | D183: 10
A184: ANT-039-05-03 | B184: Autorización de cambio de socio sin vehículo de operadoras de transporte intraprovincial o interprovincial | C184: 98 | D184: 10
A185: ANT-033-01-06 | B185: Emisión de certificado de conformidad de vehículo para cambio de servicio | C185: 103 | D185: 10
A186: ANT-032-09-01 | B186: Exoneración de multas por calendarización a vehículo que se encuentra en taller mecánico y no se presenta a revisión técnica vehicular | C186: 103 | D186: 10
A187: ANT-032-12-06 | B187: Atención de consultas jurídicas sobre los servicios que presta la ANT | C187: 110 | D187: 10
A188: ANT-034-01-02 | B188: Homologación de vehículos automotores para carga, subcategoría N | C188: 112 | D188: 10
A189: ANT-042-03-02 | B189: Emisión de permiso de aprendizaje de manejo para alumnos de escuelas de capacitación de conductores profesionales y no profesionales | C189: 114 | D189: 10
A190: ANT-034-01-16 | B190: Homologación de motocicletas, tricimotos y demás similares nacionales, subcategoría L | C190: 126 | D190: 10
A191: ANT-034-01-01 | B191: Homologación de vehículos automotores, subcategoría M1 | C191: 175 | D191: 10
A192: ANT-037-04-05 | B192: Habilitación de vehículo y registro de unidad de carga de operadoras nacionales que cuentan con certificado de idoneidad | C192: 199 | D192: 10
A193: ANT-042-04-04 | B193: Autorización de canje de licencia de conducir extranjera por ecuatoriana | C193: 200 | D193: 10
A194: ANT-032-12-01 | B194: Atención de queja respecto a los servicios que presta la ANT | C194: 219 | D194: 10
A195: ANT-032-13-03 | B195: Recuperación de puntos a la licencia de conducir por aprobación de curso en un centro de recuperación de puntos | C195: 256 | D195: 10
A196: ANT-032-05-02 | B196: Actualización o registro de información de persona jurídica | C196: 264 | D196: 10
A197: ANT-033-01-02 | B197: Emisión de certificado de historial de infracciones del vehículo persona natural y jurídica | C197: 264 | D197: 10
A198: ANT-039-04-01 | B198: Habilitación de vehículo de operadora de transporte intraprovincial o interprovincial | C198: 283 | D198: 10
A199: ANT-032-11-03 | B199: Devolución de pagos indebidos para personas naturales | C199: 305 | D199: 10
A200: ANT-039-04-02 | B200: Deshabilitación de vehículo de operadora de transporte intraprovincial o interprovincial | C200: 315 | D200: 10
A201: ANT-042-02-03 | B201: Autorización de período de matrículas e inicio de clases y/o prórrogas de la escuela de capacitación para conductores profesionales y no profesionales | C201: 320 | D201: 10
... 25 more rows

Sheet VOLUMEN DE QUEJAS
A1: PRIORIZACIÓN DE TRÁMITES ADMINISTRATIVOS
A2: VOLUMEN DE QUEJAS
A4: IDENTIFICADOR | B4: TRÁMITE | C4: VOLUMEN DEMANDA | D4: VOLUMEN DE QUEJAS | E4: PORCENTAJE | F4: PUNTUACIÓN
A5: ANT-032-06-04 | B5: Actualización de cambio de color primario y/o secundario del vehículo | C5: 0 | D5: 0 | E5: 0 | F5: 0
A6: ANT-032-06-11 | B6: Actualización de cambio de número de placa de vehículo adquirido mediante remate | C6: 0 | D6: 0 | E6: 0 | F6: 0
A7: ANT-032-06-12 | B7: Actualización de cambio de número de placa de vehículo gemelo o clonado | C7: 0 | D7: 0 | E7: 0 | F7: 0
A8: ANT-032-06-01 | B8: Actualización de chasis y/o motor por remarcado | C8: 0 | D8: 0 | E8: 0 | F8: 0
A9: ANT-032-06-10 | B9: Actualización de dominio por prescripción adquisitiva de vehículo | C9: 0 | D9: 0 | E9: 0 | F9: 0
A10: ANT-032-06-06 | B10: Actualización de información por cambio de servicio de transporte | C10: 0 | D10: 0 | E10: 0 | F10: 0
A11: ANT-032-08-02 | B11: Actualización de registro de pagos de delitos de tránsito | C11: 0 | D11: 0 | E11: 0 | F11: 0
A12: ANT-032-06-07 | B12: Actualización o registro de fecha de revisión técnica vehicular | C12: 0 | D12: 0 | E12: 0 | F12: 0
A13: ANT-032-08-01 | B13: Anulación de multa por infracciones de tránsito por sentencia absolutoria | C13: 0 | D13: 0 | E13: 0 | F13: 0
A14: ANT-032-08-06 | B14: Anulación de multas por infracciones de tránsito por duplicidad | C14: 0 | D14: 0 | E14: 0 | F14: 0
A15: ANT-032-08-10 | B15: Anulación de multas por infracciones de tránsito por fallecimiento | C15: 0 | D15: 0 | E15: 0 | F15: 0
A16: ANT-034-01-12 | B16: Aprobación de vehículo incompleto - chasis motorizado para carrozaje nacional en categorías M2 y M3 INEN | C16: 0 | D16: 0 | E16: 0 | F16: 0
A17: ANT-032-14-02 | B17: Atención al recurso de reposición | C17: 0 | D17: 0 | E17: 0 | F17: 0
A18: ANT-042-04-09 | B18: Autorización de cambio de categoría de licencia Tipo F a tipología anteriormente obtenido No Profesional | C18: 0 | D18: 0 | E18: 0 | F18: 0
A19: ANT-037-06-02 | B19: Autorización de cambio de socio con habilitación de vehículo para operadoras de transporte de carga pesada | C19: 0 | D19: 0 | E19: 0 | F19: 0
A20: ANT-038-03-02 | B20: Autorización de cambio de socio con habilitación de vehículo para operadoras de transporte mixto | C20: 0 | D20: 0 | E20: 0 | F20: 0
A21: ANT-038-03-01 | B21: Autorización de cambio de socio sin vehículo para operadoras de transporte mixto | C21: 0 | D21: 0 | E21: 0 | F21: 0
A22: ANT-037-06-01 | B22: Autorización de cambio de socio sin vehículo para operadoras de transporte terrestre de carga pesada | C22: 0 | D22: 0 | E22: 0 | F22: 0
A23: ANT-037-06-03 | B23: Autorización de cambio de socio y vehículo para operadoras de transporte de carga pesada | C23: 0 | D23: 0 | E23: 0 | F23: 0
A24: ANT-039-02-01 | B24: Autorización de fusión de operadoras de transporte público de pasajeros | C24: 0 | D24: 0 | E24: 0 | F24: 0
A25: ANT-040-02-02 | B25: Autorización de registro de flota vehicular en permiso especial complementario para transporte terrestre internacional por cuenta propia | C25: 0 | D25: 0 | E25: 0 | F25: 0
A26: ANT-039-06-02 | B26: Autorización de registro de vehículos de operadoras extranjeras de pasajeros que requieren circular en el territorio nacional | C26: 0 | D26: 0 | E26: 0 | F26: 0
A27: ANT-035-01-01 | B27: Autorización de uso de polarizados en vehículos | C27: 0 | D27: 0 | E27: 0 | F27: 0
A28: ANT-039-06-01 | B28: Autorización del permiso de prestación de servicios a operadoras extranjeras registradas en los países miembros de la Comunidad Andina de Naciones que requieran realizar operaciones de Transporte de carga en el Ecuador. | C28: 0 | D28: 0 | E28: 0 | F28: 0
A29: ANT-034-03-05 | B29: Calificación de aplicativos móviles para personas jurídicas | C29: 0 | D29: 0 | E29: 0 | F29: 0
A30: ANT-034-03-02 | B30: Calificación de empresas fabricantes y/o ensambladoras de carrocerías de vehículos tipo M2 y M3 INEN para personas jurídicas | C30: 0 | D30: 0 | E30: 0 | F30: 0
A31: ANT-034-03-01 | B31: Calificación de empresas fabricantes y/o ensambladoras de carrocerías de vehículos tipo M2 y M3 INEN para personas naturales | C31: 0 | D31: 0 | E31: 0 | F31: 0
A32: ANT-040-01-01 | B32: Concesión de autorización del transporte por cuenta propia nacional a personas naturales o jurídicas | C32: 0 | D32: 0 | E32: 0 | F32: 0
A33: ANT-032-04-04 | B33: Desactivación de bloqueo de reserva de dominio de vehículo por cupo discapacitado | C33: 0 | D33: 0 | E33: 0 | F33: 0
A34: ANT-032-04-03 | B34: Desactivación de bloqueo de reserva de dominio de vehículo por diplomático | C34: 0 | D34: 0 | E34: 0 | F34: 0
A35: ANT-032-04-07 | B35: Desactivación de bloqueo de vehículo por retención vehicular | C35: 0 | D35: 0 | E35: 0 | F35: 0
A36: ANT-040-03-02 | B36: Deshabilitación de un vehículo de una autorización de transporte por cuenta propia | C36: 0 | D36: 0 | E36: 0 | F36: 0
A37: ANT-037-04-02 | B37: Deshabilitación de vehículo para operadoras de transporte de carga pesada | C37: 0 | D37: 0 | E37: 0 | F37: 0
A38: ANT-038-02-03 | B38: Deshabilitación de vehículo para operadoras de transporte mixto | C38: 0 | D38: 0 | E38: 0 | F38: 0
A39: ANT-039-06-05 | B39: Desvinculación de vehículo de operadoras nacionales interprovinciales con permiso originario de prestación de servicios | C39: 0 | D39: 0 | E39: 0 | F39: 0
A40: ANT-037-01-05 | B40: Emisión de Certificado de Idoneidad de operadora nacional que requiere realizar operaciones en los países miembros de la CAN. | C40: 0 | D40: 0 | E40: 0 | F40: 0
A41: ANT-042-04-03 | B41: Emisión de duplicado de licencia profesional y NO profesional | C41: 0 | D41: 0 | E41: 0 | F41: 0
A42: ANT-042-05-04 | B42: Emisión de duplicado, cambio de servicio y/o reemplazos de placas para motos | C42: 0 | D42: 0 | E42: 0 | F42: 0
A43: ANT-037-03-01 | B43: Emisión de incremento de cupo para operadoras de transporte de carga pesada | C43: 0 | D43: 0 | E43: 0 | F43: 0
A44: ANT-036-01-05 | B44: Emisión de informe favorable previo a la reforma de estatutos para compañías o cooperativas de transporte turístico | C44: 0 | D44: 0 | E44: 0 | F44: 0
A45: ANT-039-01-01 | B45: Emisión de informe previo a la constitución jurídica de operadoras de transporte intraprovincial o interprovincial | C45: 0 | D45: 0 | E45: 0 | F45: 0
A46: ANT-037-01-01 | B46: Emisión de informe previo a la constitución jurídica para compañías de transporte de carga pesada | C46: 0 | D46: 0 | E46: 0 | F46: 0
A47: ANT-037-01-04 | B47: Emisión de informe previo a la reforma de estatutos para operadoras de transporte terrestre de carga pesada | C47: 0 | D47: 0 | E47: 0 | F47: 0
A48: ANT-038-01-04 | B48: Emisión de informe previo a la reforma de estatutos para operadoras de transporte terrestre mixto | C48: 0 | D48: 0 | E48: 0 | F48: 0
A49: ANT-042-04-08 | B49: Emisión de licencia de conducir por primera vez no profesional tipo: F | C49: 0 | D49: 0 | E49: 0 | F49: 0
A50: ANT-036-01-07 | B50: Emisión de Permiso de Circuito Cerrado a operadoras nacionales de turismo que realizan transporte internacional turístico de pasajeros (Ecuador - Perú) | C50: 0 | D50: 0 | E50: 0 | F50: 0
A51: ANT-042-03-01 | B51: Emisión de permiso de conducción para menor adulto (Licencia NO Profesional) | C51: 0 | D51: 0 | E51: 0 | F51: 0
A52: ANT-037-02-01 | B52: Emisión de Permiso de Prestación de Servicios de operadora extranjera que requiere circular en el territorio nacional (PPS) | C52: 0 | D52: 0 | E52: 0 | F52: 0
A53: ANT-040-02-01 | B53: Emisión de permiso especial complementario para transporte terrestre internacional por cuenta propia a empresas extranjeras | C53: 0 | D53: 0 | E53: 0 | F53: 0
A54: ANT-042-04-10 | B54: Emisión de permiso internacional para conductores profesionales y no profesionales | C54: 0 | D54: 0 | E54: 0 | F54: 0
A55: ANT-039-01-04 | B55: Emisión de reforma de estatutos de transporte intraprovincial o interprovincial por cambio de objeto social de transporte y otros a exclusivo | C55: 0 | D55: 0 | E55: 0 | F55: 0
A56: ANT-032-09-05 | B56: Exoneración de multas por calendarización a vehículos del sector público por retraso en la certificación respecto a la asignación presupuestaria | C56: 0 | D56: 0 | E56: 0 | F56: 0
A57: ANT-032-09-06 | B57: Exoneración de multas por calendarización a vehículos que previa su entrega a una institución pública se hubieren encontrado incautados por orden judicial | C57: 0 | D57: 0 | E57: 0 | F57: 0
A58: ANT-040-03-03 | B58: Habilitación de nuevos vehículos con permiso especial de origen para transporte terrestre internacional por cuenta propia | C58: 0 | D58: 0 | E58: 0 | F58: 0
A59: ANT-040-03-01 | B59: Habilitación de un vehículo de una autorización de transporte por cuenta propia | C59: 0 | D59: 0 | E59: 0 | F59: 0
A60: ANT-039-06-03 | B60: Habilitación de vehículo a operadoras nacionales interprovinciales con permiso originario de prestación de servicios | C60: 0 | D60: 0 | E60: 0 | F60: 0
A61: ANT-037-04-01 | B61: Habilitación de vehículo para operadoras de transporte de carga pesada | C61: 0 | D61: 0 | E61: 0 | F61: 0
A62: ANT-034-02-09 | B62: Homologación de dispositivo de medición, control y seguridad "Disco Pare" importados para personas jurídicas | C62: 0 | D62: 0 | E62: 0 | F62: 0
A63: ANT-034-02-08 | B63: Homologación de dispositivo de medición, control y seguridad "Disco Pare" importados para personas naturales | C63: 0 | D63: 0 | E63: 0 | F63: 0
A64: ANT-034-02-07 | B64: Homologación de dispositivo de medición, control y seguridad "Disco Pare" nacionales para personas jurídicas | C64: 0 | D64: 0 | E64: 0 | F64: 0
A65: ANT-034-02-06 | B65: Homologación de dispositivo de medición, control y seguridad "Disco Pare" nacionales para personas naturales | C65: 0 | D65: 0 | E65: 0 | F65: 0
A66: ANT-034-02-03 | B66: Homologación de dispositivos y equipos tecnológicos para detección y notificación de infracciones de tránsito nacionales por parte de persona jurídica | C66: 0 | D66: 0 | E66: 0 | F66: 0
A67: ANT-034-02-01 | B67: Homologación de dispositivos y equipos tecnológicos para detección y notificación de infracciones de tránsito nacionales por parte de persona natural | C67: 0 | D67: 0 | E67: 0 | F67: 0
A68: ANT-042-04-05 | B68: Homologación de licencia de conducir extranjera por la ecuatoriana | C68: 0 | D68: 0 | E68: 0 | F68: 0
A69: ANT-034-02-12 | B69: Homologación de simuladores de conducción y equipos psicosensométricos para personas jurídicas nacionales | C69: 0 | D69: 0 | E69: 0 | F69: 0
A70: ANT-034-02-05 | B70: Homologación de taxímetro (dispositivos de medición, control y seguridad) | C70: 0 | D70: 0 | E70: 0 | F70: 0
A71: ANT-034-01-05 | B71: Homologación de vehículos importados completos categoría M2 INEN destinados al servicio transporte público (incluye microbús de hasta 5000 kg de peso) | C71: 0 | D71: 0 | E71: 0 | F71: 0
A72: ANT-034-02-13 | B72: Homologación del sistema tecnológico de recaudo electrónico de transporte público intracantonal | C72: 0 | D72: 0 | E72: 0 | F72: 0
A73: ANT-032-08-04 | B73: Impugnación de multas por infracciones de tránsito | C73: 0 | D73: 0 | E73: 0 | F73: 0
A74: ANT-034-01-09 | B74: Inclusión de versiones y/o aplicaciones en un modelo base homologado para subcategoría M3 | C74: 0 | D74: 0 | E74: 0 | F74: 0
A75: ANT-032-07-01 | B75: Levantamiento de revocatoria o anulación de licencias de conducir | C75: 0 | D75: 0 | E75: 0 | F75: 0
A76: ANT-032-07-02 | B76: Levantamiento de suspensión de licencia de conducir por aprobación de pruebas de renovación o canje de licencia internacional de conducir o infracciones de tránsito que conlleven sanción | C76: 0 | D76: 0 | E76: 0 | F76: 0
A77: ANT-037-04-04 | B77: Matriculación de unidades de carga para operadoras de transporte terrestre de carga pesada | C77: 0 | D77: 0 | E77: 0 | F77: 0
A78: ANT-032-15-03 | B78: Modificación de datos en resoluciones de operadoras de transporte | C78: 0 | D78: 0 | E78: 0 | F78: 0
A79: ANT-032-15-01 | B79: Rectificación de chasis y/o motor por remarcado (por error de tipeo) | C79: 0 | D79: 0 | E79: 0 | F79: 0
A80: ANT-032-06-05 | B80: Rectificación de número de identificación del vehículo VIN | C80: 0 | D80: 0 | E80: 0 | F80: 0
A81: ANT-032-13-02 | B81: Recuperación automática de puntos a la licencia de conducir por no incurrir en multas por infracciones de tránsito durante un año | C81: 0 | D81: 0 | E81: 0 | F81: 0
A82: ANT-042-02-05 | B82: Regularización de aulas en la escuela de capacitación para conductores profesionales y no profesionales (aumento o disminución de aulas) | C82: 0 | D82: 0 | E82: 0 | F82: 0
A83: ANT-039-06-04 | B83: Renovación de habilitación de vehículo de operadoras nacionales interprovinciales con permiso originario de prestación de servicios | C83: 0 | D83: 0 | E83: 0 | F83: 0
A84: ANT-037-01-03 | B84: Renovación de permiso de operación para operadoras de transporte de carga pesada | C84: 0 | D84: 0 | E84: 0 | F84: 0
A85: ANT-039-04-03 | B85: Renovación de vehículo de operadora de transporte intraprovincial o interprovincial (cambio de vehículo) | C85: 0 | D85: 0 | E85: 0 | F85: 0
A86: ANT-037-04-03 | B86: Renovación de vehículo para operadoras de transporte de carga pesada | C86: 0 | D86: 0 | E86: 0 | F86: 0
A87: ANT-038-02-04 | B87: Renovación de vehículo para operadoras de transporte mixto (cambio de vehículo) | C87: 0 | D87: 0 | E87: 0 | F87: 0
A88: ANT-039-01-03 | B88: Renovación del contrato de operación para la prestación del servicio de transporte público intraprovincial o interprovincial de pasajeros | C88: 0 | D88: 0 | E88: 0 | F88: 0
A89: ANT-032-01-03 | B89: Revocación de licencia de conducir por incapacidad física y mental | C89: 0 | D89: 0 | E89: 0 | F89: 0
A90: ANT-038-03-03 | B90: Solicitud de cambio de socio con vehículo para operadoras de transporte de carga mixta. | C90: 0 | D90: 0 | E90: 0 | F90: 0
A91: ANT-039-02-02 | B91: Autorización de escisión de operadoras de transporte público de pasajeros | C91: 1 | D91: 0 | E91: 0 | F91: 0
A92: ANT-034-03-04 | B92: Calificación de aplicativos móviles para personas naturales | C92: 1 | D92: 0 | E92: 0 | F92: 0
A93: ANT-037-01-02 | B93: Concesión de permiso de operación para operadoras de transporte de carga pesada | C93: 1 | D93: 0 | E93: 0 | F93: 0
A94: ANT-039-01-02 | B94: Concesión del contrato de operación para la prestación del servicio de transporte público intraprovincial o interprovincial de pasajeros | C94: 1 | D94: 0 | E94: 0 | F94: 0
A95: ANT-032-04-01 | B95: Desactivación de bloqueo de prohibición de enajenar vehículo por juicio, embargo, insolvencia o inventario | C95: 1 | D95: 0 | E95: 0 | F95: 0
A96: ANT-039-01-05 | B96: Emisión de reforma de estatutos de transporte intraprovincial o interprovincial por cambio de objeto social referente al tipo de servicio (cambio de modalidad) | C96: 1 | D96: 0 | E96: 0 | F96: 0
A97: ANT-032-09-07 | B97: Exoneración de multas por calendarización a vehículo no matriculado por problemas técnicos de fuerza mayor presentados en la entidad competente | C97: 1 | D97: 0 | E97: 0 | F97: 0
A98: ANT-038-02-02 | B98: Habilitación de vehículo para operadoras de transporte mixto | C98: 1 | D98: 1 | E98: 100 | F98: 10
A99: ANT-042-01-03 | B99: Habilitación técnica y operación de terminal terrestre | C99: 1 | D99: 0 | E99: 0 | F99: 0
A100: ANT-034-01-11 | B100: Homologación de vehículos eléctricos para carga, subcategoría N | C100: 1 | D100: 0 | E100: 0 | F100: 0
A101: ANT-034-01-03 | B101: Inclusión de versiones y/o aplicaciones en un modelo base homologado de vehículos automotores, subcategoría M1 | C101: 1 | D101: 0 | E101: 0 | F101: 0
A102: ANT-034-01-15 | B102: Inclusión de versiones y/o aplicaciones en un modelo base homologado para categoría M2 y M3 INEN de fabricación o ensamblaje nacional | C102: 1 | D102: 0 | E102: 0 | F102: 0
A103: ANT-042-02-10 | B103: Rectificación de nómina de alumnos graduados del curso de recuperación de puntos de licencia de conducir | C103: 1 | D103: 0 | E103: 0 | F103: 0
A104: ANT-039-03-04 | B104: Reversión de ruta y/o frecuencia de operadoras de transporte intraprovincial o interprovincial | C104: 1 | D104: 0 | E104: 0 | F104: 0
A105: ANT-042-01-01 | B105: Aprobación y tipología de ubicación de terminal terrestre | C105: 2 | D105: 0 | E105: 0 | F105: 0
A106: ANT-032-04-02 | B106: Desactivación de bloqueo de vehículo por haber cumplido el tiempo establecido de reserva de dominio por menaje de casa | C106: 2 | D106: 1 | E106: 50 | F106: 10
A107: ANT-034-02-04 | B107: Homologación de dispositivos y equipos tecnológicos para detección y notificación de infracciones de tránsito importados por parte de persona jurídica | C107: 2 | D107: 0 | E107: 0 | F107: 0
A108: ANT-034-02-02 | B108: Homologación de dispositivos y equipos tecnológicos para detección y notificación de infracciones de tránsito importados por parte de persona natural | C108: 2 | D108: 0 | E108: 0 | F108: 0
A109: ANT-034-02-10 | B109: Homologación de sistemas de posicionamiento y administración para taxis ejecutivos (GPS) | C109: 2 | D109: 0 | E109: 0 | F109: 0
A110: ANT-034-01-13 | B110: Inclusión de versiones y/o aplicaciones de modelo base de aprobado de vehículo incompleto - chasis motorizados para carrozaje nacional en categoría M2 y M3 INEN | C110: 2 | D110: 0 | E110: 0 | F110: 0
A111: ANT-034-01-17 | B111: Inclusión de versiones y/o aplicaciones en un modelo base homologado de motocicletas, tricimotos y demás similares nacionales, Subcategoría L. | C111: 2 | D111: 0 | E111: 0 | F111: 0
A112: ANT-032-01-04 | B112: Suspensión de licencia de conducir por no aprobación de pruebas de renovación o canje de licencia internacional de conducir o infracciones de tránsito que conlleven sanción | C112: 2 | D112: 0 | E112: 0 | F112: 0
A113: ANT-032-03-08 | B113: Activación de bloqueo de vehículo por retención vehicular | C113: 3 | D113: 0 | E113: 0 | F113: 0
A114: ANT-042-01-02 | B114: Aprobación de estudios y diseños arquitectónicos previos a la implementación de terminal terrestre | C114: 3 | D114: 0 | E114: 0 | F114: 0
A115: ANT-034-03-03 | B115: Calificación de aplicativos móviles para personas jurídicas | C115: 3 | D115: 0 | E115: 0 | F115: 0
A116: ANT-040-02-03 | B116: Emisión de permiso especial de origen para transporte internacional por cuenta propia | C116: 3 | D116: 0 | E116: 0 | F116: 0
A117: ANT-032-09-04 | B117: Exoneración de multas por calendarización a vehículos del sector público que hubieren sido entregados por parte de otras instituciones, por haber asumido los derechos y obligaciones por mandato de la ley | C117: 3 | D117: 0 | E117: 0 | F117: 0
A118: ANT-042-02-07 | B118: Habilitación de funcionamiento de la escuela de capacitación como centro de recuperación de puntos (convenio como centro de recuperación de puntos) | C118: 3 | D118: 0 | E118: 0 | F118: 0
A119: ANT-032-02-02 | B119: Inactivación de vehículo por robo | C119: 3 | D119: 0 | E119: 0 | F119: 0
A120: ANT-039-04-04 | B120: Racionalización de corredores viales a operadoras de transporte intraprovincial o interprovincial | C120: 3 | D120: 0 | E120: 0 | F120: 0
A121: ANT-042-02-09 | B121: Rectificación de nóminas de alumnos matriculados de escuelas de conducción profesionales (por alumno) | C121: 3 | D121: 0 | E121: 0 | F121: 0
A122: ANT-038-01-02 | B122: Renovación de permiso de operación para operadoras de transporte mixto | C122: 3 | D122: 0 | E122: 0 | F122: 0
A123: ANT-034-01-06 | B123: Homologación de vehículos importados completos categoría M2 INEN destinados al servicio transporte comercial (incluye microbús de hasta 5000 kg de peso) | C123: 4 | D123: 0 | E123: 0 | F123: 0
A124: ANT-032-03-04 | B124: Activación de bloqueo de reserva de dominio de vehículo por cupo discapacitado | C124: 4 | D124: 0 | E124: 0 | F124: 0
A125: ANT-032-03-07 | B125: Activación de bloqueo de vehículo por gemelo o clonado | C125: 4 | D125: 0 | E125: 0 | F125: 0
A126: ANT-032-03-03 | B126: Activación de bloqueo por reserva de dominio de vehículo de diplomático | C126: 4 | D126: 0 | E126: 0 | F126: 0
A127: ANT-032-12-05 | B127: Atención de denuncia respecto a posibles actos de corrupción | C127: 4 | D127: 0 | E127: 0 | F127: 0
A128: ANT-034-02-11 | B128: Homologación de simuladores de conducción y equipos psicosensométricos para personas jurídicas importados | C128: 4 | D128: 0 | E128: 0 | F128: 0
A129: ANT-034-01-08 | B129: Inclusión de versiones y/o aplicaciones en un modelo base homologado para subcategoría M2 | C129: 4 | D129: 0 | E129: 0 | F129: 0
A130: ANT-032-08-03 | B130: Ingreso de sentencia condenatoria (delitos de tránsito) | C130: 4 | D130: 0 | E130: 0 | F130: 0
A131: ANT-039-03-02 | B131: Modificación de frecuencia (cambio de horario) de operadora de transporte intraprovincial o interprovincial | C131: 4 | D131: 0 | E131: 0 | F131: 0
A132: ANT-032-15-02 | B132: Rectificación de resoluciones de operadoras de transporte | C132: 4 | D132: 2 | E132: 50 | F132: 10
A133: ANT-042-02-04 | B133: Regularización de vehículos en escuelas de capacitación para conductores profesionales y no profesionales (aumento o disminución de vehículos) | C133: 4 | D133: 0 | E133: 0 | F133: 0
A134: ANT-032-14-03 | B134: Atención al recurso extraordinario de revisión | C134: 5 | D134: 0 | E134: 0 | F134: 0
A135: ANT-032-12-03 | B135: Atención de felicitaciones respecto a los servicios que presta la ANT | C135: 5 | D135: 0 | E135: 0 | F135: 0
A136: ANT-042-02-06 | B136: Autorización de cambio de domicilio de la escuela de capacitación para conductores profesionales y no profesionales | C136: 5 | D136: 0 | E136: 0 | F136: 0
A137: ANT-036-01-03 | B137: Renovación del permiso de operación para operadoras de transporte turístico | C137: 5 | D137: 0 | E137: 0 | F137: 0
A138: ANT-041-01-01 | B138: Autorización para funcionamiento como compañía de renta de vehículos | C138: 6 | D138: 0 | E138: 0 | F138: 0
A139: ANT-034-01-10 | B139: Homologación de vehículos eléctricos, subcategoría M1 | C139: 6 | D139: 0 | E139: 0 | F139: 0
A140: ANT-032-03-01 | B140: Activación de bloqueo por prohibición de enajenar vehículo (por juicio, embargo, insolvencia o inventario) | C140: 7 | D140: 0 | E140: 0 | F140: 0
A141: ANT-041-02-02 | B141: Deshabilitación de vehículo en compañía de renta de vehículos | C141: 8 | D141: 0 | E141: 0 | F141: 0
A142: ANT-032-09-03 | B142: Exoneración de multas por calendarización a vehículo que se encontraba dentro de un proceso judicial | C142: 8 | D142: 0 | E142: 0 | F142: 0
A143: ANT-038-01-01 | B143: Concesión de permiso de operación para operadoras de transporte mixto | C143: 9 | D143: 0 | E143: 0 | F143: 0
A144: ANT-032-11-05 | B144: Devolución de pagos por sentencias absolutorias de infracciones | C144: 9 | D144: 0 | E144: 0 | F144: 0
A145: ANT-032-03-02 | B145: Activación de bloqueo por reserva de dominio de vehículo por menaje de casa | C145: 11 | D145: 0 | E145: 0 | F145: 0
A146: ANT-032-12-04 | B146: Atención de denuncia respecto al Transporte Terrestre, Tránsito y Seguridad Vial | C146: 11 | D146: 0 | E146: 0 | F146: 0
A147: ANT-042-02-02 | B147: Autorización para funcionamiento por primera vez de escuelas de capacitación o sucursales para conductores profesionales y no profesionales | C147: 11 | D147: 0 | E147: 0 | F147: 0
A148: ANT-042-02-08 | B148: Rectificación de nóminas de alumnos graduados de escuelas de conducción profesionales (por alumno) | C148: 11 | D148: 0 | E148: 0 | F148: 0
A149: ANT-032-02-01 | B149: Inactivación definitiva voluntaria de vehículo por chatarrización | C149: 12 | D149: 0 | E149: 0 | F149: 0
A150: ANT-034-01-04 | B150: Inclusión de versiones y/o aplicaciones en un modelo base homologado de vehículos automotores para carga subcategoría N | C150: 12 | D150: 0 | E150: 0 | F150: 0
A151: ANT-042-02-01 | B151: Autorización para la creación de escuela de capacitación o sucursales para conductores profesionales y no profesionales | C151: 14 | D151: 0 | E151: 0 | F151: 0
A152: ANT-039-03-03 | B152: Modificación y/o alargue de ruta de operadora de transporte intraprovincial o interprovincial | C152: 15 | D152: 0 | E152: 0 | F152: 0
A153: ANT-038-02-01 | B153: Emisión de incremento de cupo para operadoras de transporte mixto | C153: 16 | D153: 0 | E153: 0 | F153: 0
A154: ANT-039-03-01 | B154: Emisión de incremento de frecuencia de operadoras de transporte intraprovincial o interprovincial | C154: 16 | D154: 0 | E154: 0 | F154: 0
A155: ANT-036-01-02 | B155: Emisión de permiso de operación a personas jurídicas en la modalidad de transporte turístico | C155: 19 | D155: 0 | E155: 0 | F155: 0
A156: ANT-032-08-11 | B156: Actualización de pago de multas por infracciones de tránsito | C156: 20 | D156: 0 | E156: 0 | F156: 0
A157: ANT-039-01-06 | B157: Concesión de nueva ruta y frecuencia de operadora de transporte intraprovincial o interprovincial | C157: 20 | D157: 0 | E157: 0 | F157: 0
A158: ANT-032-11-04 | B158: Devolución de pagos indebido para personas jurídicas | C158: 21 | D158: 0 | E158: 0 | F158: 0
A159: ANT-032-14-01 | B159: Atención al recurso de apelación | C159: 22 | D159: 0 | E159: 0 | F159: 0
A160: ANT-032-01-02 | B160: Anulación de licencia de conducir por acto viciado o sin requisitos | C160: 24 | D160: 0 | E160: 0 | F160: 0
A161: ANT-034-01-07 | B161: Homologación de vehículos importados completos categoría M3 INEN destinados al servicio transporte público y comercial (incluye microbús desde 5000 kg de peso) | C161: 25 | D161: 0 | E161: 0 | F161: 0
A162: ANT-036-01-06 | B162: Emisión de Documento Único de Transporte Turístico (DUTT) a operadoras nacionales de turismo que realizan transporte internacional turístico de pasajeros (Ecuador - Colombia) | C162: 26 | D162: 0 | E162: 0 | F162: 0
A163: ANT-034-03-07 | B163: Emisión de licencia de importación de un lote de tricimotos | C163: 27 | D163: 0 | E163: 0 | F163: 0
A164: ANT-039-01-07 | B164: Emisión de dimensionamiento de flota vehicular para operadoras de transporte intraprovincial o interprovincial | C164: 28 | D164: 0 | E164: 0 | F164: 0
A165: ANT-032-13-04 | B165: Registro de puntos recuperados que no se cargaron a tiempo por pago tardío de infracciones | C165: 31 | D165: 0 | E165: 0 | F165: 0
A166: ANT-032-08-09 | B166: Anulación de multas por infracciones de tránsito por prescripción | C166: 32 | D166: 0 | E166: 0 | F166: 0
A167: ANT-036-02-02 | B167: Deshabilitación de vehículo para operadoras de transporte turístico | C167: 33 | D167: 0 | E167: 0 | F167: 0
A168: ANT-032-09-02 | B168: Exoneración de multas por calendarización a vehículo que ha sido objeto de robo | C168: 33 | D168: 0 | E168: 0 | F168: 0
A169: ANT-037-04-06 | B169: Desvinculación de flota vehicular y unidades de carga de operadoras nacionales que realizan transporte terrestre internacional | C169: 35 | D169: 0 | E169: 0 | F169: 0
A170: ANT-032-13-01 | B170: Autorización para matrícula e inicio de clases de centros de recuperación de puntos para conductores profesionales y no profesionales | C170: 41 | D170: 0 | E170: 0 | F170: 0
A171: ANT-032-06-09 | B171: Actualización del beneficiario o arrendatario de un fideicomiso o leasing | C171: 44 | D171: 0 | E171: 0 | F171: 0
A172: ANT-036-01-04 | B172: Emisión de incremento de cupo para operadoras de transporte turístico | C172: 45 | D172: 0 | E172: 0 | F172: 0
A173: ANT-032-08-08 | B173: Actualización de registro de pagos de citaciones de tránsito que no dieron de baja en el sistema "pagos en línea" | C173: 46 | D173: 2 | E173: 4.347826087 | F173: 10
A174: ANT-041-02-01 | B174: Habilitación de vehículo en compañía de renta de vehículos | C174: 50 | D174: 0 | E174: 0 | F174: 0
A175: ANT-037-05-01 | B175: Registro de flota de operadora extranjera que requiere circular en el territorio nacional | C175: 53 | D175: 0 | E175: 0 | F175: 0
A176: ANT-038-01-03 | B176: Emisión de informe previo a la constitución jurídica para operadoras de transporte mixto | C176: 54 | D176: 0 | E176: 0 | F176: 0
A177: ANT-034-01-14 | B177: Homologación de vehículos de subtecategoría M2 y M3 INEN de fabricación o ensamblaje nacional | C177: 61 | D177: 0 | E177: 0 | F177: 0
A178: ANT-036-02-03 | B178: Renovación de vehículo para operadoras de transporte turístico (Cambio de vehículo) | C178: 61 | D178: 0 | E178: 0 | F178: 0
A179: ANT-036-01-01 | B179: Emisión de informe previo a la constitución jurídica para compañías o cooperativas de transporte turístico | C179: 66 | D179: 0 | E179: 0 | F179: 0
A180: ANT-036-02-01 | B180: Habilitación de vehículo para operadoras de transporte turístico | C180: 74 | D180: 0 | E180: 0 | F180: 0
A181: ANT-039-05-02 | B181: Autorización de cambio de socio con habilitación de vehículo de operadoras de transporte intraprovincial o interprovincial | C181: 79 | D181: 0 | E181: 0 | F181: 0
A182: ANT-032-05-03 | B182: Actualización o registro de información de licencia de conducir | C182: 82 | D182: 0 | E182: 0 | F182: 0
A183: ANT-039-05-01 | B183: Autorización de cambio de socio y vehículo de operadora de transporte intraprovincial o interprovincial | C183: 83 | D183: 0 | E183: 0 | F183: 0
A184: ANT-039-05-03 | B184: Autorización de cambio de socio sin vehículo de operadoras de transporte intraprovincial o interprovincial | C184: 98 | D184: 0 | E184: 0 | F184: 0
A185: ANT-033-01-06 | B185: Emisión de certificado de conformidad de vehículo para cambio de servicio | C185: 103 | D185: 0 | E185: 0 | F185: 0
A186: ANT-032-09-01 | B186: Exoneración de multas por calendarización a vehículo que se encuentra en taller mecánico y no se presenta a revisión técnica vehicular | C186: 103 | D186: 0 | E186: 0 | F186: 0
A187: ANT-032-12-06 | B187: Atención de consultas jurídicas sobre los servicios que presta la ANT | C187: 110 | D187: 1 | E187: 0.9090909091 | F187: 4
A188: ANT-034-01-02 | B188: Homologación de vehículos automotores para carga, subcategoría N | C188: 112 | D188: 0 | E188: 0 | F188: 0
A189: ANT-042-03-02 | B189: Emisión de permiso de aprendizaje de manejo para alumnos de escuelas de capacitación de conductores profesionales y no profesionales | C189: 114 | D189: 0 | E189: 0 | F189: 0
A190: ANT-034-01-16 | B190: Homologación de motocicletas, tricimotos y demás similares nacionales, subcategoría L | C190: 126 | D190: 0 | E190: 0 | F190: 0
A191: ANT-034-01-01 | B191: Homologación de vehículos automotores, subcategoría M1 | C191: 175 | D191: 0 | E191: 0 | F191: 0
A192: ANT-037-04-05 | B192: Habilitación de vehículo y registro de unidad de carga de operadoras nacionales que cuentan con certificado de idoneidad | C192: 199 | D192: 0 | E192: 0 | F192: 0
A193: ANT-042-04-04 | B193: Autorización de canje de licencia de conducir extranjera por ecuatoriana | C193: 200 | D193: 0 | E193: 0 | F193: 0
A194: ANT-032-12-01 | B194: Atención de queja respecto a los servicios que presta la ANT | C194: 219 | D194: 102 | E194: 46.57534247 | F194: 10
A195: ANT-032-13-03 | B195: Recuperación de puntos a la licencia de conducir por aprobación de curso en un centro de recuperación de puntos | C195: 256 | D195: 31 | E195: 12.109375 | F195: 10
A196: ANT-032-05-02 | B196: Actualización o registro de información de persona jurídica | C196: 264 | D196: 0 | E196: 0 | F196: 0
A197: ANT-033-01-02 | B197: Emisión de certificado de historial de infracciones del vehículo persona natural y jurídica | C197: 264 | D197: 0 | E197: 0 | F197: 0
A198: ANT-039-04-01 | B198: Habilitación de vehículo de operadora de transporte intraprovincial o interprovincial | C198: 283 | D198: 0 | E198: 0 | F198: 0
A199: ANT-032-11-03 | B199: Devolución de pagos indebidos para personas naturales | C199: 305 | D199: 0 | E199: 0 | F199: 0
A200: ANT-039-04-02 | B200: Deshabilitación de vehículo de operadora de transporte intraprovincial o interprovincial | C200: 315 | D200: 0 | E200: 0 | F200: 0
A201: ANT-042-02-03 | B201: Autorización de período de matrículas e inicio de clases y/o prórrogas de la escuela de capacitación para conductores profesionales y no profesionales | C201: 320 | D201: 0 | E201: 0 | F201: 0
... 25 more rows

Sheet COSTO ADMINISTRACIÓN PÚBLICA
A1: PRIORIZACIÓN DE TRÁMITES ADMINISTRATIVOS
A2: COSTOS PARA LA ADMINISTRACIÓN PÚBLICA
A4: IDENTIFICADOR | B4: TRÁMITE | C4: INSUMOS PARA COSTO | F4: COSTO PARA LA ADM. PÚBLICA | H4: SBU | I4: 400
C5: TIEMPO (HORAS) | D5: COSTO PERSONAL | E5: COSTO RECURSOS
A6: ANT-032-06-04 | B6: Actualización de cambio de color primario y/o secundario del vehículo | C6: 1 | D6: =C6*$I$4/160 -> 2.5 | E6: 37.37 | F6: =D6+E6 -> 39.87
A7: ANT-032-06-11 | B7: Actualización de cambio de número de placa de vehículo adquirido mediante remate | C7: 8 | D7: 20 | E7: 24.2 | F7: 44.2
A8: ANT-032-06-12 | B8: Actualización de cambio de número de placa de vehículo gemelo o clonado | C8: 96 | D8: 240 | E8: 9.2 | F8: 249.2
A9: ANT-032-06-01 | B9: Actualización de chasis y/o motor por remarcado | C9: 160 | D9: 400 | E9: 28 | F9: 428
A10: ANT-032-06-10 | B10: Actualización de dominio por prescripción adquisitiva de vehículo | C10: 8 | D10: 20 | E10: 21 | F10: 41
A11: ANT-032-06-06 | B11: Actualización de información por cambio de servicio de transporte | C11: 1 | D11: 2.5 | E11: 26 | F11: 28.5
A12: ANT-032-08-02 | B12: Actualización de registro de pagos de delitos de tránsito | C12: 320 | D12: 800 | E12: 15.37 | F12: 815.37
A13: ANT-032-06-07 | B13: Actualización o registro de fecha de revisión técnica vehicular | C13: 1 | D13: 2.5 | E13: 29.5 | F13: 32
A14: ANT-032-08-01 | B14: Anulación de multa por infracciones de tránsito por sentencia absolutoria | C14: 320 | D14: 800 | E14: 14.8 | F14: 814.8
A15: ANT-032-08-06 | B15: Anulación de multas por infracciones de tránsito por duplicidad | C15: 320 | D15: 800 | E15: 17.4 | F15: 817.4
A16: ANT-032-08-10 | B16: Anulación de multas por infracciones de tránsito por fallecimiento | C16: 320 | D16: 800 | E16: 19 | F16: 819
A17: ANT-034-01-12 | B17: Aprobación de vehículo incompleto - chasis motorizado para carrozaje nacional en categorías M2 y M3 INEN | C17: 240 | D17: 600 | E17: 1004.7 | F17: 1604.7
A18: ANT-032-14-02 | B18: Atención al recurso de reposición | C18: 360 | D18: 900 | E18: 3 | F18: 903
A19: ANT-042-04-09 | B19: Autorización de cambio de categoría de licencia Tipo F a tipología anteriormente obtenido No Profesional | C19: 1 | D19: 2.5 | E19: 20.57 | F19: 23.07
A20: ANT-037-06-02 | B20: Autorización de cambio de socio con habilitación de vehículo para operadoras de transporte de carga pesada | C20: 80 | D20: 200 | E20: 34.57 | F20: 234.57
A21: ANT-038-03-02 | B21: Autorización de cambio de socio con habilitación de vehículo para operadoras de transporte mixto | C21: 80 | D21: 200 | E21: 1536.07 | F21: 1736.07
A22: ANT-038-03-01 | B22: Autorización de cambio de socio sin vehículo para operadoras de transporte mixto | C22: 80 | D22: 200 | E22: 28.19 | F22: 228.19
A23: ANT-037-06-01 | B23: Autorización de cambio de socio sin vehículo para operadoras de transporte terrestre de carga pesada | C23: 64 | D23: 160 | E23: 6.57 | F23: 166.57
A24: ANT-037-06-03 | B24: Autorización de cambio de socio y vehículo para operadoras de transporte de carga pesada | C24: 80 | D24: 200 | E24: 436.07 | F24: 636.07
A25: ANT-039-02-01 | B25: Autorización de fusión de operadoras de transporte público de pasajeros | C25: 960 | D25: 2400 | E25: 3 | F25: 2403
A26: ANT-040-02-02 | B26: Autorización de registro de flota vehicular en permiso especial complementario para transporte terrestre internacional por cuenta propia | C26: 160 | D26: 400 | E26: 44.5 | F26: 444.5
A27: ANT-039-06-02 | B27: Autorización de registro de vehículos de operadoras extranjeras de pasajeros que requieren circular en el territorio nacional | C27: 160 | D27: 400 | E27: 6 | F27: 406
A28: ANT-035-01-01 | B28: Autorización de uso de polarizados en vehículos | C28: 160 | D28: 400 | E28: 4.07 | F28: 404.07
A29: ANT-039-06-01 | B29: Autorización del permiso de prestación de servicios a operadoras extranjeras registradas en los países miembros de la Comunidad Andina de Naciones que requieran realizar operaciones de Transporte de carga en el Ecuador. | C29: 160 | D29: 400 | E29: 43 | F29: 443
A30: ANT-034-03-05 | B30: Calificación de aplicativos móviles para personas jurídicas | C30: 120 | D30: 300 | E30: 22.7 | F30: 322.7
A31: ANT-034-03-02 | B31: Calificación de empresas fabricantes y/o ensambladoras de carrocerías de vehículos tipo M2 y M3 INEN para personas jurídicas | C31: 240 | D31: 600 | E31: 18.57 | F31: 618.57
A32: ANT-034-03-01 | B32: Calificación de empresas fabricantes y/o ensambladoras de carrocerías de vehículos tipo M2 y M3 INEN para personas naturales | C32: 240 | D32: 600 | E32: 33.57 | F32: 633.57
A33: ANT-040-01-01 | B33: Concesión de autorización del transporte por cuenta propia nacional a personas naturales o jurídicas | C33: 160 | D33: 400 | E33: 130.77 | F33: 530.77
A34: ANT-032-04-04 | B34: Desactivación de bloqueo de reserva de dominio de vehículo por cupo discapacitado | C34: 1 | D34: 2.5 | E34: 15.27 | F34: 17.77
A35: ANT-032-04-03 | B35: Desactivación de bloqueo de reserva de dominio de vehículo por diplomático | C35: 1 | D35: 2.5 | E35: 53.97 | F35: 56.47
A36: ANT-032-04-07 | B36: Desactivación de bloqueo de vehículo por retención vehicular | C36: 160 | D36: 400 | E36: 23.8 | F36: 423.8
A37: ANT-040-03-02 | B37: Deshabilitación de un vehículo de una autorización de transporte por cuenta propia | C37: 24 | D37: 60 | E37: 2.07 | F37: 62.07
A38: ANT-037-04-02 | B38: Deshabilitación de vehículo para operadoras de transporte de carga pesada | C38: 80 | D38: =C38*$I$4/160 -> 200 | E38: 3.57 | F38: =D38+E38 -> 203.57
A39: ANT-038-02-03 | B39: Deshabilitación de vehículo para operadoras de transporte mixto | C39: 80 | D39: 200 | E39: 3.57 | F39: 203.57
A40: ANT-039-06-05 | B40: Desvinculación de vehículo de operadoras nacionales interprovinciales con permiso originario de prestación de servicios | C40: 160 | D40: 400 | E40: 6 | F40: 406
A41: ANT-037-01-05 | B41: Emisión de Certificado de Idoneidad de operadora nacional que requiere realizar operaciones en los países miembros de la CAN. | C41: 240 | D41: 600 | E41: 17 | F41: 617
A42: ANT-042-04-03 | B42: Emisión de duplicado de licencia profesional y NO profesional | C42: 0.42 | D42: 1.05 | E42: 2.07 | F42: 3.12
A43: ANT-042-05-04 | B43: Emisión de duplicado, cambio de servicio y/o reemplazos de placas para motos | C43: 240 | D43: 600 | E43: 4.5 | F43: 604.5
A44: ANT-037-03-01 | B44: Emisión de incremento de cupo para operadoras de transporte de carga pesada | C44: 480 | D44: 1200 | E44: 34.57 | F44: 1234.57
A45: ANT-036-01-05 | B45: Emisión de informe favorable previo a la reforma de estatutos para compañías o cooperativas de transporte turístico | C45: 960 | D45: 2400 | E45: 217.65 | F45: 2617.65
A46: ANT-039-01-01 | B46: Emisión de informe previo a la constitución jurídica de operadoras de transporte intraprovincial o interprovincial | C46: 960 | D46: 2400 | E46: 610.57 | F46: 3010.57
A47: ANT-037-01-01 | B47: Emisión de informe previo a la constitución jurídica para compañías de transporte de carga pesada | C47: 360 | D47: 900 | E47: 408.07 | F47: 1308.07
A48: ANT-037-01-04 | B48: Emisión de informe previo a la reforma de estatutos para operadoras de transporte terrestre de carga pesada | C48: 360 | D48: 900 | E48: 538.89 | F48: 1438.89
A49: ANT-038-01-04 | B49: Emisión de informe previo a la reforma de estatutos para operadoras de transporte terrestre mixto | C49: 960 | D49: 2400 | E49: 406.57 | F49: 2806.57
A50: ANT-042-04-08 | B50: Emisión de licencia de conducir por primera vez no profesional tipo: F | C50: 1 | D50: 2.5 | E50: 48 | F50: 50.5
A51: ANT-036-01-07 | B51: Emisión de Permiso de Circuito Cerrado a operadoras nacionales de turismo que realizan transporte internacional turístico de pasajeros (Ecuador - Perú) | C51: 120 | D51: 300 | E51: 1010.5 | F51: 1310.5
A52: ANT-042-03-01 | B52: Emisión de permiso de conducción para menor adulto (Licencia NO Profesional) | C52: 3 | D52: 7.5 | E52: 16.14 | F52: 23.64
A53: ANT-037-02-01 | B53: Emisión de Permiso de Prestación de Servicios de operadora extranjera que requiere circular en el territorio nacional (PPS) | C53: 240 | D53: 600 | E53: 69.5 | F53: 669.5
A54: ANT-040-02-01 | B54: Emisión de permiso especial complementario para transporte terrestre internacional por cuenta propia a empresas extranjeras | C54: 160 | D54: 400 | E54: 407.5 | F54: 807.5
A55: ANT-042-04-10 | B55: Emisión de permiso internacional para conductores profesionales y no profesionales | C55: 1 | D55: 2.5 | E55: 96.07 | F55: 98.57
A56: ANT-039-01-04 | B56: Emisión de reforma de estatutos de transporte intraprovincial o interprovincial por cambio de objeto social de transporte y otros a exclusivo | C56: 480 | D56: =C56*$I$4/160 -> 1200 | E56: 391.57 | F56: =D56+E56 -> 1591.57
A57: ANT-032-09-05 | B57: Exoneración de multas por calendarización a vehículos del sector público por retraso en la certificación respecto a la asignación presupuestaria | C57: 160 | D57: 400 | E57: 4.5 | F57: =D57+E57 -> 404.5
A58: ANT-032-09-06 | B58: Exoneración de multas por calendarización a vehículos que previa su entrega a una institución pública se hubieren encontrado incautados por orden judicial | C58: 160 | D58: 400 | E58: 3 | F58: 403
A59: ANT-040-03-03 | B59: Habilitación de nuevos vehículos con permiso especial de origen para transporte terrestre internacional por cuenta propia | C59: 160 | D59: 400 | E59: 427.5 | F59: 827.5
A60: ANT-040-03-01 | B60: Habilitación de un vehículo de una autorización de transporte por cuenta propia | C60: 160 | D60: 400 | E60: 874.07 | F60: 1274.07
A61: ANT-039-06-03 | B61: Habilitación de vehículo a operadoras nacionales interprovinciales con permiso originario de prestación de servicios | C61: 160 | D61: 400 | E61: 406 | F61: 806
A62: ANT-037-04-01 | B62: Habilitación de vehículo para operadoras de transporte de carga pesada | C62: 480 | D62: 1200 | E62: 1048.57 | F62: 2248.57
A63: ANT-034-02-09 | B63: Homologación de dispositivo de medición, control y seguridad "Disco Pare" importados para personas jurídicas | C63: 240 | D63: 600 | E63: 757.57 | F63: 1357.57
A64: ANT-034-02-08 | B64: Homologación de dispositivo de medición, control y seguridad "Disco Pare" importados para personas naturales | C64: 240 | D64: 600 | E64: 118.25 | F64: 718.25
A65: ANT-034-02-07 | B65: Homologación de dispositivo de medición, control y seguridad "Disco Pare" nacionales para personas jurídicas | C65: 240 | D65: 600 | E65: 714.07 | F65: 1314.07
A66: ANT-034-02-06 | B66: Homologación de dispositivo de medición, control y seguridad "Disco Pare" nacionales para personas naturales | C66: 240 | D66: 600 | E66: 120.07 | F66: 720.07
A67: ANT-034-02-03 | B67: Homologación de dispositivos y equipos tecnológicos para detección y notificación de infracciones de tránsito nacionales por parte de persona jurídica | C67: 240 | D67: 600 | E67: 142.57 | F67: 742.57
A68: ANT-034-02-01 | B68: Homologación de dispositivos y equipos tecnológicos para detección y notificación de infracciones de tránsito nacionales por parte de persona natural | C68: 240 | D68: 600 | E68: 150.07 | F68: 750.07
A69: ANT-042-04-05 | B69: Homologación de licencia de conducir extranjera por la ecuatoriana | C69: 1 | D69: 2.5 | E69: 8.07 | F69: 10.57
A70: ANT-034-02-12 | B70: Homologación de simuladores de conducción y equipos psicosensométricos para personas jurídicas nacionales | C70: 240 | D70: 600 | E70: 157.77 | F70: 757.77
A71: ANT-034-02-05 | B71: Homologación de taxímetro (dispositivos de medición, control y seguridad) | C71: 240 | D71: 600 | E71: 208.57 | F71: 808.57
A72: ANT-034-01-05 | B72: Homologación de vehículos importados completos categoría M2 INEN destinados al servicio transporte público (incluye microbús de hasta 5000 kg de peso) | C72: 120 | D72: 300 | E72: 135.07 | F72: 435.07
A73: ANT-034-02-13 | B73: Homologación del sistema tecnológico de recaudo electrónico de transporte público intracantonal | C73: 240 | D73: 600 | E73: 154.57 | F73: 754.57
A74: ANT-032-08-04 | B74: Impugnación de multas por infracciones de tránsito | C74: 320 | D74: 800 | E74: 4.5 | F74: 804.5
A75: ANT-034-01-09 | B75: Inclusión de versiones y/o aplicaciones en un modelo base homologado para subcategoría M3 | C75: 50 | D75: 125 | E75: 948 | F75: 1073
A76: ANT-032-07-01 | B76: Levantamiento de revocatoria o anulación de licencias de conducir | C76: 160 | D76: 400 | E76: 18.02 | F76: 418.02
A77: ANT-032-07-02 | B77: Levantamiento de suspensión de licencia de conducir por aprobación de pruebas de renovación o canje de licencia internacional de conducir o infracciones de tránsito que conlleven sanción | C77: 1 | D77: 2.5 | E77: 763.44 | F77: 765.94
A78: ANT-037-04-04 | B78: Matriculación de unidades de carga para operadoras de transporte terrestre de carga pesada | C78: 480 | D78: 1200 | E78: 152.57 | F78: 1352.57
A79: ANT-032-15-03 | B79: Modificación de datos en resoluciones de operadoras de transporte | C79: 160 | D79: 400 | E79: 3 | F79: 403
A80: ANT-032-15-01 | B80: Rectificación de chasis y/o motor por remarcado (por error de tipeo) | C80: 160 | D80: 400 | E80: 24.5 | F80: 424.5
A81: ANT-032-06-05 | B81: Rectificación de número de identificación del vehículo VIN | C81: 1 | D81: 2.5 | E81: 32.4 | F81: 34.9
A82: ANT-032-13-02 | B82: Recuperación automática de puntos a la licencia de conducir por no incurrir en multas por infracciones de tránsito durante un año | C82: 480 | D82: 1200 | E82: 0 | F82: 1200
A83: ANT-042-02-05 | B83: Regularización de aulas en la escuela de capacitación para conductores profesionales y no profesionales (aumento o disminución de aulas) | C83: 360 | D83: 900 | E83: 357 | F83: 1257
A84: ANT-039-06-04 | B84: Renovación de habilitación de vehículo de operadoras nacionales interprovinciales con permiso originario de prestación de servicios | C84: 160 | D84: 400 | E84: 406 | F84: 806
A85: ANT-037-01-03 | B85: Renovación de permiso de operación para operadoras de transporte de carga pesada | C85: 240 | D85: 600 | E85: 554.27 | F85: 1154.27
A86: ANT-039-04-03 | B86: Renovación de vehículo de operadora de transporte intraprovincial o interprovincial (cambio de vehículo) | C86: 160 | D86: 400 | E86: 1532.73 | F86: 1932.73
A87: ANT-037-04-03 | B87: Renovación de vehículo para operadoras de transporte de carga pesada | C87: 80 | D87: 200 | E87: 6.57 | F87: 206.57
A88: ANT-038-02-04 | B88: Renovación de vehículo para operadoras de transporte mixto (cambio de vehículo) | C88: 80 | D88: 200 | E88: 6.57 | F88: 206.57
A89: ANT-039-01-03 | B89: Renovación del contrato de operación para la prestación del servicio de transporte público intraprovincial o interprovincial de pasajeros | C89: 320 | D89: 800 | E89: 1552.57 | F89: 2352.57
A90: ANT-032-01-03 | B90: Revocación de licencia de conducir por incapacidad física y mental | C90: 160 | D90: 400 | E90: 16.7 | F90: 416.7
A91: ANT-038-03-03 | B91: Solicitud de cambio de socio con vehículo para operadoras de transporte de carga mixta. | C91: 80 | D91: 200 | E91: 34.57 | F91: 234.57
A92: ANT-039-02-02 | B92: Autorización de escisión de operadoras de transporte público de pasajeros | C92: 960 | D92: 2400 | E92: 3 | F92: 2403
A93: ANT-034-03-04 | B93: Calificación de aplicativos móviles para personas naturales | C93: 240 | D93: 600 | E93: 113.57 | F93: 713.57
A94: ANT-037-01-02 | B94: Concesión de permiso de operación para operadoras de transporte de carga pesada | C94: 480 | D94: 1200 | E94: 198 | F94: 1398
A95: ANT-039-01-02 | B95: Concesión del contrato de operación para la prestación del servicio de transporte público intraprovincial o interprovincial de pasajeros | C95: 480 | D95: 1200 | E95: 1551.07 | F95: 2751.07
A96: ANT-032-04-01 | B96: Desactivación de bloqueo de prohibición de enajenar vehículo por juicio, embargo, insolvencia o inventario | C96: 160 | D96: 400 | E96: 30.07 | F96: 430.07
A97: ANT-039-01-05 | B97: Emisión de reforma de estatutos de transporte intraprovincial o interprovincial por cambio de objeto social referente al tipo de servicio (cambio de modalidad) | C97: 480 | D97: 1200 | E97: 409.57 | F97: 1609.57
A98: ANT-032-09-07 | B98: Exoneración de multas por calendarización a vehículo no matriculado por problemas técnicos de fuerza mayor presentados en la entidad competente | C98: 160 | D98: 400 | E98: 9.2 | F98: 409.2
A99: ANT-038-02-02 | B99: Habilitación de vehículo para operadoras de transporte mixto | C99: 80 | D99: 200 | E99: 1548.57 | F99: 1748.57
A100: ANT-042-01-03 | B100: Habilitación técnica y operación de terminal terrestre | C100: 720 | D100: 1800 | E100: 43004.5 | F100: 44804.5
A101: ANT-034-01-11 | B101: Homologación de vehículos eléctricos para carga, subcategoría N | C101: 120 | D101: 300 | E101: 1081.07 | F101: 1381.07
A102: ANT-034-01-03 | B102: Inclusión de versiones y/o aplicaciones en un modelo base homologado de vehículos automotores, subcategoría M1 | C102: 50 | D102: 125 | E102: 483.57 | F102: 608.57
A103: ANT-034-01-15 | B103: Inclusión de versiones y/o aplicaciones en un modelo base homologado para categoría M2 y M3 INEN de fabricación o ensamblaje nacional | C103: 120 | D103: 300 | E103: 751.07 | F103: 1051.07
A104: ANT-042-02-10 | B104: Rectificación de nómina de alumnos graduados del curso de recuperación de puntos de licencia de conducir | C104: 24 | D104: 60 | E104: 6 | F104: 66
A105: ANT-039-03-04 | B105: Reversión de ruta y/o frecuencia de operadoras de transporte intraprovincial o interprovincial | C105: 480 | D105: 1200 | E105: 108.57 | F105: 1308.57
A106: ANT-042-01-01 | B106: Aprobación y tipología de ubicación de terminal terrestre | C106: 360 | D106: 900 | E106: 90668.22 | F106: 91568.22
A107: ANT-032-04-02 | B107: Desactivación de bloqueo de vehículo por haber cumplido el tiempo establecido de reserva de dominio por menaje de casa | C107: 1 | D107: 2.5 | E107: 22.77 | F107: 25.27
A108: ANT-034-02-04 | B108: Homologación de dispositivos y equipos tecnológicos para detección y notificación de infracciones de tránsito importados por parte de persona jurídica | C108: 240 | D108: 600 | E108: 207.07 | F108: 807.07
A109: ANT-034-02-02 | B109: Homologación de dispositivos y equipos tecnológicos para detección y notificación de infracciones de tránsito importados por parte de persona natural | C109: 240 | D109: 600 | E109: 163.57 | F109: 763.57
A110: ANT-034-02-10 | B110: Homologación de sistemas de posicionamiento y administración para taxis ejecutivos (GPS) | C110: 240 | D110: 600 | E110: 166.57 | F110: 766.57
A111: ANT-034-01-13 | B111: Inclusión de versiones y/o aplicaciones de modelo base de aprobado de vehículo incompleto - chasis motorizados para carrozaje nacional en categoría M2 y M3 INEN | C111: 120 | D111: 300 | E111: 933.57 | F111: 1233.57
A112: ANT-034-01-17 | B112: Inclusión de versiones y/o aplicaciones en un modelo base homologado de motocicletas, tricimotos y demás similares nacionales, Subcategoría L. | C112: 120 | D112: 300 | E112: 3.57 | F112: 303.57
A113: ANT-032-01-04 | B113: Suspensión de licencia de conducir por no aprobación de pruebas de renovación o canje de licencia internacional de conducir o infracciones de tránsito que conlleven sanción | C113: 160 | D113: 400 | E113: 16.7 | F113: 416.7
A114: ANT-032-03-08 | B114: Activación de bloqueo de vehículo por retención vehicular | C114: 160 | D114: 400 | E114: 28 | F114: 428
A115: ANT-042-01-02 | B115: Aprobación de estudios y diseños arquitectónicos previos a la implementación de terminal terrestre | C115: 720 | D115: 1800 | E115: 85003.05 | F115: 86803.05
A116: ANT-034-03-03 | B116: Calificación de aplicativos móviles para personas jurídicas | C116: 240 | D116: 600 | E116: 130.07 | F116: 730.07
A117: ANT-040-02-03 | B117: Emisión de permiso especial de origen para transporte internacional por cuenta propia | C117: 160 | D117: 400 | E117: 407.5 | F117: 807.5
A118: ANT-032-09-04 | B118: Exoneración de multas por calendarización a vehículos del sector público que hubieren sido entregados por parte de otras instituciones, por haber asumido los derechos y obligaciones por mandato de la ley | C118: 160 | D118: 400 | E118: 4.5 | F118: 404.5
A119: ANT-042-02-07 | B119: Habilitación de funcionamiento de la escuela de capacitación como centro de recuperación de puntos (convenio como centro de recuperación de puntos) | C119: 240 | D119: 600 | E119: 8.07 | F119: 608.07
A120: ANT-032-02-02 | B120: Inactivación de vehículo por robo | C120: 1 | D120: =C120*$I$4/160 -> 2.5 | E120: 24.37 | F120: 26.87
A121: ANT-039-04-04 | B121: Racionalización de corredores viales a operadoras de transporte intraprovincial o interprovincial | C121: 960 | D121: 2400 | E121: 108.57 | F121: =D121+E121 -> 2508.57
A122: ANT-042-02-09 | B122: Rectificación de nóminas de alumnos matriculados de escuelas de conducción profesionales (por alumno) | C122: 24 | D122: 60 | E122: 2.07 | F122: 62.07
A123: ANT-038-01-02 | B123: Renovación de permiso de operación para operadoras de transporte mixto | C123: 240 | D123: 600 | E123: 6.57 | F123: 606.57
A124: ANT-034-01-06 | B124: Homologación de vehículos importados completos categoría M2 INEN destinados al servicio transporte comercial (incluye microbús de hasta 5000 kg de peso) | C124: 120 | D124: 300 | E124: 148.57 | F124: 448.57
A125: ANT-032-03-04 | B125: Activación de bloqueo de reserva de dominio de vehículo por cupo discapacitado | C125: 160 | D125: 400 | E125: 13.77 | F125: 413.77
A126: ANT-032-03-07 | B126: Activación de bloqueo de vehículo por gemelo o clonado | C126: 160 | D126: 400 | E126: 28.57 | F126: 428.57
A127: ANT-032-03-03 | B127: Activación de bloqueo por reserva de dominio de vehículo de diplomático | C127: 160 | D127: 400 | E127: 15.27 | F127: 415.27
A128: ANT-032-12-05 | B128: Atención de denuncia respecto a posibles actos de corrupción | C128: 160 | D128: 400 | E128: 4.5 | F128: 404.5
A129: ANT-034-02-11 | B129: Homologación de simuladores de conducción y equipos psicosensométricos para personas jurídicas importados | C129: 240 | D129: 600 | E129: 177.07 | F129: 777.07
A130: ANT-034-01-08 | B130: Inclusión de versiones y/o aplicaciones en un modelo base homologado para subcategoría M2 | C130: 50 | D130: 125 | E130: 908.07 | F130: 1033.07
A131: ANT-032-08-03 | B131: Ingreso de sentencia condenatoria (delitos de tránsito) | C131: 320 | D131: 800 | E131: 14.8 | F131: 814.8
A132: ANT-039-03-02 | B132: Modificación de frecuencia (cambio de horario) de operadora de transporte intraprovincial o interprovincial | C132: 480 | D132: 1200 | E132: 108.57 | F132: 1308.57
A133: ANT-032-15-02 | B133: Rectificación de resoluciones de operadoras de transporte | C133: 160 | D133: 400 | E133: 3 | F133: 403
A134: ANT-042-02-04 | B134: Regularización de vehículos en escuelas de capacitación para conductores profesionales y no profesionales (aumento o disminución de vehículos) | C134: 360 | D134: 900 | E134: 623 | F134: 1523
A135: ANT-032-14-03 | B135: Atención al recurso extraordinario de revisión | C135: 360 | D135: 900 | E135: 3 | F135: 903
A136: ANT-032-12-03 | B136: Atención de felicitaciones respecto a los servicios que presta la ANT | C136: 32 | D136: 80 | E136: 1.5 | F136: 81.5
A137: ANT-042-02-06 | B137: Autorización de cambio de domicilio de la escuela de capacitación para conductores profesionales y no profesionales | C137: 1824 | D137: 4560 | E137: 3.57 | F137: 4563.57
A138: ANT-036-01-03 | B138: Renovación del permiso de operación para operadoras de transporte turístico | C138: 240 | D138: 600 | E138: 9.57 | F138: 609.57
A139: ANT-041-01-01 | B139: Autorización para funcionamiento como compañía de renta de vehículos | C139: 160 | D139: 400 | E139: 467.57 | F139: 867.57
A140: ANT-034-01-10 | B140: Homologación de vehículos eléctricos, subcategoría M1 | C140: 120 | D140: 300 | E140: 951.07 | F140: 1251.07
A141: ANT-032-03-01 | B141: Activación de bloqueo por prohibición de enajenar vehículo (por juicio, embargo, insolvencia o inventario) | C141: 160 | D141: 400 | E141: 21.94 | F141: 421.94
A142: ANT-041-02-02 | B142: Deshabilitación de vehículo en compañía de renta de vehículos | C142: 120 | D142: 300 | E142: 66.57 | F142: 366.57
A143: ANT-032-09-03 | B143: Exoneración de multas por calendarización a vehículo que se encontraba dentro de un proceso judicial | C143: 160 | D143: 400 | E143: 4.5 | F143: 404.5
A144: ANT-038-01-01 | B144: Concesión de permiso de operación para operadoras de transporte mixto | C144: 480 | D144: 1200 | E144: 368.48 | F144: 1568.48
A145: ANT-032-11-05 | B145: Devolución de pagos por sentencias absolutorias de infracciones | C145: 360 | D145: 900 | E145: 9.13 | F145: 909.13
A146: ANT-032-03-02 | B146: Activación de bloqueo por reserva de dominio de vehículo por menaje de casa | C146: 160 | D146: 400 | E146: 13.2 | F146: 413.2
A147: ANT-032-12-04 | B147: Atención de denuncia respecto al Transporte Terrestre, Tránsito y Seguridad Vial | C147: 32 | D147: 80 | E147: 3 | F147: 83
A148: ANT-042-02-02 | B148: Autorización para funcionamiento por primera vez de escuelas de capacitación o sucursales para conductores profesionales y no profesionales | C148: 1824 | D148: 4560 | E148: 375.9 | F148: 4935.9
A149: ANT-042-02-08 | B149: Rectificación de nóminas de alumnos graduados de escuelas de conducción profesionales (por alumno) | C149: 24 | D149: 60 | E149: 5.07 | F149: 65.07
A150: ANT-032-02-01 | B150: Inactivación definitiva voluntaria de vehículo por chatarrización | C150: 1 | D150: 2.5 | E150: 83.07 | F150: 85.57
A151: ANT-034-01-04 | B151: Inclusión de versiones y/o aplicaciones en un modelo base homologado de vehículos automotores para carga subcategoría N | C151: 50 | D151: 125 | E151: 583.57 | F151: 708.57
A152: ANT-042-02-01 | B152: Autorización para la creación de escuela de capacitación o sucursales para conductores profesionales y no profesionales | C152: 120 | D152: 300 | E152: 5003.57 | F152: 5303.57
A153: ANT-039-03-03 | B153: Modificación y/o alargue de ruta de operadora de transporte intraprovincial o interprovincial | C153: 480 | D153: 1200 | E153: 108.57 | F153: 1308.57
A154: ANT-038-02-01 | B154: Emisión de incremento de cupo para operadoras de transporte mixto | C154: 480 | D154: 1200 | E154: 4031.07 | F154: 5231.07
A155: ANT-039-03-01 | B155: Emisión de incremento de frecuencia de operadoras de transporte intraprovincial o interprovincial | C155: 480 | D155: 1200 | E155: 108.57 | F155: 1308.57
A156: ANT-036-01-02 | B156: Emisión de permiso de operación a personas jurídicas en la modalidad de transporte turístico | C156: 480 | D156: 1200 | E156: 29.57 | F156: 1229.57
A157: ANT-032-08-11 | B157: Actualización de pago de multas por infracciones de tránsito | C157: 1 | D157: 2.5 | E157: 2.7 | F157: 5.2
A158: ANT-039-01-06 | B158: Concesión de nueva ruta y frecuencia de operadora de transporte intraprovincial o interprovincial | C158: 480 | D158: 1200 | E158: 459.52 | F158: 1659.52
A159: ANT-032-11-04 | B159: Devolución de pagos indebido para personas jurídicas | C159: 360 | D159: 900 | E159: 5.07 | F159: 905.07
A160: ANT-032-14-01 | B160: Atención al recurso de apelación | C160: 360 | D160: 900 | E160: 3 | F160: 903
A161: ANT-032-01-02 | B161: Anulación de licencia de conducir por acto viciado o sin requisitos | C161: 160 | D161: 400 | E161: 18.2 | F161: 418.2
A162: ANT-034-01-07 | B162: Homologación de vehículos importados completos categoría M3 INEN destinados al servicio transporte público y comercial (incluye microbús desde 5000 kg de peso) | C162: 120 | D162: 300 | E162: 133.57 | F162: 433.57
A163: ANT-036-01-06 | B163: Emisión de Documento Único de Transporte Turístico (DUTT) a operadoras nacionales de turismo que realizan transporte internacional turístico de pasajeros (Ecuador - Colombia) | C163: 120 | D163: 300 | E163: 1116 | F163: 1416
A164: ANT-034-03-07 | B164: Emisión de licencia de importación de un lote de tricimotos | C164: 160 | D164: 400 | E164: 155.93 | F164: 555.93
A165: ANT-039-01-07 | B165: Emisión de dimensionamiento de flota vehicular para operadoras de transporte intraprovincial o interprovincial | C165: 480 | D165: 1200 | E165: 108.57 | F165: 1308.57
A166: ANT-032-13-04 | B166: Registro de puntos recuperados que no se cargaron a tiempo por pago tardío de infracciones | C166: 240 | D166: 600 | E166: 3 | F166: 603
A167: ANT-032-08-09 | B167: Anulación de multas por infracciones de tránsito por prescripción | C167: 160 | D167: 400 | E167: 3 | F167: 403
A168: ANT-036-02-02 | B168: Deshabilitación de vehículo para operadoras de transporte turístico | C168: 80 | D168: 200 | E168: 3.57 | F168: 203.57
A169: ANT-032-09-02 | B169: Exoneración de multas por calendarización a vehículo que ha sido objeto de robo | C169: 160 | D169: 400 | E169: 3 | F169: 403
A170: ANT-037-04-06 | B170: Desvinculación de flota vehicular y unidades de carga de operadoras nacionales que realizan transporte terrestre internacional | C170: 80 | D170: 200 | E170: 6 | F170: 206
A171: ANT-032-13-01 | B171: Autorización para matrícula e inicio de clases de centros de recuperación de puntos para conductores profesionales y no profesionales | C171: 240 | D171: 600 | E171: 25.46 | F171: 625.46
A172: ANT-032-06-09 | B172: Actualización del beneficiario o arrendatario de un fideicomiso o leasing | C172: 1 | D172: 2.5 | E172: 37 | F172: 39.5
A173: ANT-036-01-04 | B173: Emisión de incremento de cupo para operadoras de transporte turístico | C173: 480 | D173: 1200 | E173: 21.57 | F173: 1221.57
A174: ANT-032-08-08 | B174: Actualización de registro de pagos de citaciones de tránsito que no dieron de baja en el sistema "pagos en línea" | C174: 160 | D174: 400 | E174: 4.5 | F174: 404.5
A175: ANT-041-02-01 | B175: Habilitación de vehículo en compañía de renta de vehículos | C175: 120 | D175: 300 | E175: 66.57 | F175: 366.57
A176: ANT-037-05-01 | B176: Registro de flota de operadora extranjera que requiere circular en el territorio nacional | C176: 80 | D176: 200 | E176: 6 | F176: 206
A177: ANT-038-01-03 | B177: Emisión de informe previo a la constitución jurídica para operadoras de transporte mixto | C177: 360 | D177: 900 | E177: 408.07 | F177: 1308.07
A178: ANT-034-01-14 | B178: Homologación de vehículos de subtecategoría M2 y M3 INEN de fabricación o ensamblaje nacional | C178: 120 | D178: 300 | E178: 678.57 | F178: 978.57
A179: ANT-036-02-03 | B179: Renovación de vehículo para operadoras de transporte turístico (Cambio de vehículo) | C179: 120 | D179: 300 | E179: 6.57 | F179: 306.57
A180: ANT-036-01-01 | B180: Emisión de informe previo a la constitución jurídica para compañías o cooperativas de transporte turístico | C180: 360 | D180: 900 | E180: 425.07 | F180: 1325.07
A181: ANT-036-02-01 | B181: Habilitación de vehículo para operadoras de transporte turístico | C181: 120 | D181: 300 | E181: 1049.39 | F181: 1349.39
A182: ANT-039-05-02 | B182: Autorización de cambio de socio con habilitación de vehículo de operadoras de transporte intraprovincial o interprovincial | C182: 160 | D182: 400 | E182: 1557.93 | F182: 1957.93
A183: ANT-032-05-03 | B183: Actualización o registro de información de licencia de conducir | C183: 2 | D183: 5 | E183: 3 | F183: 8
A184: ANT-039-05-01 | B184: Autorización de cambio de socio y vehículo de operadora de transporte intraprovincial o interprovincial | C184: 160 | D184: =C184*$I$4/160 -> 400 | E184: 1534.57 | F184: 1934.57
A185: ANT-039-05-03 | B185: Autorización de cambio de socio sin vehículo de operadoras de transporte intraprovincial o interprovincial | C185: 160 | D185: 400 | E185: 29.23 | F185: =D185+E185 -> 429.23
A186: ANT-033-01-06 | B186: Emisión de certificado de conformidad de vehículo para cambio de servicio | C186: 240 | D186: 600 | E186: 56 | F186: 656
A187: ANT-032-09-01 | B187: Exoneración de multas por calendarización a vehículo que se encuentra en taller mecánico y no se presenta a revisión técnica vehicular | C187: 160 | D187: 400 | E187: 6 | F187: 406
A188: ANT-032-12-06 | B188: Atención de consultas jurídicas sobre los servicios que presta la ANT | C188: 360 | D188: 900 | E188: 3 | F188: 903
A189: ANT-034-01-02 | B189: Homologación de vehículos automotores para carga, subcategoría N | C189: 141 | D189: 352.5 | E189: 570.07 | F189: 922.57
A190: ANT-042-03-02 | B190: Emisión de permiso de aprendizaje de manejo para alumnos de escuelas de capacitación de conductores profesionales y no profesionales | C190: 24 | D190: 60 | E190: 2.07 | F190: 62.07
A191: ANT-034-01-16 | B191: Homologación de motocicletas, tricimotos y demás similares nacionales, subcategoría L | C191: 120 | D191: 300 | E191: 673.57 | F191: 973.57
A192: ANT-034-01-01 | B192: Homologación de vehículos automotores, subcategoría M1 | C192: 285 | D192: 712.5 | E192: 498.57 | F192: 1211.07
A193: ANT-037-04-05 | B193: Habilitación de vehículo y registro de unidad de carga de operadoras nacionales que cuentan con certificado de idoneidad | C193: 80 | D193: 200 | E193: 451 | F193: 651
A194: ANT-042-04-04 | B194: Autorización de canje de licencia de conducir extranjera por ecuatoriana | C194: 1 | D194: 2.5 | E194: 190.07 | F194: 192.57
A195: ANT-032-12-01 | B195: Atención de queja respecto a los servicios que presta la ANT | C195: 32 | D195: 80 | E195: 1.5 | F195: 81.5
A196: ANT-032-13-03 | B196: Recuperación de puntos a la licencia de conducir por aprobación de curso en un centro de recuperación de puntos | C196: 240 | D196: 600 | E196: 66 | F196: 666
A197: ANT-032-05-02 | B197: Actualización o registro de información de persona jurídica | C197: 1 | D197: 2.5 | E197: 1.5 | F197: 4
A198: ANT-033-01-02 | B198: Emisión de certificado de historial de infracciones del vehículo persona natural y jurídica | C198: 0.33 | D198: 0.825 | E198: 5.37 | F198: 6.195
A199: ANT-039-04-01 | B199: Habilitación de vehículo de operadora de transporte intraprovincial o interprovincial | C199: 160 | D199: 400 | E199: 1532.73 | F199: 1932.73
A200: ANT-032-11-03 | B200: Devolución de pagos indebidos para personas naturales | C200: 360 | D200: 900 | E200: 4.72 | F200: 904.72
A201: ANT-039-04-02 | B201: Deshabilitación de vehículo de operadora de transporte intraprovincial o interprovincial | C201: 160 | D201: 400 | E201: 3.57 | F201: 403.57
... 26 more rows

Sheet RESUMEN DE COSTOS AP
A1: PRIORIZACIÓN DE TRÁMITES ADMINISTRATIVOS
A2: COSTOS PARA LA ADMINISTRACIÓN PÚBLICA
A4: IDENTIFICADOR | B4: TRÁMITE | C4: COSTO PARA LA ADM. PÚBLICA | D4: PUNTUACIÓN
A5: ANT-042-04-03 | B5: Emisión de duplicado de licencia profesional y NO profesional | C5: 3.12 | D5: 5
A6: ANT-032-05-02 | B6: Actualización o registro de información de persona jurídica | C6: 4 | D6: 5
A7: ANT-032-12-02 | B7: Atención de consultas de información de los servicios que presta la ANT | C7: 4 | D7: 5
A8: ANT-033-01-05 | B8: Emisión de certificado de historial de infracciones del conductor | C8: 4.395 | D8: 5
A9: ANT-033-01-03 | B9: Emisión de certificado de poseer vehículo persona natural y jurídica | C9: 4.395 | D9: 5
A10: ANT-032-08-11 | B10: Actualización de pago de multas por infracciones de tránsito | C10: 5.2 | D10: 5
A11: ANT-033-01-02 | B11: Emisión de certificado de historial de infracciones del vehículo persona natural y jurídica | C11: 6.195 | D11: 5
A12: ANT-033-01-04 | B12: Emisión de certificado de información del conductor | C12: 7.395 | D12: 5
A13: ANT-032-05-03 | B13: Actualización o registro de información de licencia de conducir | C13: 8 | D13: 5
A14: ANT-032-10-01 | B14: Emisión de convenio de pago para multas por infracciones de tránsito | C14: 8.57 | D14: 5
A15: ANT-032-05-01 | B15: Actualización o registro de información de persona natural | C15: 10 | D15: 5
A16: ANT-033-01-01 | B16: Emisión de certificado único vehicular persona natural y jurídica | C16: 10.395 | D16: 5
A17: ANT-042-04-05 | B17: Homologación de licencia de conducir extranjera por la ecuatoriana | C17: 10.57 | D17: 5
A18: ANT-042-04-06 | B18: Emisión de licencia de conducir por Primera Vez NO Profesional Tipo: A o B | C18: 15.07 | D18: 5
A19: ANT-032-06-03 | B19: Actualización de chasis y/o motor por duplicidad | C19: 16.8 | D19: 5
A20: ANT-032-04-04 | B20: Desactivación de bloqueo de reserva de dominio de vehículo por cupo discapacitado | C20: 17.77 | D20: 5
A21: ANT-042-04-09 | B21: Autorización de cambio de categoría de licencia Tipo F a tipología anteriormente obtenido No Profesional | C21: 23.07 | D21: 5
A22: ANT-042-03-01 | B22: Emisión de permiso de conducción para menor adulto (Licencia NO Profesional) | C22: 23.64 | D22: 5
A23: ANT-042-04-02 | B23: Renovación de licencia de conducir profesional tipo: C, D, E o G | C23: 24.57 | D23: 5
A24: ANT-032-04-02 | B24: Desactivación de bloqueo de vehículo por haber cumplido el tiempo establecido de reserva de dominio por menaje de casa | C24: 25.27 | D24: 5
A25: ANT-032-02-02 | B25: Inactivación de vehículo por robo | C25: 26.87 | D25: 5
A26: ANT-032-06-08 | B26: Actualización o registro de fecha de matriculación | C26: 27 | D26: 5
A27: ANT-032-06-06 | B27: Actualización de información por cambio de servicio de transporte | C27: 28.5 | D27: 5
A28: ANT-032-06-02 | B28: Actualización de características del vehículo | C28: 29 | D28: 5
A29: ANT-032-06-07 | B29: Actualización o registro de fecha de revisión técnica vehicular | C29: 32 | D29: 5
A30: ANT-032-06-05 | B30: Rectificación de número de identificación del vehículo VIN | C30: 34.9 | D30: 5
A31: ANT-032-04-05 | B31: Desactivación de bloqueo de reserva de dominio de vehículo por prenda industrial, comercial o agrícola | C31: 37.07 | D31: 5
A32: ANT-032-06-09 | B32: Actualización del beneficiario o arrendatario de un fideicomiso o leasing | C32: 39.5 | D32: 5
A33: ANT-032-06-04 | B33: Actualización de cambio de color primario y/o secundario del vehículo | C33: 39.87 | D33: 5
A34: ANT-032-03-05 | B34: Activación de bloqueo de vehículo por prenda industrial, comercial o agrícola | C34: 40.64 | D34: 5
A35: ANT-032-06-10 | B35: Actualización de dominio por prescripción adquisitiva de vehículo | C35: 41 | D35: 5
A36: ANT-032-06-11 | B36: Actualización de cambio de número de placa de vehículo adquirido mediante remate | C36: 44.2 | D36: 5
A37: ANT-042-04-08 | B37: Emisión de licencia de conducir por primera vez no profesional tipo: F | C37: 50.5 | D37: 5
A38: ANT-032-04-03 | B38: Desactivación de bloqueo de reserva de dominio de vehículo por diplomático | C38: 56.47 | D38: 5
A39: ANT-040-03-02 | B39: Deshabilitación de un vehículo de una autorización de transporte por cuenta propia | C39: 62.07 | D39: 5
A40: ANT-042-03-02 | B40: Emisión de permiso de aprendizaje de manejo para alumnos de escuelas de capacitación de conductores profesionales y no profesionales | C40: 62.07 | D40: 5
A41: ANT-042-02-09 | B41: Rectificación de nóminas de alumnos matriculados de escuelas de conducción profesionales (por alumno) | C41: 62.07 | D41: 5
A42: ANT-042-02-08 | B42: Rectificación de nóminas de alumnos graduados de escuelas de conducción profesionales (por alumno) | C42: 65.07 | D42: 5
A43: ANT-042-02-10 | B43: Rectificación de nómina de alumnos graduados del curso de recuperación de puntos de licencia de conducir | C43: 66 | D43: 5
A44: ANT-032-03-06 | B44: Activación de bloqueo de vehículo por falta de transferencia de dominio por compra venta | C44: 66.57 | D44: 5
A45: ANT-032-04-06 | B45: Desactivación de bloqueo para realizar transferencia de dominio de vehículo por compra venta. | C45: 72.57 | D45: 5
A46: ANT-042-04-07 | B46: Renovación de licencia de conducir NO Profesional Tipo: A, B o F | C46: 73.5 | D46: 5
A47: ANT-032-12-03 | B47: Atención de felicitaciones respecto a los servicios que presta la ANT | C47: 81.5 | D47: 5
A48: ANT-032-12-01 | B48: Atención de queja respecto a los servicios que presta la ANT | C48: 81.5 | D48: 5
A49: ANT-032-12-04 | B49: Atención de denuncia respecto al Transporte Terrestre, Tránsito y Seguridad Vial | C49: 83 | D49: 5
A50: ANT-032-02-01 | B50: Inactivación definitiva voluntaria de vehículo por chatarrización | C50: 85.57 | D50: 5
A51: ANT-042-04-10 | B51: Emisión de permiso internacional para conductores profesionales y no profesionales | C51: 98.57 | D51: 5
A52: ANT-037-06-01 | B52: Autorización de cambio de socio sin vehículo para operadoras de transporte terrestre de carga pesada | C52: 166.57 | D52: 5
A53: ANT-042-04-04 | B53: Autorización de canje de licencia de conducir extranjera por ecuatoriana | C53: 192.57 | D53: 5
A54: ANT-037-04-02 | B54: Deshabilitación de vehículo para operadoras de transporte de carga pesada | C54: 203.57 | D54: 5
A55: ANT-038-02-03 | B55: Deshabilitación de vehículo para operadoras de transporte mixto | C55: 203.57 | D55: 5
A56: ANT-036-02-02 | B56: Deshabilitación de vehículo para operadoras de transporte turístico | C56: 203.57 | D56: 5
A57: ANT-037-04-06 | B57: Desvinculación de flota vehicular y unidades de carga de operadoras nacionales que realizan transporte terrestre internacional | C57: 206 | D57: 5
A58: ANT-037-05-01 | B58: Registro de flota de operadora extranjera que requiere circular en el territorio nacional | C58: 206 | D58: 5
A59: ANT-037-04-03 | B59: Renovación de vehículo para operadoras de transporte de carga pesada | C59: 206.57 | D59: 5
A60: ANT-038-02-04 | B60: Renovación de vehículo para operadoras de transporte mixto (cambio de vehículo) | C60: 206.57 | D60: 5
A61: ANT-038-03-01 | B61: Autorización de cambio de socio sin vehículo para operadoras de transporte mixto | C61: 228.19 | D61: 5
A62: ANT-037-06-02 | B62: Autorización de cambio de socio con habilitación de vehículo para operadoras de transporte de carga pesada | C62: 234.57 | D62: 5
A63: ANT-038-03-03 | B63: Solicitud de cambio de socio con vehículo para operadoras de transporte de carga mixta. | C63: 234.57 | D63: 5
A64: ANT-032-06-12 | B64: Actualización de cambio de número de placa de vehículo gemelo o clonado | C64: 249.2 | D64: 5
A65: ANT-034-01-17 | B65: Inclusión de versiones y/o aplicaciones en un modelo base homologado de motocicletas, tricimotos y demás similares nacionales, Subcategoría L. | C65: 303.57 | D65: 5
A66: ANT-036-02-03 | B66: Renovación de vehículo para operadoras de transporte turístico (Cambio de vehículo) | C66: 306.57 | D66: 5
A67: ANT-034-03-05 | B67: Calificación de aplicativos móviles para personas jurídicas | C67: 322.7 | D67: 5
A68: ANT-041-02-02 | B68: Deshabilitación de vehículo en compañía de renta de vehículos | C68: 366.57 | D68: 5
A69: ANT-041-02-01 | B69: Habilitación de vehículo en compañía de renta de vehículos | C69: 366.57 | D69: 5
A70: ANT-042-04-01 | B70: Emisión de licencia de conducir por primera vez profesional tipo: C, D, E o G | C70: 396 | D70: 5
A71: SIN IDENTIFICADOR | B71: Atención de solicitudes de acceso a la información pública | C71: 403 | D71: 5
A72: ANT-032-08-09 | B72: Anulación de multas por infracciones de tránsito por prescripción | C72: 403 | D72: 5
A73: ANT-032-09-02 | B73: Exoneración de multas por calendarización a vehículo que ha sido objeto de robo | C73: 403 | D73: 5
A74: ANT-032-09-06 | B74: Exoneración de multas por calendarización a vehículos que previa su entrega a una institución pública se hubieren encontrado incautados por orden judicial | C74: 403 | D74: 5
A75: ANT-032-15-03 | B75: Modificación de datos en resoluciones de operadoras de transporte | C75: 403 | D75: 5
A76: ANT-032-15-02 | B76: Rectificación de resoluciones de operadoras de transporte | C76: 403 | D76: 5
A77: ANT-039-04-02 | B77: Deshabilitación de vehículo de operadora de transporte intraprovincial o interprovincial | C77: 403.57 | D77: 5
A78: ANT-035-01-01 | B78: Autorización de uso de polarizados en vehículos | C78: 404.07 | D78: 5
A79: ANT-032-08-08 | B79: Actualización de registro de pagos de citaciones de tránsito que no dieron de baja en el sistema "pagos en línea" | C79: 404.5 | D79: 10
A80: ANT-032-12-05 | B80: Atención de denuncia respecto a posibles actos de corrupción | C80: 404.5 | D80: 10
A81: ANT-032-09-03 | B81: Exoneración de multas por calendarización a vehículo que se encontraba dentro de un proceso judicial | C81: 404.5 | D81: 10
A82: ANT-032-09-05 | B82: Exoneración de multas por calendarización a vehículos del sector público por retraso en la certificación respecto a la asignación presupuestaria | C82: 404.5 | D82: 10
A83: ANT-032-09-04 | B83: Exoneración de multas por calendarización a vehículos del sector público que hubieren sido entregados por parte de otras instituciones, por haber asumido los derechos y obligaciones por mandato de la ley | C83: 404.5 | D83: 10
A84: ANT-039-06-02 | B84: Autorización de registro de vehículos de operadoras extranjeras de pasajeros que requieren circular en el territorio nacional | C84: 406 | D84: 10
A85: ANT-039-06-05 | B85: Desvinculación de vehículo de operadoras nacionales interprovinciales con permiso originario de prestación de servicios | C85: 406 | D85: 10
A86: ANT-032-09-01 | B86: Exoneración de multas por calendarización a vehículo que se encuentra en taller mecánico y no se presenta a revisión técnica vehicular | C86: 406 | D86: 10
A87: ANT-032-09-07 | B87: Exoneración de multas por calendarización a vehículo no matriculado por problemas técnicos de fuerza mayor presentados en la entidad competente | C87: 409.2 | D87: 10
A88: ANT-032-03-02 | B88: Activación de bloqueo por reserva de dominio de vehículo por menaje de casa | C88: 413.2 | D88: 10
A89: ANT-032-03-04 | B89: Activación de bloqueo de reserva de dominio de vehículo por cupo discapacitado | C89: 413.77 | D89: 10
A90: ANT-032-03-03 | B90: Activación de bloqueo por reserva de dominio de vehículo de diplomático | C90: 415.27 | D90: 10
A91: ANT-032-01-03 | B91: Revocación de licencia de conducir por incapacidad física y mental | C91: 416.7 | D91: 10
A92: ANT-032-01-04 | B92: Suspensión de licencia de conducir por no aprobación de pruebas de renovación o canje de licencia internacional de conducir o infracciones de tránsito que conlleven sanción | C92: 416.7 | D92: 10
A93: ANT-032-07-01 | B93: Levantamiento de revocatoria o anulación de licencias de conducir | C93: 418.02 | D93: 10
A94: ANT-032-01-02 | B94: Anulación de licencia de conducir por acto viciado o sin requisitos | C94: 418.2 | D94: 10
A95: ANT-032-03-01 | B95: Activación de bloqueo por prohibición de enajenar vehículo (por juicio, embargo, insolvencia o inventario) | C95: 421.94 | D95: 10
A96: ANT-032-04-07 | B96: Desactivación de bloqueo de vehículo por retención vehicular | C96: 423.8 | D96: 10
A97: ANT-032-15-01 | B97: Rectificación de chasis y/o motor por remarcado (por error de tipeo) | C97: 424.5 | D97: 10
A98: ANT-032-03-08 | B98: Activación de bloqueo de vehículo por retención vehicular | C98: 428 | D98: 10
A99: ANT-032-06-01 | B99: Actualización de chasis y/o motor por remarcado | C99: 428 | D99: 10
A100: ANT-032-03-07 | B100: Activación de bloqueo de vehículo por gemelo o clonado | C100: 428.57 | D100: 10
A101: ANT-039-05-03 | B101: Autorización de cambio de socio sin vehículo de operadoras de transporte intraprovincial o interprovincial | C101: 429.23 | D101: 10
A102: ANT-032-04-01 | B102: Desactivación de bloqueo de prohibición de enajenar vehículo por juicio, embargo, insolvencia o inventario | C102: 430.07 | D102: 10
A103: ANT-034-01-07 | B103: Homologación de vehículos importados completos categoría M3 INEN destinados al servicio transporte público y comercial (incluye microbús desde 5000 kg de peso) | C103: 433.57 | D103: 10
A104: ANT-034-01-05 | B104: Homologación de vehículos importados completos categoría M2 INEN destinados al servicio transporte público (incluye microbús de hasta 5000 kg de peso) | C104: 435.07 | D104: 10
A105: ANT-039-06-01 | B105: Autorización del permiso de prestación de servicios a operadoras extranjeras registradas en los países miembros de la Comunidad Andina de Naciones que requieran realizar operaciones de Transporte de carga en el Ecuador. | C105: 443 | D105: 10
A106: ANT-040-02-02 | B106: Autorización de registro de flota vehicular en permiso especial complementario para transporte terrestre internacional por cuenta propia | C106: 444.5 | D106: 10
A107: ANT-034-01-06 | B107: Homologación de vehículos importados completos categoría M2 INEN destinados al servicio transporte comercial (incluye microbús de hasta 5000 kg de peso) | C107: 448.57 | D107: 10
A108: ANT-033-02-01 | B108: Emisión de copias certificadas de documentos hablitantes | C108: 489.57 | D108: 10
A109: ANT-040-01-01 | B109: Concesión de autorización del transporte por cuenta propia nacional a personas naturales o jurídicas | C109: 530.77 | D109: 10
A110: ANT-034-03-07 | B110: Emisión de licencia de importación de un lote de tricimotos | C110: 555.93 | D110: 10
A111: ANT-042-05-01 | B111: Emisión de placas con series nuevas para vehículos y/o unidad de carga internacional | C111: 601.5 | D111: 10
A112: ANT-042-05-03 | B112: Emisión de placas con series nuevas para motos | C112: 603 | D112: 10
A113: ANT-032-13-04 | B113: Registro de puntos recuperados que no se cargaron a tiempo por pago tardío de infracciones | C113: 603 | D113: 10
A114: ANT-042-05-04 | B114: Emisión de duplicado, cambio de servicio y/o reemplazos de placas para motos | C114: 604.5 | D114: 10
A115: ANT-038-01-02 | B115: Renovación de permiso de operación para operadoras de transporte mixto | C115: 606.57 | D115: 10
A116: ANT-042-02-07 | B116: Habilitación de funcionamiento de la escuela de capacitación como centro de recuperación de puntos (convenio como centro de recuperación de puntos) | C116: 608.07 | D116: 10
A117: ANT-034-01-03 | B117: Inclusión de versiones y/o aplicaciones en un modelo base homologado de vehículos automotores, subcategoría M1 | C117: 608.57 | D117: 10
A118: ANT-036-01-03 | B118: Renovación del permiso de operación para operadoras de transporte turístico | C118: 609.57 | D118: 10
A119: ANT-037-01-05 | B119: Emisión de Certificado de Idoneidad de operadora nacional que requiere realizar operaciones en los países miembros de la CAN. | C119: 617 | D119: 10
A120: ANT-034-03-02 | B120: Calificación de empresas fabricantes y/o ensambladoras de carrocerías de vehículos tipo M2 y M3 INEN para personas jurídicas | C120: 618.57 | D120: 10
A121: ANT-032-13-01 | B121: Autorización para matrícula e inicio de clases de centros de recuperación de puntos para conductores profesionales y no profesionales | C121: 625.46 | D121: 10
A122: ANT-042-05-02 | B122: Emisión de duplicado, cambio de servicio y/o reemplazos de placas vehiculares y unidad de carga internacional | C122: 627.5 | D122: 10
A123: ANT-034-03-01 | B123: Calificación de empresas fabricantes y/o ensambladoras de carrocerías de vehículos tipo M2 y M3 INEN para personas naturales | C123: 633.57 | D123: 10
A124: ANT-037-06-03 | B124: Autorización de cambio de socio y vehículo para operadoras de transporte de carga pesada | C124: 636.07 | D124: 10
A125: ANT-037-04-05 | B125: Habilitación de vehículo y registro de unidad de carga de operadoras nacionales que cuentan con certificado de idoneidad | C125: 651 | D125: 10
A126: ANT-042-02-03 | B126: Autorización de período de matrículas e inicio de clases y/o prórrogas de la escuela de capacitación para conductores profesionales y no profesionales | C126: 653.49 | D126: 10
A127: ANT-033-01-06 | B127: Emisión de certificado de conformidad de vehículo para cambio de servicio | C127: 656 | D127: 10
A128: ANT-032-13-03 | B128: Recuperación de puntos a la licencia de conducir por aprobación de curso en un centro de recuperación de puntos | C128: 666 | D128: 10
A129: ANT-037-02-01 | B129: Emisión de Permiso de Prestación de Servicios de operadora extranjera que requiere circular en el territorio nacional (PPS) | C129: 669.5 | D129: 10
A130: ANT-034-01-04 | B130: Inclusión de versiones y/o aplicaciones en un modelo base homologado de vehículos automotores para carga subcategoría N | C130: 708.57 | D130: 10
A131: ANT-034-03-04 | B131: Calificación de aplicativos móviles para personas naturales | C131: 713.57 | D131: 10
A132: ANT-034-02-08 | B132: Homologación de dispositivo de medición, control y seguridad "Disco Pare" importados para personas naturales | C132: 718.25 | D132: 10
A133: ANT-034-02-06 | B133: Homologación de dispositivo de medición, control y seguridad "Disco Pare" nacionales para personas naturales | C133: 720.07 | D133: 10
A134: ANT-034-03-03 | B134: Calificación de aplicativos móviles para personas jurídicas | C134: 730.07 | D134: 10
A135: ANT-034-02-03 | B135: Homologación de dispositivos y equipos tecnológicos para detección y notificación de infracciones de tránsito nacionales por parte de persona jurídica | C135: 742.57 | D135: 10
A136: ANT-034-02-01 | B136: Homologación de dispositivos y equipos tecnológicos para detección y notificación de infracciones de tránsito nacionales por parte de persona natural | C136: 750.07 | D136: 10
A137: ANT-034-02-13 | B137: Homologación del sistema tecnológico de recaudo electrónico de transporte público intracantonal | C137: 754.57 | D137: 10
A138: ANT-034-02-12 | B138: Homologación de simuladores de conducción y equipos psicosensométricos para personas jurídicas nacionales | C138: 757.77 | D138: 10
A139: ANT-034-02-02 | B139: Homologación de dispositivos y equipos tecnológicos para detección y notificación de infracciones de tránsito importados por parte de persona natural | C139: 763.57 | D139: 10
A140: ANT-032-07-02 | B140: Levantamiento de suspensión de licencia de conducir por aprobación de pruebas de renovación o canje de licencia internacional de conducir o infracciones de tránsito que conlleven sanción | C140: 765.94 | D140: 10
A141: ANT-034-02-10 | B141: Homologación de sistemas de posicionamiento y administración para taxis ejecutivos (GPS) | C141: 766.57 | D141: 10
A142: ANT-034-02-11 | B142: Homologación de simuladores de conducción y equipos psicosensométricos para personas jurídicas importados | C142: 777.07 | D142: 10
A143: ANT-032-08-05 | B143: Actualización de registro de multas por infracciones de tránsito (transferencia de multas) | C143: 802.5 | D143: 10
A144: ANT-032-08-04 | B144: Impugnación de multas por infracciones de tránsito | C144: 804.5 | D144: 10
A145: ANT-032-08-07 | B145: Restitución de puntos de la licencia por conductor no identificado - Reglamento de la Ley Orgánica de Transporte Terrestre 238 | C145: 804.5 | D145: 10
A146: ANT-039-06-03 | B146: Habilitación de vehículo a operadoras nacionales interprovinciales con permiso originario de prestación de servicios | C146: 806 | D146: 10
A147: ANT-039-06-04 | B147: Renovación de habilitación de vehículo de operadoras nacionales interprovinciales con permiso originario de prestación de servicios | C147: 806 | D147: 10
A148: ANT-034-02-04 | B148: Homologación de dispositivos y equipos tecnológicos para detección y notificación de infracciones de tránsito importados por parte de persona jurídica | C148: 807.07 | D148: 10
A149: ANT-040-02-01 | B149: Emisión de permiso especial complementario para transporte terrestre internacional por cuenta propia a empresas extranjeras | C149: 807.5 | D149: 10
A150: ANT-040-02-03 | B150: Emisión de permiso especial de origen para transporte internacional por cuenta propia | C150: 807.5 | D150: 10
A151: ANT-034-02-05 | B151: Homologación de taxímetro (dispositivos de medición, control y seguridad) | C151: 808.57 | D151: 10
A152: ANT-032-08-01 | B152: Anulación de multa por infracciones de tránsito por sentencia absolutoria | C152: 814.8 | D152: 10
A153: ANT-032-08-03 | B153: Ingreso de sentencia condenatoria (delitos de tránsito) | C153: 814.8 | D153: 10
A154: ANT-032-08-02 | B154: Actualización de registro de pagos de delitos de tránsito | C154: 815.37 | D154: 20
A155: ANT-032-08-06 | B155: Anulación de multas por infracciones de tránsito por duplicidad | C155: 817.4 | D155: 20
A156: ANT-032-08-10 | B156: Anulación de multas por infracciones de tránsito por fallecimiento | C156: 819 | D156: 20
A157: ANT-040-03-03 | B157: Habilitación de nuevos vehículos con permiso especial de origen para transporte terrestre internacional por cuenta propia | C157: 827.5 | D157: 20
A158: ANT-041-01-01 | B158: Autorización para funcionamiento como compañía de renta de vehículos | C158: 867.57 | D158: 20
A159: ANT-032-14-01 | B159: Atención al recurso de apelación | C159: 903 | D159: 20
A160: ANT-032-14-02 | B160: Atención al recurso de reposición | C160: 903 | D160: 20
A161: ANT-032-14-03 | B161: Atención al recurso extraordinario de revisión | C161: 903 | D161: 20
A162: ANT-032-12-06 | B162: Atención de consultas jurídicas sobre los servicios que presta la ANT | C162: 903 | D162: 20
A163: ANT-032-11-03 | B163: Devolución de pagos indebidos para personas naturales | C163: 904.72 | D163: 20
A164: ANT-032-11-04 | B164: Devolución de pagos indebido para personas jurídicas | C164: 905.07 | D164: 20
A165: ANT-032-11-05 | B165: Devolución de pagos por sentencias absolutorias de infracciones | C165: 909.13 | D165: 20
A166: ANT-034-01-02 | B166: Homologación de vehículos automotores para carga, subcategoría N | C166: 922.57 | D166: 20
A167: ANT-034-01-16 | B167: Homologación de motocicletas, tricimotos y demás similares nacionales, subcategoría L | C167: 973.57 | D167: 20
A168: ANT-034-01-14 | B168: Homologación de vehículos de subtecategoría M2 y M3 INEN de fabricación o ensamblaje nacional | C168: 978.57 | D168: 20
A169: ANT-034-01-08 | B169: Inclusión de versiones y/o aplicaciones en un modelo base homologado para subcategoría M2 | C169: 1033.07 | D169: 20
A170: ANT-034-01-15 | B170: Inclusión de versiones y/o aplicaciones en un modelo base homologado para categoría M2 y M3 INEN de fabricación o ensamblaje nacional | C170: 1051.07 | D170: 20
A171: ANT-034-01-09 | B171: Inclusión de versiones y/o aplicaciones en un modelo base homologado para subcategoría M3 | C171: 1073 | D171: 20
A172: ANT-037-01-03 | B172: Renovación de permiso de operación para operadoras de transporte de carga pesada | C172: 1154.27 | D172: 20
A173: ANT-032-13-02 | B173: Recuperación automática de puntos a la licencia de conducir por no incurrir en multas por infracciones de tránsito durante un año | C173: 1200 | D173: 20
A174: ANT-034-01-01 | B174: Homologación de vehículos automotores, subcategoría M1 | C174: 1211.07 | D174: 20
A175: ANT-036-01-04 | B175: Emisión de incremento de cupo para operadoras de transporte turístico | C175: 1221.57 | D175: 20
A176: ANT-036-01-02 | B176: Emisión de permiso de operación a personas jurídicas en la modalidad de transporte turístico | C176: 1229.57 | D176: 20
A177: ANT-034-01-13 | B177: Inclusión de versiones y/o aplicaciones de modelo base de aprobado de vehículo incompleto - chasis motorizados para carrozaje nacional en categoría M2 y M3 INEN | C177: 1233.57 | D177: 20
A178: ANT-037-03-01 | B178: Emisión de incremento de cupo para operadoras de transporte de carga pesada | C178: 1234.57 | D178: 20
A179: ANT-034-01-10 | B179: Homologación de vehículos eléctricos, subcategoría M1 | C179: 1251.07 | D179: 20
A180: ANT-042-02-05 | B180: Regularización de aulas en la escuela de capacitación para conductores profesionales y no profesionales (aumento o disminución de aulas) | C180: 1257 | D180: 20
A181: ANT-040-03-01 | B181: Habilitación de un vehículo de una autorización de transporte por cuenta propia | C181: 1274.07 | D181: 20
A182: ANT-037-01-01 | B182: Emisión de informe previo a la constitución jurídica para compañías de transporte de carga pesada | C182: 1308.07 | D182: 20
A183: ANT-038-01-03 | B183: Emisión de informe previo a la constitución jurídica para operadoras de transporte mixto | C183: 1308.07 | D183: 20
A184: ANT-039-01-07 | B184: Emisión de dimensionamiento de flota vehicular para operadoras de transporte intraprovincial o interprovincial | C184: 1308.57 | D184: 20
A185: ANT-039-03-01 | B185: Emisión de incremento de frecuencia de operadoras de transporte intraprovincial o interprovincial | C185: 1308.57 | D185: 20
A186: ANT-039-03-02 | B186: Modificación de frecuencia (cambio de horario) de operadora de transporte intraprovincial o interprovincial | C186: 1308.57 | D186: 20
A187: ANT-039-03-03 | B187: Modificación y/o alargue de ruta de operadora de transporte intraprovincial o interprovincial | C187: 1308.57 | D187: 20
A188: ANT-039-03-04 | B188: Reversión de ruta y/o frecuencia de operadoras de transporte intraprovincial o interprovincial | C188: 1308.57 | D188: 20
A189: ANT-036-01-07 | B189: Emisión de Permiso de Circuito Cerrado a operadoras nacionales de turismo que realizan transporte internacional turístico de pasajeros (Ecuador - Perú) | C189: 1310.5 | D189: 20
A190: ANT-034-02-07 | B190: Homologación de dispositivo de medición, control y seguridad "Disco Pare" nacionales para personas jurídicas | C190: 1314.07 | D190: 20
A191: ANT-036-01-01 | B191: Emisión de informe previo a la constitución jurídica para compañías o cooperativas de transporte turístico | C191: 1325.07 | D191: 20
A192: ANT-036-02-01 | B192: Habilitación de vehículo para operadoras de transporte turístico | C192: 1349.39 | D192: 20
A193: ANT-037-04-04 | B193: Matriculación de unidades de carga para operadoras de transporte terrestre de carga pesada | C193: 1352.57 | D193: 20
A194: ANT-034-02-09 | B194: Homologación de dispositivo de medición, control y seguridad "Disco Pare" importados para personas jurídicas | C194: 1357.57 | D194: 20
A195: ANT-034-01-11 | B195: Homologación de vehículos eléctricos para carga, subcategoría N | C195: 1381.07 | D195: 20
A196: ANT-037-01-02 | B196: Concesión de permiso de operación para operadoras de transporte de carga pesada | C196: 1398 | D196: 20
A197: ANT-036-01-06 | B197: Emisión de Documento Único de Transporte Turístico (DUTT) a operadoras nacionales de turismo que realizan transporte internacional turístico de pasajeros (Ecuador - Colombia) | C197: 1416 | D197: 20
A198: ANT-037-01-04 | B198: Emisión de informe previo a la reforma de estatutos para operadoras de transporte terrestre de carga pesada | C198: 1438.89 | D198: 20
A199: ANT-042-02-04 | B199: Regularización de vehículos en escuelas de capacitación para conductores profesionales y no profesionales (aumento o disminución de vehículos) | C199: 1523 | D199: 20
A200: ANT-038-01-01 | B200: Concesión de permiso de operación para operadoras de transporte mixto | C200: 1568.48 | D200: 20
A201: ANT-039-01-04 | B201: Emisión de reforma de estatutos de transporte intraprovincial o interprovincial por cambio de objeto social de transporte y otros a exclusivo | C201: 1591.57 | D201: 20
... 25 more rows

Sheet AUXILIAR COSTO ADMINISTRACIÓN
A2: TRÁMITE:
A3: NO. | B3: ACTIVIDAD | C3: TIEMPO (HORAS)
A4: 1
A5: 2
A6: 3
A7: 4
A8: 5
A9: 6
A10: 7
A11: 8
A12: 9
A13: 10
A14: 11
A15: 12
A16: 13
A17: 14
A18: 15
B20: SUMATORIA ACTIVIDADES | C20: =SUM(C4:C19) -> 0

Sheet TIEMPO DE RESPUESTA
A1: PRIORIZACIÓN DE TRÁMITES ADMINISTRATIVOS
A2: TIEMPO DE RESPUESTA
A4: IDENTIFICADOR | B4: TRÁMITE | C4: TIEMPO RESPUESTA (horas laborables) | D4: PUNTUACIÓN
A5: ANT-032-06-04 | B5: Actualización de cambio de color primario y/o secundario del vehículo | C5: 1 | D5: 0
A6: ANT-032-06-11 | B6: Actualización de cambio de número de placa de vehículo adquirido mediante remate | C6: 8 | D6: 0
A7: ANT-032-06-12 | B7: Actualización de cambio de número de placa de vehículo gemelo o clonado | C7: 96 | D7: 30
A8: ANT-032-06-01 | B8: Actualización de chasis y/o motor por remarcado | C8: 160 | D8: 30
A9: ANT-032-06-10 | B9: Actualización de dominio por prescripción adquisitiva de vehículo | C9: 8 | D9: 0
A10: ANT-032-06-06 | B10: Actualización de información por cambio de servicio de transporte | C10: 1 | D10: 0
A11: ANT-032-08-02 | B11: Actualización de registro de pagos de delitos de tránsito | C11: 320 | D11: 30
A12: ANT-032-06-07 | B12: Actualización o registro de fecha de revisión técnica vehicular | C12: 1 | D12: 0
A13: ANT-032-08-01 | B13: Anulación de multa por infracciones de tránsito por sentencia absolutoria | C13: 320 | D13: 30
A14: ANT-032-08-06 | B14: Anulación de multas por infracciones de tránsito por duplicidad | C14: 320 | D14: 30
A15: ANT-032-08-10 | B15: Anulación de multas por infracciones de tránsito por fallecimiento | C15: 320 | D15: 30
A16: ANT-034-01-12 | B16: Aprobación de vehículo incompleto - chasis motorizado para carrozaje nacional en categorías M2 y M3 INEN | C16: 240 | D16: 30
A17: ANT-032-14-02 | B17: Atención al recurso de reposición | C17: 360 | D17: 30
A18: ANT-042-04-09 | B18: Autorización de cambio de categoría de licencia Tipo F a tipología anteriormente obtenido No Profesional | C18: 1 | D18: 0
A19: ANT-037-06-02 | B19: Autorización de cambio de socio con habilitación de vehículo para operadoras de transporte de carga pesada | C19: 80 | D19: 30
A20: ANT-038-03-02 | B20: Autorización de cambio de socio con habilitación de vehículo para operadoras de transporte mixto | C20: 80 | D20: 30
A21: ANT-038-03-01 | B21: Autorización de cambio de socio sin vehículo para operadoras de transporte mixto | C21: 80 | D21: 30
A22: ANT-037-06-01 | B22: Autorización de cambio de socio sin vehículo para operadoras de transporte terrestre de carga pesada | C22: 64 | D22: 30
A23: ANT-037-06-03 | B23: Autorización de cambio de socio y vehículo para operadoras de transporte de carga pesada | C23: 80 | D23: 30
A24: ANT-039-02-01 | B24: Autorización de fusión de operadoras de transporte público de pasajeros | C24: 960 | D24: 30
A25: ANT-040-02-02 | B25: Autorización de registro de flota vehicular en permiso especial complementario para transporte terrestre internacional por cuenta propia | C25: 160 | D25: 30
A26: ANT-039-06-02 | B26: Autorización de registro de vehículos de operadoras extranjeras de pasajeros que requieren circular en el territorio nacional | C26: 160 | D26: 30
A27: ANT-035-01-01 | B27: Autorización de uso de polarizados en vehículos | C27: 160 | D27: 30
A28: ANT-039-06-01 | B28: Autorización del permiso de prestación de servicios a operadoras extranjeras registradas en los países miembros de la Comunidad Andina de Naciones que requieran realizar operaciones de Transporte de carga en el Ecuador. | C28: 160 | D28: 30
A29: ANT-034-03-05 | B29: Calificación de aplicativos móviles para personas jurídicas | C29: 120 | D29: 30
A30: ANT-034-03-02 | B30: Calificación de empresas fabricantes y/o ensambladoras de carrocerías de vehículos tipo M2 y M3 INEN para personas jurídicas | C30: 240 | D30: 30
A31: ANT-034-03-01 | B31: Calificación de empresas fabricantes y/o ensambladoras de carrocerías de vehículos tipo M2 y M3 INEN para personas naturales | C31: 240 | D31: 30
A32: ANT-040-01-01 | B32: Concesión de autorización del transporte por cuenta propia nacional a personas naturales o jurídicas | C32: 160 | D32: 30
A33: ANT-032-04-04 | B33: Desactivación de bloqueo de reserva de dominio de vehículo por cupo discapacitado | C33: 1 | D33: 0
A34: ANT-032-04-03 | B34: Desactivación de bloqueo de reserva de dominio de vehículo por diplomático | C34: 1 | D34: 0
A35: ANT-032-04-07 | B35: Desactivación de bloqueo de vehículo por retención vehicular | C35: 160 | D35: 30
A36: ANT-040-03-02 | B36: Deshabilitación de un vehículo de una autorización de transporte por cuenta propia | C36: 24 | D36: 0
A37: ANT-037-04-02 | B37: Deshabilitación de vehículo para operadoras de transporte de carga pesada | C37: 80 | D37: 30
A38: ANT-038-02-03 | B38: Deshabilitación de vehículo para operadoras de transporte mixto | C38: 80 | D38: 30
A39: ANT-039-06-05 | B39: Desvinculación de vehículo de operadoras nacionales interprovinciales con permiso originario de prestación de servicios | C39: 160 | D39: 30
A40: ANT-037-01-05 | B40: Emisión de Certificado de Idoneidad de operadora nacional que requiere realizar operaciones en los países miembros de la CAN. | C40: 240 | D40: 30
A41: ANT-042-04-03 | B41: Emisión de duplicado de licencia profesional y NO profesional | C41: 0.42 | D41: 0
A42: ANT-042-05-04 | B42: Emisión de duplicado, cambio de servicio y/o reemplazos de placas para motos | C42: 240 | D42: 30
A43: ANT-037-03-01 | B43: Emisión de incremento de cupo para operadoras de transporte de carga pesada | C43: 480 | D43: 30
A44: ANT-036-01-05 | B44: Emisión de informe favorable previo a la reforma de estatutos para compañías o cooperativas de transporte turístico | C44: 960 | D44: 30
A45: ANT-039-01-01 | B45: Emisión de informe previo a la constitución jurídica de operadoras de transporte intraprovincial o interprovincial | C45: 960 | D45: 30
A46: ANT-037-01-01 | B46: Emisión de informe previo a la constitución jurídica para compañías de transporte de carga pesada | C46: 360 | D46: 30
A47: ANT-037-01-04 | B47: Emisión de informe previo a la reforma de estatutos para operadoras de transporte terrestre de carga pesada | C47: 360 | D47: 30
A48: ANT-038-01-04 | B48: Emisión de informe previo a la reforma de estatutos para operadoras de transporte terrestre mixto | C48: 960 | D48: 30
A49: ANT-042-04-08 | B49: Emisión de licencia de conducir por primera vez no profesional tipo: F | C49: 1 | D49: 0
A50: ANT-036-01-07 | B50: Emisión de Permiso de Circuito Cerrado a operadoras nacionales de turismo que realizan transporte internacional turístico de pasajeros (Ecuador - Perú) | C50: 120 | D50: 30
A51: ANT-042-03-01 | B51: Emisión de permiso de conducción para menor adulto (Licencia NO Profesional) | C51: 3 | D51: 0
A52: ANT-037-02-01 | B52: Emisión de Permiso de Prestación de Servicios de operadora extranjera que requiere circular en el territorio nacional (PPS) | C52: 240 | D52: 30
A53: ANT-040-02-01 | B53: Emisión de permiso especial complementario para transporte terrestre internacional por cuenta propia a empresas extranjeras | C53: 160 | D53: 30
A54: ANT-042-04-10 | B54: Emisión de permiso internacional para conductores profesionales y no profesionales | C54: 1 | D54: 0
A55: ANT-039-01-04 | B55: Emisión de reforma de estatutos de transporte intraprovincial o interprovincial por cambio de objeto social de transporte y otros a exclusivo | C55: 480 | D55: 30
A56: ANT-032-09-05 | B56: Exoneración de multas por calendarización a vehículos del sector público por retraso en la certificación respecto a la asignación presupuestaria | C56: 160 | D56: 30
A57: ANT-032-09-06 | B57: Exoneración de multas por calendarización a vehículos que previa su entrega a una institución pública se hubieren encontrado incautados por orden judicial | C57: 160 | D57: 30
A58: ANT-040-03-03 | B58: Habilitación de nuevos vehículos con permiso especial de origen para transporte terrestre internacional por cuenta propia | C58: 160 | D58: 30
A59: ANT-040-03-01 | B59: Habilitación de un vehículo de una autorización de transporte por cuenta propia | C59: 160 | D59: 30
A60: ANT-039-06-03 | B60: Habilitación de vehículo a operadoras nacionales interprovinciales con permiso originario de prestación de servicios | C60: 160 | D60: 30
A61: ANT-037-04-01 | B61: Habilitación de vehículo para operadoras de transporte de carga pesada | C61: 480 | D61: 30
A62: ANT-034-02-09 | B62: Homologación de dispositivo de medición, control y seguridad "Disco Pare" importados para personas jurídicas | C62: 240 | D62: 30
A63: ANT-034-02-08 | B63: Homologación de dispositivo de medición, control y seguridad "Disco Pare" importados para personas naturales | C63: 240 | D63: 30
A64: ANT-034-02-07 | B64: Homologación de dispositivo de medición, control y seguridad "Disco Pare" nacionales para personas jurídicas | C64: 240 | D64: 30
A65: ANT-034-02-06 | B65: Homologación de dispositivo de medición, control y seguridad "Disco Pare" nacionales para personas naturales | C65: 240 | D65: 30
A66: ANT-034-02-03 | B66: Homologación de dispositivos y equipos tecnológicos para detección y notificación de infracciones de tránsito nacionales por parte de persona jurídica | C66: 240 | D66: 30
A67: ANT-034-02-01 | B67: Homologación de dispositivos y equipos tecnológicos para detección y notificación de infracciones de tránsito nacionales por parte de persona natural | C67: 240 | D67: 30
A68: ANT-042-04-05 | B68: Homologación de licencia de conducir extranjera por la ecuatoriana | C68: 1 | D68: 0
A69: ANT-034-02-12 | B69: Homologación de simuladores de conducción y equipos psicosensométricos para personas jurídicas nacionales | C69: 240 | D69: 30
A70: ANT-034-02-05 | B70: Homologación de taxímetro (dispositivos de medición, control y seguridad) | C70: 240 | D70: 30
A71: ANT-034-01-05 | B71: Homologación de vehículos importados completos categoría M2 INEN destinados al servicio transporte público (incluye microbús de hasta 5000 kg de peso) | C71: 120 | D71: 30
A72: ANT-034-02-13 | B72: Homologación del sistema tecnológico de recaudo electrónico de transporte público intracantonal | C72: 240 | D72: 30
A73: ANT-032-08-04 | B73: Impugnación de multas por infracciones de tránsito | C73: 320 | D73: 30
A74: ANT-034-01-09 | B74: Inclusión de versiones y/o aplicaciones en un modelo base homologado para subcategoría M3 | C74: 50 | D74: 30
A75: ANT-032-07-01 | B75: Levantamiento de revocatoria o anulación de licencias de conducir | C75: 160 | D75: 30
A76: ANT-032-07-02 | B76: Levantamiento de suspensión de licencia de conducir por aprobación de pruebas de renovación o canje de licencia internacional de conducir o infracciones de tránsito que conlleven sanción | C76: 1 | D76: 0
A77: ANT-037-04-04 | B77: Matriculación de unidades de carga para operadoras de transporte terrestre de carga pesada | C77: 480 | D77: 30
A78: ANT-032-15-03 | B78: Modificación de datos en resoluciones de operadoras de transporte | C78: 160 | D78: 30
A79: ANT-032-15-01 | B79: Rectificación de chasis y/o motor por remarcado (por error de tipeo) | C79: 160 | D79: 30
A80: ANT-032-06-05 | B80: Rectificación de número de identificación del vehículo VIN | C80: 1 | D80: 0
A81: ANT-032-13-02 | B81: Recuperación automática de puntos a la licencia de conducir por no incurrir en multas por infracciones de tránsito durante un año | C81: 480 | D81: 30
A82: ANT-042-02-05 | B82: Regularización de aulas en la escuela de capacitación para conductores profesionales y no profesionales (aumento o disminución de aulas) | C82: 360 | D82: 30
A83: ANT-039-06-04 | B83: Renovación de habilitación de vehículo de operadoras nacionales interprovinciales con permiso originario de prestación de servicios | C83: 160 | D83: 30
A84: ANT-037-01-03 | B84: Renovación de permiso de operación para operadoras de transporte de carga pesada | C84: 240 | D84: 30
A85: ANT-039-04-03 | B85: Renovación de vehículo de operadora de transporte intraprovincial o interprovincial (cambio de vehículo) | C85: 160 | D85: 30
A86: ANT-037-04-03 | B86: Renovación de vehículo para operadoras de transporte de carga pesada | C86: 80 | D86: 30
A87: ANT-038-02-04 | B87: Renovación de vehículo para operadoras de transporte mixto (cambio de vehículo) | C87: 80 | D87: 30
A88: ANT-039-01-03 | B88: Renovación del contrato de operación para la prestación del servicio de transporte público intraprovincial o interprovincial de pasajeros | C88: 320 | D88: 30
A89: ANT-032-01-03 | B89: Revocación de licencia de conducir por incapacidad física y mental | C89: 160 | D89: 30
A90: ANT-038-03-03 | B90: Solicitud de cambio de socio con vehículo para operadoras de transporte de carga mixta. | C90: 80 | D90: 30
A91: ANT-039-02-02 | B91: Autorización de escisión de operadoras de transporte público de pasajeros | C91: 960 | D91: 30
A92: ANT-034-03-04 | B92: Calificación de aplicativos móviles para personas naturales | C92: 240 | D92: 30
A93: ANT-037-01-02 | B93: Concesión de permiso de operación para operadoras de transporte de carga pesada | C93: 480 | D93: 30
A94: ANT-039-01-02 | B94: Concesión del contrato de operación para la prestación del servicio de transporte público intraprovincial o interprovincial de pasajeros | C94: 480 | D94: 30
A95: ANT-032-04-01 | B95: Desactivación de bloqueo de prohibición de enajenar vehículo por juicio, embargo, insolvencia o inventario | C95: 160 | D95: 30
A96: ANT-039-01-05 | B96: Emisión de reforma de estatutos de transporte intraprovincial o interprovincial por cambio de objeto social referente al tipo de servicio (cambio de modalidad) | C96: 480 | D96: 30
A97: ANT-032-09-07 | B97: Exoneración de multas por calendarización a vehículo no matriculado por problemas técnicos de fuerza mayor presentados en la entidad competente | C97: 160 | D97: 30
A98: ANT-038-02-02 | B98: Habilitación de vehículo para operadoras de transporte mixto | C98: 80 | D98: 30
A99: ANT-042-01-03 | B99: Habilitación técnica y operación de terminal terrestre | C99: 720 | D99: 30
A100: ANT-034-01-11 | B100: Homologación de vehículos eléctricos para carga, subcategoría N | C100: 120 | D100: 30
A101: ANT-034-01-03 | B101: Inclusión de versiones y/o aplicaciones en un modelo base homologado de vehículos automotores, subcategoría M1 | C101: 50 | D101: 30
A102: ANT-034-01-15 | B102: Inclusión de versiones y/o aplicaciones en un modelo base homologado para categoría M2 y M3 INEN de fabricación o ensamblaje nacional | C102: 120 | D102: 30
A103: ANT-042-02-10 | B103: Rectificación de nómina de alumnos graduados del curso de recuperación de puntos de licencia de conducir | C103: 24 | D103: 0
A104: ANT-039-03-04 | B104: Reversión de ruta y/o frecuencia de operadoras de transporte intraprovincial o interprovincial | C104: 480 | D104: 30
A105: ANT-042-01-01 | B105: Aprobación y tipología de ubicación de terminal terrestre | C105: 360 | D105: 30
A106: ANT-032-04-02 | B106: Desactivación de bloqueo de vehículo por haber cumplido el tiempo establecido de reserva de dominio por menaje de casa | C106: 1 | D106: 0
A107: ANT-034-02-04 | B107: Homologación de dispositivos y equipos tecnológicos para detección y notificación de infracciones de tránsito importados por parte de persona jurídica | C107: 240 | D107: 30
A108: ANT-034-02-02 | B108: Homologación de dispositivos y equipos tecnológicos para detección y notificación de infracciones de tránsito importados por parte de persona natural | C108: 240 | D108: 30
A109: ANT-034-02-10 | B109: Homologación de sistemas de posicionamiento y administración para taxis ejecutivos (GPS) | C109: 240 | D109: 30
A110: ANT-034-01-13 | B110: Inclusión de versiones y/o aplicaciones de modelo base de aprobado de vehículo incompleto - chasis motorizados para carrozaje nacional en categoría M2 y M3 INEN | C110: 120 | D110: 30
A111: ANT-034-01-17 | B111: Inclusión de versiones y/o aplicaciones en un modelo base homologado de motocicletas, tricimotos y demás similares nacionales, Subcategoría L. | C111: 120 | D111: 30
A112: ANT-032-01-04 | B112: Suspensión de licencia de conducir por no aprobación de pruebas de renovación o canje de licencia internacional de conducir o infracciones de tránsito que conlleven sanción | C112: 160 | D112: 30
A113: ANT-032-03-08 | B113: Activación de bloqueo de vehículo por retención vehicular | C113: 160 | D113: 30
A114: ANT-042-01-02 | B114: Aprobación de estudios y diseños arquitectónicos previos a la implementación de terminal terrestre | C114: 720 | D114: 30
A115: ANT-034-03-03 | B115: Calificación de aplicativos móviles para personas jurídicas | C115: 240 | D115: 30
A116: ANT-040-02-03 | B116: Emisión de permiso especial de origen para transporte internacional por cuenta propia | C116: 160 | D116: 30
A117: ANT-032-09-04 | B117: Exoneración de multas por calendarización a vehículos del sector público que hubieren sido entregados por parte de otras instituciones, por haber asumido los derechos y obligaciones por mandato de la ley | C117: 160 | D117: 30
A118: ANT-042-02-07 | B118: Habilitación de funcionamiento de la escuela de capacitación como centro de recuperación de puntos (convenio como centro de recuperación de puntos) | C118: 240 | D118: 30
A119: ANT-032-02-02 | B119: Inactivación de vehículo por robo | C119: 1 | D119: 0
A120: ANT-039-04-04 | B120: Racionalización de corredores viales a operadoras de transporte intraprovincial o interprovincial | C120: 960 | D120: 30
A121: ANT-042-02-09 | B121: Rectificación de nóminas de alumnos matriculados de escuelas de conducción profesionales (por alumno) | C121: 24 | D121: 0
A122: ANT-038-01-02 | B122: Renovación de permiso de operación para operadoras de transporte mixto | C122: 240 | D122: 30
A123: ANT-034-01-06 | B123: Homologación de vehículos importados completos categoría M2 INEN destinados al servicio transporte comercial (incluye microbús de hasta 5000 kg de peso) | C123: 120 | D123: 30
A124: ANT-032-03-04 | B124: Activación de bloqueo de reserva de dominio de vehículo por cupo discapacitado | C124: 160 | D124: 30
A125: ANT-032-03-07 | B125: Activación de bloqueo de vehículo por gemelo o clonado | C125: 160 | D125: 30
A126: ANT-032-03-03 | B126: Activación de bloqueo por reserva de dominio de vehículo de diplomático | C126: 160 | D126: 30
A127: ANT-032-12-05 | B127: Atención de denuncia respecto a posibles actos de corrupción | C127: 160 | D127: 30
A128: ANT-034-02-11 | B128: Homologación de simuladores de conducción y equipos psicosensométricos para personas jurídicas importados | C128: 240 | D128: 30
A129: ANT-034-01-08 | B129: Inclusión de versiones y/o aplicaciones en un modelo base homologado para subcategoría M2 | C129: 50 | D129: 30
A130: ANT-032-08-03 | B130: Ingreso de sentencia condenatoria (delitos de tránsito) | C130: 320 | D130: 30
A131: ANT-039-03-02 | B131: Modificación de frecuencia (cambio de horario) de operadora de transporte intraprovincial o interprovincial | C131: 480 | D131: 30
A132: ANT-032-15-02 | B132: Rectificación de resoluciones de operadoras de transporte | C132: 160 | D132: 30
A133: ANT-042-02-04 | B133: Regularización de vehículos en escuelas de capacitación para conductores profesionales y no profesionales (aumento o disminución de vehículos) | C133: 360 | D133: 30
A134: ANT-032-14-03 | B134: Atención al recurso extraordinario de revisión | C134: 360 | D134: 30
A135: ANT-032-12-03 | B135: Atención de felicitaciones respecto a los servicios que presta la ANT | C135: 32 | D135: 0
A136: ANT-042-02-06 | B136: Autorización de cambio de domicilio de la escuela de capacitación para conductores profesionales y no profesionales | C136: 1824 | D136: 30
A137: ANT-036-01-03 | B137: Renovación del permiso de operación para operadoras de transporte turístico | C137: 240 | D137: 30
A138: ANT-041-01-01 | B138: Autorización para funcionamiento como compañía de renta de vehículos | C138: 160 | D138: 30
A139: ANT-034-01-10 | B139: Homologación de vehículos eléctricos, subcategoría M1 | C139: 120 | D139: 30
A140: ANT-032-03-01 | B140: Activación de bloqueo por prohibición de enajenar vehículo (por juicio, embargo, insolvencia o inventario) | C140: 160 | D140: 30
A141: ANT-041-02-02 | B141: Deshabilitación de vehículo en compañía de renta de vehículos | C141: 120 | D141: 30
A142: ANT-032-09-03 | B142: Exoneración de multas por calendarización a vehículo que se encontraba dentro de un proceso judicial | C142: 160 | D142: 30
A143: ANT-038-01-01 | B143: Concesión de permiso de operación para operadoras de transporte mixto | C143: 480 | D143: 30
A144: ANT-032-11-05 | B144: Devolución de pagos por sentencias absolutorias de infracciones | C144: 360 | D144: 30
A145: ANT-032-03-02 | B145: Activación de bloqueo por reserva de dominio de vehículo por menaje de casa | C145: 160 | D145: 30
A146: ANT-032-12-04 | B146: Atención de denuncia respecto al Transporte Terrestre, Tránsito y Seguridad Vial | C146: 32 | D146: 0
A147: ANT-042-02-02 | B147: Autorización para funcionamiento por primera vez de escuelas de capacitación o sucursales para conductores profesionales y no profesionales | C147: 1824 | D147: 30
A148: ANT-042-02-08 | B148: Rectificación de nóminas de alumnos graduados de escuelas de conducción profesionales (por alumno) | C148: 24 | D148: 0
A149: ANT-032-02-01 | B149: Inactivación definitiva voluntaria de vehículo por chatarrización | C149: 1 | D149: 0
A150: ANT-034-01-04 | B150: Inclusión de versiones y/o aplicaciones en un modelo base homologado de vehículos automotores para carga subcategoría N | C150: 50 | D150: 30
A151: ANT-042-02-01 | B151: Autorización para la creación de escuela de capacitación o sucursales para conductores profesionales y no profesionales | C151: 120 | D151: 30
A152: ANT-039-03-03 | B152: Modificación y/o alargue de ruta de operadora de transporte intraprovincial o interprovincial | C152: 480 | D152: 30
A153: ANT-038-02-01 | B153: Emisión de incremento de cupo para operadoras de transporte mixto | C153: 480 | D153: 30
A154: ANT-039-03-01 | B154: Emisión de incremento de frecuencia de operadoras de transporte intraprovincial o interprovincial | C154: 480 | D154: 30
A155: ANT-036-01-02 | B155: Emisión de permiso de operación a personas jurídicas en la modalidad de transporte turístico | C155: 480 | D155: 30
A156: ANT-032-08-11 | B156: Actualización de pago de multas por infracciones de tránsito | C156: 1 | D156: 0
A157: ANT-039-01-06 | B157: Concesión de nueva ruta y frecuencia de operadora de transporte intraprovincial o interprovincial | C157: 480 | D157: 30
A158: ANT-032-11-04 | B158: Devolución de pagos indebido para personas jurídicas | C158: 360 | D158: 30
A159: ANT-032-14-01 | B159: Atención al recurso de apelación | C159: 360 | D159: 30
A160: ANT-032-01-02 | B160: Anulación de licencia de conducir por acto viciado o sin requisitos | C160: 160 | D160: 30
A161: ANT-034-01-07 | B161: Homologación de vehículos importados completos categoría M3 INEN destinados al servicio transporte público y comercial (incluye microbús desde 5000 kg de peso) | C161: 120 | D161: 30
A162: ANT-036-01-06 | B162: Emisión de Documento Único de Transporte Turístico (DUTT) a operadoras nacionales de turismo que realizan transporte internacional turístico de pasajeros (Ecuador - Colombia) | C162: 120 | D162: 30
A163: ANT-034-03-07 | B163: Emisión de licencia de importación de un lote de tricimotos | C163: 160 | D163: 30
A164: ANT-039-01-07 | B164: Emisión de dimensionamiento de flota vehicular para operadoras de transporte intraprovincial o interprovincial | C164: 480 | D164: 30
A165: ANT-032-13-04 | B165: Registro de puntos recuperados que no se cargaron a tiempo por pago tardío de infracciones | C165: 240 | D165: 30
A166: ANT-032-08-09 | B166: Anulación de multas por infracciones de tránsito por prescripción | C166: 160 | D166: 30
A167: ANT-036-02-02 | B167: Deshabilitación de vehículo para operadoras de transporte turístico | C167: 80 | D167: 30
A168: ANT-032-09-02 | B168: Exoneración de multas por calendarización a vehículo que ha sido objeto de robo | C168: 160 | D168: 30
A169: ANT-037-04-06 | B169: Desvinculación de flota vehicular y unidades de carga de operadoras nacionales que realizan transporte terrestre internacional | C169: 80 | D169: 30
A170: ANT-032-13-01 | B170: Autorización para matrícula e inicio de clases de centros de recuperación de puntos para conductores profesionales y no profesionales | C170: 240 | D170: 30
A171: ANT-032-06-09 | B171: Actualización del beneficiario o arrendatario de un fideicomiso o leasing | C171: 1 | D171: 0
A172: ANT-036-01-04 | B172: Emisión de incremento de cupo para operadoras de transporte turístico | C172: 480 | D172: 30
A173: ANT-032-08-08 | B173: Actualización de registro de pagos de citaciones de tránsito que no dieron de baja en el sistema "pagos en línea" | C173: 160 | D173: 30
A174: ANT-041-02-01 | B174: Habilitación de vehículo en compañía de renta de vehículos | C174: 120 | D174: 30
A175: ANT-037-05-01 | B175: Registro de flota de operadora extranjera que requiere circular en el territorio nacional | C175: 80 | D175: 30
A176: ANT-038-01-03 | B176: Emisión de informe previo a la constitución jurídica para operadoras de transporte mixto | C176: 360 | D176: 30
A177: ANT-034-01-14 | B177: Homologación de vehículos de subtecategoría M2 y M3 INEN de fabricación o ensamblaje nacional | C177: 120 | D177: 30
A178: ANT-036-02-03 | B178: Renovación de vehículo para operadoras de transporte turístico (Cambio de vehículo) | C178: 120 | D178: 30
A179: ANT-036-01-01 | B179: Emisión de informe previo a la constitución jurídica para compañías o cooperativas de transporte turístico | C179: 360 | D179: 30
A180: ANT-036-02-01 | B180: Habilitación de vehículo para operadoras de transporte turístico | C180: 120 | D180: 30
A181: ANT-039-05-02 | B181: Autorización de cambio de socio con habilitación de vehículo de operadoras de transporte intraprovincial o interprovincial | C181: 160 | D181: 30
A182: ANT-032-05-03 | B182: Actualización o registro de información de licencia de conducir | C182: 2 | D182: 0
A183: ANT-039-05-01 | B183: Autorización de cambio de socio y vehículo de operadora de transporte intraprovincial o interprovincial | C183: 160 | D183: 30
A184: ANT-039-05-03 | B184: Autorización de cambio de socio sin vehículo de operadoras de transporte intraprovincial o interprovincial | C184: 160 | D184: 30
A185: ANT-033-01-06 | B185: Emisión de certificado de conformidad de vehículo para cambio de servicio | C185: 240 | D185: 30
A186: ANT-032-09-01 | B186: Exoneración de multas por calendarización a vehículo que se encuentra en taller mecánico y no se presenta a revisión técnica vehicular | C186: 160 | D186: 30
A187: ANT-032-12-06 | B187: Atención de consultas jurídicas sobre los servicios que presta la ANT | C187: 360 | D187: 30
A188: ANT-034-01-02 | B188: Homologación de vehículos automotores para carga, subcategoría N | C188: 141 | D188: 30
A189: ANT-042-03-02 | B189: Emisión de permiso de aprendizaje de manejo para alumnos de escuelas de capacitación de conductores profesionales y no profesionales | C189: 24 | D189: 0
A190: ANT-034-01-16 | B190: Homologación de motocicletas, tricimotos y demás similares nacionales, subcategoría L | C190: 120 | D190: 30
A191: ANT-034-01-01 | B191: Homologación de vehículos automotores, subcategoría M1 | C191: 285 | D191: 30
A192: ANT-037-04-05 | B192: Habilitación de vehículo y registro de unidad de carga de operadoras nacionales que cuentan con certificado de idoneidad | C192: 80 | D192: 30
A193: ANT-042-04-04 | B193: Autorización de canje de licencia de conducir extranjera por ecuatoriana | C193: 1 | D193: 0
A194: ANT-032-12-01 | B194: Atención de queja respecto a los servicios que presta la ANT | C194: 32 | D194: 0
A195: ANT-032-13-03 | B195: Recuperación de puntos a la licencia de conducir por aprobación de curso en un centro de recuperación de puntos | C195: 240 | D195: 30
A196: ANT-032-05-02 | B196: Actualización o registro de información de persona jurídica | C196: 1 | D196: 0
A197: ANT-033-01-02 | B197: Emisión de certificado de historial de infracciones del vehículo persona natural y jurídica | C197: 0.33 | D197: 0
A198: ANT-039-04-01 | B198: Habilitación de vehículo de operadora de transporte intraprovincial o interprovincial | C198: 160 | D198: 30
A199: ANT-032-11-03 | B199: Devolución de pagos indebidos para personas naturales | C199: 360 | D199: 30
A200: ANT-039-04-02 | B200: Deshabilitación de vehículo de operadora de transporte intraprovincial o interprovincial | C200: 160 | D200: 30
A201: ANT-042-02-03 | B201: Autorización de período de matrículas e inicio de clases y/o prórrogas de la escuela de capacitación para conductores profesionales y no profesionales | C201: 240 | D201: 30
... 25 more rows

Sheet CANAL ATENCIÓN
A1: PRIORIZACIÓN DE TRÁMITES ADMINISTRATIVOS
A2: CANAL DE ATENCIÓN
I3: Totalmente en Línea | L3: 0
A4: IDENTIFICADOR | B4: TRÁMITE | C4: CANAL ATENCIÓN | D4: PUNTUACIÓN | I4: No se completa totalmente en línea. | L4: 10
A5: ANT-032-06-04 | B5: Actualización de cambio de color primario y/o secundario del vehículo | C5: No se completa totalmente en línea. | D5: =IF(ISBLANK(C5),"",IF(C5="Totalmente en línea",0,IF(C5="Inicia en línea",6,10))) -> 10
A6: ANT-032-06-11 | B6: Actualización de cambio de número de placa de vehículo adquirido mediante remate | C6: No se completa totalmente en línea. | D6: =IF(ISBLANK(C6),"",IF(C6="Totalmente en línea",0,IF(C6="Inicia en línea",6,10))) -> 10
A7: ANT-032-06-12 | B7: Actualización de cambio de número de placa de vehículo gemelo o clonado | C7: No se completa totalmente en línea. | D7: 10
A8: ANT-032-06-01 | B8: Actualización de chasis y/o motor por remarcado | C8: No se completa totalmente en línea. | D8: 10
A9: ANT-032-06-10 | B9: Actualización de dominio por prescripción adquisitiva de vehículo | C9: No se completa totalmente en línea. | D9: 10
A10: ANT-032-06-06 | B10: Actualización de información por cambio de servicio de transporte | C10: No se completa totalmente en línea. | D10: 10
A11: ANT-032-08-02 | B11: Actualización de registro de pagos de delitos de tránsito | C11: No se completa totalmente en línea. | D11: 10
A12: ANT-032-06-07 | B12: Actualización o registro de fecha de revisión técnica vehicular | C12: No se completa totalmente en línea. | D12: 10
A13: ANT-032-08-01 | B13: Anulación de multa por infracciones de tránsito por sentencia absolutoria | C13: No se completa totalmente en línea. | D13: 10
A14: ANT-032-08-06 | B14: Anulación de multas por infracciones de tránsito por duplicidad | C14: No se completa totalmente en línea. | D14: 10
A15: ANT-032-08-10 | B15: Anulación de multas por infracciones de tránsito por fallecimiento | C15: No se completa totalmente en línea. | D15: 10
A16: ANT-034-01-12 | B16: Aprobación de vehículo incompleto - chasis motorizado para carrozaje nacional en categorías M2 y M3 INEN | C16: No se completa totalmente en línea. | D16: 10
A17: ANT-032-14-02 | B17: Atención al recurso de reposición | C17: No se completa totalmente en línea. | D17: 10
A18: ANT-042-04-09 | B18: Autorización de cambio de categoría de licencia Tipo F a tipología anteriormente obtenido No Profesional | C18: No se completa totalmente en línea. | D18: 10
A19: ANT-037-06-02 | B19: Autorización de cambio de socio con habilitación de vehículo para operadoras de transporte de carga pesada | C19: No se completa totalmente en línea. | D19: 10
A20: ANT-038-03-02 | B20: Autorización de cambio de socio con habilitación de vehículo para operadoras de transporte mixto | C20: No se completa totalmente en línea. | D20: 10
A21: ANT-038-03-01 | B21: Autorización de cambio de socio sin vehículo para operadoras de transporte mixto | C21: No se completa totalmente en línea. | D21: 10
A22: ANT-037-06-01 | B22: Autorización de cambio de socio sin vehículo para operadoras de transporte terrestre de carga pesada | C22: No se completa totalmente en línea. | D22: 10
A23: ANT-037-06-03 | B23: Autorización de cambio de socio y vehículo para operadoras de transporte de carga pesada | C23: No se completa totalmente en línea. | D23: 10
A24: ANT-039-02-01 | B24: Autorización de fusión de operadoras de transporte público de pasajeros | C24: No se completa totalmente en línea. | D24: 10
A25: ANT-040-02-02 | B25: Autorización de registro de flota vehicular en permiso especial complementario para transporte terrestre internacional por cuenta propia | C25: No se completa totalmente en línea. | D25: 10
A26: ANT-039-06-02 | B26: Autorización de registro de vehículos de operadoras extranjeras de pasajeros que requieren circular en el territorio nacional | C26: No se completa totalmente en línea. | D26: 10
A27: ANT-035-01-01 | B27: Autorización de uso de polarizados en vehículos | C27: No se completa totalmente en línea. | D27: 10
A28: ANT-039-06-01 | B28: Autorización del permiso de prestación de servicios a operadoras extranjeras registradas en los países miembros de la Comunidad Andina de Naciones que requieran realizar operaciones de Transporte de carga en el Ecuador. | C28: No se completa totalmente en línea. | D28: 10
A29: ANT-034-03-05 | B29: Calificación de aplicativos móviles para personas jurídicas | C29: No se completa totalmente en línea. | D29: 10
A30: ANT-034-03-02 | B30: Calificación de empresas fabricantes y/o ensambladoras de carrocerías de vehículos tipo M2 y M3 INEN para personas jurídicas | C30: No se completa totalmente en línea. | D30: 10
A31: ANT-034-03-01 | B31: Calificación de empresas fabricantes y/o ensambladoras de carrocerías de vehículos tipo M2 y M3 INEN para personas naturales | C31: No se completa totalmente en línea. | D31: 10
A32: ANT-040-01-01 | B32: Concesión de autorización del transporte por cuenta propia nacional a personas naturales o jurídicas | C32: No se completa totalmente en línea. | D32: 10
A33: ANT-032-04-04 | B33: Desactivación de bloqueo de reserva de dominio de vehículo por cupo discapacitado | C33: No se completa totalmente en línea. | D33: 10
A34: ANT-032-04-03 | B34: Desactivación de bloqueo de reserva de dominio de vehículo por diplomático | C34: No se completa totalmente en línea. | D34: 10
A35: ANT-032-04-07 | B35: Desactivación de bloqueo de vehículo por retención vehicular | C35: No se completa totalmente en línea. | D35: 10
A36: ANT-040-03-02 | B36: Deshabilitación de un vehículo de una autorización de transporte por cuenta propia | C36: No se completa totalmente en línea. | D36: 10
A37: ANT-037-04-02 | B37: Deshabilitación de vehículo para operadoras de transporte de carga pesada | C37: No se completa totalmente en línea. | D37: 10
A38: ANT-038-02-03 | B38: Deshabilitación de vehículo para operadoras de transporte mixto | C38: No se completa totalmente en línea. | D38: 10
A39: ANT-039-06-05 | B39: Desvinculación de vehículo de operadoras nacionales interprovinciales con permiso originario de prestación de servicios | C39: No se completa totalmente en línea. | D39: 10
A40: ANT-037-01-05 | B40: Emisión de Certificado de Idoneidad de operadora nacional que requiere realizar operaciones en los países miembros de la CAN. | C40: No se completa totalmente en línea. | D40: 10
A41: ANT-042-04-03 | B41: Emisión de duplicado de licencia profesional y NO profesional | C41: No se completa totalmente en línea. | D41: 10
A42: ANT-042-05-04 | B42: Emisión de duplicado, cambio de servicio y/o reemplazos de placas para motos | C42: No se completa totalmente en línea. | D42: 10
A43: ANT-037-03-01 | B43: Emisión de incremento de cupo para operadoras de transporte de carga pesada | C43: No se completa totalmente en línea. | D43: 10
A44: ANT-036-01-05 | B44: Emisión de informe favorable previo a la reforma de estatutos para compañías o cooperativas de transporte turístico | C44: No se completa totalmente en línea. | D44: 10
A45: ANT-039-01-01 | B45: Emisión de informe previo a la constitución jurídica de operadoras de transporte intraprovincial o interprovincial | C45: No se completa totalmente en línea. | D45: 10
A46: ANT-037-01-01 | B46: Emisión de informe previo a la constitución jurídica para compañías de transporte de carga pesada | C46: No se completa totalmente en línea. | D46: 10
A47: ANT-037-01-04 | B47: Emisión de informe previo a la reforma de estatutos para operadoras de transporte terrestre de carga pesada | C47: No se completa totalmente en línea. | D47: 10
A48: ANT-038-01-04 | B48: Emisión de informe previo a la reforma de estatutos para operadoras de transporte terrestre mixto | C48: No se completa totalmente en línea. | D48: 10
A49: ANT-042-04-08 | B49: Emisión de licencia de conducir por primera vez no profesional tipo: F | C49: No se completa totalmente en línea. | D49: 10
A50: ANT-036-01-07 | B50: Emisión de Permiso de Circuito Cerrado a operadoras nacionales de turismo que realizan transporte internacional turístico de pasajeros (Ecuador - Perú) | C50: No se completa totalmente en línea. | D50: 10
A51: ANT-042-03-01 | B51: Emisión de permiso de conducción para menor adulto (Licencia NO Profesional) | C51: No se completa totalmente en línea. | D51: 10
A52: ANT-037-02-01 | B52: Emisión de Permiso de Prestación de Servicios de operadora extranjera que requiere circular en el territorio nacional (PPS) | C52: No se completa totalmente en línea. | D52: 10
A53: ANT-040-02-01 | B53: Emisión de permiso especial complementario para transporte terrestre internacional por cuenta propia a empresas extranjeras | C53: No se completa totalmente en línea. | D53: 10
A54: ANT-042-04-10 | B54: Emisión de permiso internacional para conductores profesionales y no profesionales | C54: No se completa totalmente en línea. | D54: 10
A55: ANT-039-01-04 | B55: Emisión de reforma de estatutos de transporte intraprovincial o interprovincial por cambio de objeto social de transporte y otros a exclusivo | C55: No se completa totalmente en línea. | D55: 10
A56: ANT-032-09-05 | B56: Exoneración de multas por calendarización a vehículos del sector público por retraso en la certificación respecto a la asignación presupuestaria | C56: No se completa totalmente en línea. | D56: 10
A57: ANT-032-09-06 | B57: Exoneración de multas por calendarización a vehículos que previa su entrega a una institución pública se hubieren encontrado incautados por orden judicial | C57: No se completa totalmente en línea. | D57: 10
A58: ANT-040-03-03 | B58: Habilitación de nuevos vehículos con permiso especial de origen para transporte terrestre internacional por cuenta propia | C58: No se completa totalmente en línea. | D58: 10
A59: ANT-040-03-01 | B59: Habilitación de un vehículo de una autorización de transporte por cuenta propia | C59: No se completa totalmente en línea. | D59: 10
A60: ANT-039-06-03 | B60: Habilitación de vehículo a operadoras nacionales interprovinciales con permiso originario de prestación de servicios | C60: No se completa totalmente en línea. | D60: 10
A61: ANT-037-04-01 | B61: Habilitación de vehículo para operadoras de transporte de carga pesada | C61: No se completa totalmente en línea. | D61: 10
A62: ANT-034-02-09 | B62: Homologación de dispositivo de medición, control y seguridad "Disco Pare" importados para personas jurídicas | C62: No se completa totalmente en línea. | D62: 10
A63: ANT-034-02-08 | B63: Homologación de dispositivo de medición, control y seguridad "Disco Pare" importados para personas naturales | C63: No se completa totalmente en línea. | D63: 10
A64: ANT-034-02-07 | B64: Homologación de dispositivo de medición, control y seguridad "Disco Pare" nacionales para personas jurídicas | C64: No se completa totalmente en línea. | D64: 10
A65: ANT-034-02-06 | B65: Homologación de dispositivo de medición, control y seguridad "Disco Pare" nacionales para personas naturales | C65: No se completa totalmente en línea. | D65: 10
A66: ANT-034-02-03 | B66: Homologación de dispositivos y equipos tecnológicos para detección y notificación de infracciones de tránsito nacionales por parte de persona jurídica | C66: No se completa totalmente en línea. | D66: 10
A67: ANT-034-02-01 | B67: Homologación de dispositivos y equipos tecnológicos para detección y notificación de infracciones de tránsito nacionales por parte de persona natural | C67: No se completa totalmente en línea. | D67: 10
A68: ANT-042-04-05 | B68: Homologación de licencia de conducir extranjera por la ecuatoriana | C68: No se completa totalmente en línea. | D68: 10
A69: ANT-034-02-12 | B69: Homologación de simuladores de conducción y equipos psicosensométricos para personas jurídicas nacionales | C69: No se completa totalmente en línea. | D69: 10
A70: ANT-034-02-05 | B70: Homologación de taxímetro (dispositivos de medición, control y seguridad) | C70: No se completa totalmente en línea. | D70: =IF(ISBLANK(C70),"",IF(C70="Totalmente en línea",0,IF(C70="Inicia en línea",6,10))) -> 10
A71: ANT-034-01-05 | B71: Homologación de vehículos importados completos categoría M2 INEN destinados al servicio transporte público (incluye microbús de hasta 5000 kg de peso) | C71: No se completa totalmente en línea. | D71: 10
A72: ANT-034-02-13 | B72: Homologación del sistema tecnológico de recaudo electrónico de transporte público intracantonal | C72: No se completa totalmente en línea. | D72: 10
A73: ANT-032-08-04 | B73: Impugnación de multas por infracciones de tránsito | C73: No se completa totalmente en línea. | D73: 10
A74: ANT-034-01-09 | B74: Inclusión de versiones y/o aplicaciones en un modelo base homologado para subcategoría M3 | C74: No se completa totalmente en línea. | D74: 10
A75: ANT-032-07-01 | B75: Levantamiento de revocatoria o anulación de licencias de conducir | C75: No se completa totalmente en línea. | D75: 10
A76: ANT-032-07-02 | B76: Levantamiento de suspensión de licencia de conducir por aprobación de pruebas de renovación o canje de licencia internacional de conducir o infracciones de tránsito que conlleven sanción | C76: No se completa totalmente en línea. | D76: 10
A77: ANT-037-04-04 | B77: Matriculación de unidades de carga para operadoras de transporte terrestre de carga pesada | C77: No se completa totalmente en línea. | D77: 10
A78: ANT-032-15-03 | B78: Modificación de datos en resoluciones de operadoras de transporte | C78: No se completa totalmente en línea. | D78: 10
A79: ANT-032-15-01 | B79: Rectificación de chasis y/o motor por remarcado (por error de tipeo) | C79: No se completa totalmente en línea. | D79: 10
A80: ANT-032-06-05 | B80: Rectificación de número de identificación del vehículo VIN | C80: No se completa totalmente en línea. | D80: 10
A81: ANT-032-13-02 | B81: Recuperación automática de puntos a la licencia de conducir por no incurrir en multas por infracciones de tránsito durante un año | C81: Totalmente en Línea | D81: 0
A82: ANT-042-02-05 | B82: Regularización de aulas en la escuela de capacitación para conductores profesionales y no profesionales (aumento o disminución de aulas) | C82: No se completa totalmente en línea. | D82: 10
A83: ANT-039-06-04 | B83: Renovación de habilitación de vehículo de operadoras nacionales interprovinciales con permiso originario de prestación de servicios | C83: No se completa totalmente en línea. | D83: 10
A84: ANT-037-01-03 | B84: Renovación de permiso de operación para operadoras de transporte de carga pesada | C84: No se completa totalmente en línea. | D84: 10
A85: ANT-039-04-03 | B85: Renovación de vehículo de operadora de transporte intraprovincial o interprovincial (cambio de vehículo) | C85: No se completa totalmente en línea. | D85: 10
A86: ANT-037-04-03 | B86: Renovación de vehículo para operadoras de transporte de carga pesada | C86: No se completa totalmente en línea. | D86: 10
A87: ANT-038-02-04 | B87: Renovación de vehículo para operadoras de transporte mixto (cambio de vehículo) | C87: No se completa totalmente en línea. | D87: 10
A88: ANT-039-01-03 | B88: Renovación del contrato de operación para la prestación del servicio de transporte público intraprovincial o interprovincial de pasajeros | C88: No se completa totalmente en línea. | D88: 10
A89: ANT-032-01-03 | B89: Revocación de licencia de conducir por incapacidad física y mental | C89: No se completa totalmente en línea. | D89: 10
A90: ANT-038-03-03 | B90: Solicitud de cambio de socio con vehículo para operadoras de transporte de carga mixta. | C90: No se completa totalmente en línea. | D90: 10
A91: ANT-039-02-02 | B91: Autorización de escisión de operadoras de transporte público de pasajeros | C91: No se completa totalmente en línea. | D91: 10
A92: ANT-034-03-04 | B92: Calificación de aplicativos móviles para personas naturales | C92: No se completa totalmente en línea. | D92: 10
A93: ANT-037-01-02 | B93: Concesión de permiso de operación para operadoras de transporte de carga pesada | C93: No se completa totalmente en línea. | D93: 10
A94: ANT-039-01-02 | B94: Concesión del contrato de operación para la prestación del servicio de transporte público intraprovincial o interprovincial de pasajeros | C94: No se completa totalmente en línea. | D94: 10
A95: ANT-032-04-01 | B95: Desactivación de bloqueo de prohibición de enajenar vehículo por juicio, embargo, insolvencia o inventario | C95: No se completa totalmente en línea. | D95: 10
A96: ANT-039-01-05 | B96: Emisión de reforma de estatutos de transporte intraprovincial o interprovincial por cambio de objeto social referente al tipo de servicio (cambio de modalidad) | C96: No se completa totalmente en línea. | D96: 10
A97: ANT-032-09-07 | B97: Exoneración de multas por calendarización a vehículo no matriculado por problemas técnicos de fuerza mayor presentados en la entidad competente | C97: No se completa totalmente en línea. | D97: 10
A98: ANT-038-02-02 | B98: Habilitación de vehículo para operadoras de transporte mixto | C98: No se completa totalmente en línea. | D98: 10
A99: ANT-042-01-03 | B99: Habilitación técnica y operación de terminal terrestre | C99: No se completa totalmente en línea. | D99: 10
A100: ANT-034-01-11 | B100: Homologación de vehículos eléctricos para carga, subcategoría N | C100: No se completa totalmente en línea. | D100: 10
A101: ANT-034-01-03 | B101: Inclusión de versiones y/o aplicaciones en un modelo base homologado de vehículos automotores, subcategoría M1 | C101: No se completa totalmente en línea. | D101: 10
A102: ANT-034-01-15 | B102: Inclusión de versiones y/o aplicaciones en un modelo base homologado para categoría M2 y M3 INEN de fabricación o ensamblaje nacional | C102: No se completa totalmente en línea. | D102: 10
A103: ANT-042-02-10 | B103: Rectificación de nómina de alumnos graduados del curso de recuperación de puntos de licencia de conducir | C103: No se completa totalmente en línea. | D103: 10
A104: ANT-039-03-04 | B104: Reversión de ruta y/o frecuencia de operadoras de transporte intraprovincial o interprovincial | C104: No se completa totalmente en línea. | D104: 10
A105: ANT-042-01-01 | B105: Aprobación y tipología de ubicación de terminal terrestre | C105: No se completa totalmente en línea. | D105: 10
A106: ANT-032-04-02 | B106: Desactivación de bloqueo de vehículo por haber cumplido el tiempo establecido de reserva de dominio por menaje de casa | C106: No se completa totalmente en línea. | D106: 10
A107: ANT-034-02-04 | B107: Homologación de dispositivos y equipos tecnológicos para detección y notificación de infracciones de tránsito importados por parte de persona jurídica | C107: No se completa totalmente en línea. | D107: 10
A108: ANT-034-02-02 | B108: Homologación de dispositivos y equipos tecnológicos para detección y notificación de infracciones de tránsito importados por parte de persona natural | C108: No se completa totalmente en línea. | D108: 10
A109: ANT-034-02-10 | B109: Homologación de sistemas de posicionamiento y administración para taxis ejecutivos (GPS) | C109: No se completa totalmente en línea. | D109: 10
A110: ANT-034-01-13 | B110: Inclusión de versiones y/o aplicaciones de modelo base de aprobado de vehículo incompleto - chasis motorizados para carrozaje nacional en categoría M2 y M3 INEN | C110: No se completa totalmente en línea. | D110: 10
A111: ANT-034-01-17 | B111: Inclusión de versiones y/o aplicaciones en un modelo base homologado de motocicletas, tricimotos y demás similares nacionales, Subcategoría L. | C111: No se completa totalmente en línea. | D111: 10
A112: ANT-032-01-04 | B112: Suspensión de licencia de conducir por no aprobación de pruebas de renovación o canje de licencia internacional de conducir o infracciones de tránsito que conlleven sanción | C112: No se completa totalmente en línea. | D112: 10
A113: ANT-032-03-08 | B113: Activación de bloqueo de vehículo por retención vehicular | C113: No se completa totalmente en línea. | D113: 10
A114: ANT-042-01-02 | B114: Aprobación de estudios y diseños arquitectónicos previos a la implementación de terminal terrestre | C114: No se completa totalmente en línea. | D114: 10
A115: ANT-034-03-03 | B115: Calificación de aplicativos móviles para personas jurídicas | C115: No se completa totalmente en línea. | D115: 10
A116: ANT-040-02-03 | B116: Emisión de permiso especial de origen para transporte internacional por cuenta propia | C116: No se completa totalmente en línea. | D116: 10
A117: ANT-032-09-04 | B117: Exoneración de multas por calendarización a vehículos del sector público que hubieren sido entregados por parte de otras instituciones, por haber asumido los derechos y obligaciones por mandato de la ley | C117: No se completa totalmente en línea. | D117: 10
A118: ANT-042-02-07 | B118: Habilitación de funcionamiento de la escuela de capacitación como centro de recuperación de puntos (convenio como centro de recuperación de puntos) | C118: No se completa totalmente en línea. | D118: 10
A119: ANT-032-02-02 | B119: Inactivación de vehículo por robo | C119: No se completa totalmente en línea. | D119: 10
A120: ANT-039-04-04 | B120: Racionalización de corredores viales a operadoras de transporte intraprovincial o interprovincial | C120: No se completa totalmente en línea. | D120: 10
A121: ANT-042-02-09 | B121: Rectificación de nóminas de alumnos matriculados de escuelas de conducción profesionales (por alumno) | C121: No se completa totalmente en línea. | D121: 10
A122: ANT-038-01-02 | B122: Renovación de permiso de operación para operadoras de transporte mixto | C122: No se completa totalmente en línea. | D122: 10
A123: ANT-034-01-06 | B123: Homologación de vehículos importados completos categoría M2 INEN destinados al servicio transporte comercial (incluye microbús de hasta 5000 kg de peso) | C123: No se completa totalmente en línea. | D123: 10
A124: ANT-032-03-04 | B124: Activación de bloqueo de reserva de dominio de vehículo por cupo discapacitado | C124: No se completa totalmente en línea. | D124: 10
A125: ANT-032-03-07 | B125: Activación de bloqueo de vehículo por gemelo o clonado | C125: No se completa totalmente en línea. | D125: 10
A126: ANT-032-03-03 | B126: Activación de bloqueo por reserva de dominio de vehículo de diplomático | C126: No se completa totalmente en línea. | D126: 10
A127: ANT-032-12-05 | B127: Atención de denuncia respecto a posibles actos de corrupción | C127: No se completa totalmente en línea. | D127: 10
A128: ANT-034-02-11 | B128: Homologación de simuladores de conducción y equipos psicosensométricos para personas jurídicas importados | C128: No se completa totalmente en línea. | D128: 10
A129: ANT-034-01-08 | B129: Inclusión de versiones y/o aplicaciones en un modelo base homologado para subcategoría M2 | C129: No se completa totalmente en línea. | D129: 10
A130: ANT-032-08-03 | B130: Ingreso de sentencia condenatoria (delitos de tránsito) | C130: No se completa totalmente en línea. | D130: 10
A131: ANT-039-03-02 | B131: Modificación de frecuencia (cambio de horario) de operadora de transporte intraprovincial o interprovincial | C131: No se completa totalmente en línea. | D131: 10
A132: ANT-032-15-02 | B132: Rectificación de resoluciones de operadoras de transporte | C132: No se completa totalmente en línea. | D132: 10
A133: ANT-042-02-04 | B133: Regularización de vehículos en escuelas de capacitación para conductores profesionales y no profesionales (aumento o disminución de vehículos) | C133: No se completa totalmente en línea. | D133: 10
A134: ANT-032-14-03 | B134: Atención al recurso extraordinario de revisión | C134: No se completa totalmente en línea. | D134: =IF(ISBLANK(C134),"",IF(C134="Totalmente en línea",0,IF(C134="Inicia en línea",6,10))) -> 10
A135: ANT-032-12-03 | B135: Atención de felicitaciones respecto a los servicios que presta la ANT | C135: Totalmente en Línea | D135: 0
A136: ANT-042-02-06 | B136: Autorización de cambio de domicilio de la escuela de capacitación para conductores profesionales y no profesionales | C136: No se completa totalmente en línea. | D136: 10
A137: ANT-036-01-03 | B137: Renovación del permiso de operación para operadoras de transporte turístico | C137: No se completa totalmente en línea. | D137: 10
A138: ANT-041-01-01 | B138: Autorización para funcionamiento como compañía de renta de vehículos | C138: No se completa totalmente en línea. | D138: 10
A139: ANT-034-01-10 | B139: Homologación de vehículos eléctricos, subcategoría M1 | C139: No se completa totalmente en línea. | D139: 10
A140: ANT-032-03-01 | B140: Activación de bloqueo por prohibición de enajenar vehículo (por juicio, embargo, insolvencia o inventario) | C140: No se completa totalmente en línea. | D140: 10
A141: ANT-041-02-02 | B141: Deshabilitación de vehículo en compañía de renta de vehículos | C141: No se completa totalmente en línea. | D141: 10
A142: ANT-032-09-03 | B142: Exoneración de multas por calendarización a vehículo que se encontraba dentro de un proceso judicial | C142: No se completa totalmente en línea. | D142: 10
A143: ANT-038-01-01 | B143: Concesión de permiso de operación para operadoras de transporte mixto | C143: No se completa totalmente en línea. | D143: 10
A144: ANT-032-11-05 | B144: Devolución de pagos por sentencias absolutorias de infracciones | C144: No se completa totalmente en línea. | D144: 10
A145: ANT-032-03-02 | B145: Activación de bloqueo por reserva de dominio de vehículo por menaje de casa | C145: No se completa totalmente en línea. | D145: 10
A146: ANT-032-12-04 | B146: Atención de denuncia respecto al Transporte Terrestre, Tránsito y Seguridad Vial | C146: Totalmente en Línea | D146: 0
A147: ANT-042-02-02 | B147: Autorización para funcionamiento por primera vez de escuelas de capacitación o sucursales para conductores profesionales y no profesionales | C147: No se completa totalmente en línea. | D147: 10
A148: ANT-042-02-08 | B148: Rectificación de nóminas de alumnos graduados de escuelas de conducción profesionales (por alumno) | C148: No se completa totalmente en línea. | D148: 10
A149: ANT-032-02-01 | B149: Inactivación definitiva voluntaria de vehículo por chatarrización | C149: No se completa totalmente en línea. | D149: 10
A150: ANT-034-01-04 | B150: Inclusión de versiones y/o aplicaciones en un modelo base homologado de vehículos automotores para carga subcategoría N | C150: No se completa totalmente en línea. | D150: 10
A151: ANT-042-02-01 | B151: Autorización para la creación de escuela de capacitación o sucursales para conductores profesionales y no profesionales | C151: No se completa totalmente en línea. | D151: 10
A152: ANT-039-03-03 | B152: Modificación y/o alargue de ruta de operadora de transporte intraprovincial o interprovincial | C152: No se completa totalmente en línea. | D152: 10
A153: ANT-038-02-01 | B153: Emisión de incremento de cupo para operadoras de transporte mixto | C153: No se completa totalmente en línea. | D153: 10
A154: ANT-039-03-01 | B154: Emisión de incremento de frecuencia de operadoras de transporte intraprovincial o interprovincial | C154: No se completa totalmente en línea. | D154: 10
A155: ANT-036-01-02 | B155: Emisión de permiso de operación a personas jurídicas en la modalidad de transporte turístico | C155: No se completa totalmente en línea. | D155: 10
A156: ANT-032-08-11 | B156: Actualización de pago de multas por infracciones de tránsito | C156: No se completa totalmente en línea. | D156: 10
A157: ANT-039-01-06 | B157: Concesión de nueva ruta y frecuencia de operadora de transporte intraprovincial o interprovincial | C157: No se completa totalmente en línea. | D157: 10
A158: ANT-032-11-04 | B158: Devolución de pagos indebido para personas jurídicas | C158: No se completa totalmente en línea. | D158: 10
A159: ANT-032-14-01 | B159: Atención al recurso de apelación | C159: No se completa totalmente en línea. | D159: 10
A160: ANT-032-01-02 | B160: Anulación de licencia de conducir por acto viciado o sin requisitos | C160: No se completa totalmente en línea. | D160: 10
A161: ANT-034-01-07 | B161: Homologación de vehículos importados completos categoría M3 INEN destinados al servicio transporte público y comercial (incluye microbús desde 5000 kg de peso) | C161: No se completa totalmente en línea. | D161: 10
A162: ANT-036-01-06 | B162: Emisión de Documento Único de Transporte Turístico (DUTT) a operadoras nacionales de turismo que realizan transporte internacional turístico de pasajeros (Ecuador - Colombia) | C162: No se completa totalmente en línea. | D162: 10
A163: ANT-034-03-07 | B163: Emisión de licencia de importación de un lote de tricimotos | C163: No se completa totalmente en línea. | D163: 10
A164: ANT-039-01-07 | B164: Emisión de dimensionamiento de flota vehicular para operadoras de transporte intraprovincial o interprovincial | C164: No se completa totalmente en línea. | D164: 10
A165: ANT-032-13-04 | B165: Registro de puntos recuperados que no se cargaron a tiempo por pago tardío de infracciones | C165: No se completa totalmente en línea. | D165: 10
A166: ANT-032-08-09 | B166: Anulación de multas por infracciones de tránsito por prescripción | C166: No se completa totalmente en línea. | D166: 10
A167: ANT-036-02-02 | B167: Deshabilitación de vehículo para operadoras de transporte turístico | C167: No se completa totalmente en línea. | D167: 10
A168: ANT-032-09-02 | B168: Exoneración de multas por calendarización a vehículo que ha sido objeto de robo | C168: No se completa totalmente en línea. | D168: 10
A169: ANT-037-04-06 | B169: Desvinculación de flota vehicular y unidades de carga de operadoras nacionales que realizan transporte terrestre internacional | C169: No se completa totalmente en línea. | D169: 10
A170: ANT-032-13-01 | B170: Autorización para matrícula e inicio de clases de centros de recuperación de puntos para conductores profesionales y no profesionales | C170: No se completa totalmente en línea. | D170: 10
A171: ANT-032-06-09 | B171: Actualización del beneficiario o arrendatario de un fideicomiso o leasing | C171: No se completa totalmente en línea. | D171: 10
A172: ANT-036-01-04 | B172: Emisión de incremento de cupo para operadoras de transporte turístico | C172: No se completa totalmente en línea. | D172: 10
A173: ANT-032-08-08 | B173: Actualización de registro de pagos de citaciones de tránsito que no dieron de baja en el sistema "pagos en línea" | C173: No se completa totalmente en línea. | D173: 10
A174: ANT-041-02-01 | B174: Habilitación de vehículo en compañía de renta de vehículos | C174: No se completa totalmente en línea. | D174: 10
A175: ANT-037-05-01 | B175: Registro de flota de operadora extranjera que requiere circular en el territorio nacional | C175: No se completa totalmente en línea. | D175: 10
A176: ANT-038-01-03 | B176: Emisión de informe previo a la constitución jurídica para operadoras de transporte mixto | C176: No se completa totalmente en línea. | D176: 10
A177: ANT-034-01-14 | B177: Homologación de vehículos de subtecategoría M2 y M3 INEN de fabricación o ensamblaje nacional | C177: No se completa totalmente en línea. | D177: 10
A178: ANT-036-02-03 | B178: Renovación de vehículo para operadoras de transporte turístico (Cambio de vehículo) | C178: No se completa totalmente en línea. | D178: 10
A179: ANT-036-01-01 | B179: Emisión de informe previo a la constitución jurídica para compañías o cooperativas de transporte turístico | C179: No se completa totalmente en línea. | D179: 10
A180: ANT-036-02-01 | B180: Habilitación de vehículo para operadoras de transporte turístico | C180: No se completa totalmente en línea. | D180: 10
A181: ANT-039-05-02 | B181: Autorización de cambio de socio con habilitación de vehículo de operadoras de transporte intraprovincial o interprovincial | C181: No se completa totalmente en línea. | D181: 10
A182: ANT-032-05-03 | B182: Actualización o registro de información de licencia de conducir | C182: No se completa totalmente en línea. | D182: 10
A183: ANT-039-05-01 | B183: Autorización de cambio de socio y vehículo de operadora de transporte intraprovincial o interprovincial | C183: No se completa totalmente en línea. | D183: 10
A184: ANT-039-05-03 | B184: Autorización de cambio de socio sin vehículo de operadoras de transporte intraprovincial o interprovincial | C184: No se completa totalmente en línea. | D184: 10
A185: ANT-033-01-06 | B185: Emisión de certificado de conformidad de vehículo para cambio de servicio | C185: No se completa totalmente en línea. | D185: 10
A186: ANT-032-09-01 | B186: Exoneración de multas por calendarización a vehículo que se encuentra en taller mecánico y no se presenta a revisión técnica vehicular | C186: No se completa totalmente en línea. | D186: 10
A187: ANT-032-12-06 | B187: Atención de consultas jurídicas sobre los servicios que presta la ANT | C187: No se completa totalmente en línea. | D187: 10
A188: ANT-034-01-02 | B188: Homologación de vehículos automotores para carga, subcategoría N | C188: No se completa totalmente en línea. | D188: 10
A189: ANT-042-03-02 | B189: Emisión de permiso de aprendizaje de manejo para alumnos de escuelas de capacitación de conductores profesionales y no profesionales | C189: No se completa totalmente en línea. | D189: 10
A190: ANT-034-01-16 | B190: Homologación de motocicletas, tricimotos y demás similares nacionales, subcategoría L | C190: No se completa totalmente en línea. | D190: 10
A191: ANT-034-01-01 | B191: Homologación de vehículos automotores, subcategoría M1 | C191: No se completa totalmente en línea. | D191: 10
A192: ANT-037-04-05 | B192: Habilitación de vehículo y registro de unidad de carga de operadoras nacionales que cuentan con certificado de idoneidad | C192: No se completa totalmente en línea. | D192: 10
A193: ANT-042-04-04 | B193: Autorización de canje de licencia de conducir extranjera por ecuatoriana | C193: No se completa totalmente en línea. | D193: 10
A194: ANT-032-12-01 | B194: Atención de queja respecto a los servicios que presta la ANT | C194: Totalmente en Línea | D194: 0
A195: ANT-032-13-03 | B195: Recuperación de puntos a la licencia de conducir por aprobación de curso en un centro de recuperación de puntos | C195: No se completa totalmente en línea. | D195: 10
A196: ANT-032-05-02 | B196: Actualización o registro de información de persona jurídica | C196: No se completa totalmente en línea. | D196: 10
A197: ANT-033-01-02 | B197: Emisión de certificado de historial de infracciones del vehículo persona natural y jurídica | C197: Totalmente en Línea | D197: 0
A198: ANT-039-04-01 | B198: Habilitación de vehículo de operadora de transporte intraprovincial o interprovincial | C198: No se completa totalmente en línea. | D198: =IF(ISBLANK(C198),"",IF(C198="Totalmente en línea",0,IF(C198="Inicia en línea",6,10))) -> 10
A199: ANT-032-11-03 | B199: Devolución de pagos indebidos para personas naturales | C199: No se completa totalmente en línea. | D199: 10
A200: ANT-039-04-02 | B200: Deshabilitación de vehículo de operadora de transporte intraprovincial o interprovincial | C200: No se completa totalmente en línea. | D200: 10
... 26 more rows

Sheet RESUMEN
C1: BÁSICOS | H1: ADICIONALES
A2: ID trámite | B2: Nombre del trámite | C2: Demanda | D2: Quejas | E2: Costo para administración | F2: Tiempo de respuesta | G2: Canal de atención | H2: Necesidades ciudadanas | J2: Susceptibilidad a corrupción | L2: Volumen de devoluciones | N2: PUNTAJE TOTAL
H3: Criterio | I3: Puntuación | J3: Criterio | K3: Puntuación | L3: Criterio | M3: Puntuación | U3: demanda | V3: 0 | W3: 3 | X3: 6 | Y3: 10
A4: ANT-032-06-04 | B4: Actualización de cambio de color primario y/o secundario del vehículo | C4: 0 | D4: 0 | E4: 5 | F4: 0 | G4: =IF(ISBLANK(F4),"",IF(F4="Totalmente en línea",0,IF(F4="Inicia en línea",6,10))) -> 10 | H4: NO | I4: =IF(H4="SI",5,0) -> 0 | J4: NO | K4: =IF(J4="SI",10,0) -> 0 | L4: NO | M4: =IF(L4="SI",5,0) -> 0 | N4: =SUM(C4:G4,I4,K4,M4) -> 15 | U4: quejas | V4: 0 | W4: 4 | X4: 10
A5: ANT-032-06-11 | B5: Actualización de cambio de número de placa de vehículo adquirido mediante remate | C5: 0 | D5: 0 | E5: 5 | F5: 0 | G5: =IF(ISBLANK(F5),"",IF(F5="Totalmente en línea",0,IF(F5="Inicia en línea",6,10))) -> 10 | H5: NO | I5: =IF(H5="SI",5,0) -> 0 | J5: NO | K5: =IF(J5="SI",10,0) -> 0 | L5: NO | M5: =IF(L5="SI",5,0) -> 0 | N5: =SUM(C5:G5,I5,K5,M5) -> 15 | U5: cpa | V5: 5 | W5: 10 | X5: 20
A6: ANT-032-06-12 | B6: Actualización de cambio de número de placa de vehículo gemelo o clonado | C6: 0 | D6: 0 | E6: 5 | F6: 30 | G6: 10 | H6: NO | I6: 0 | J6: NO | K6: 0 | L6: NO | M6: 0 | N6: 45 | U6: tr | V6: 0 | W6: 30
A7: ANT-032-06-01 | B7: Actualización de chasis y/o motor por remarcado | C7: 0 | D7: 0 | E7: 5 | F7: 30 | G7: 10 | H7: NO | I7: 0 | J7: NO | K7: 0 | L7: NO | M7: 0 | N7: 45 | U7: ca | V7: 0 | W7: 10
A8: ANT-032-06-10 | B8: Actualización de dominio por prescripción adquisitiva de vehículo | C8: 0 | D8: 0 | E8: 5 | F8: 0 | G8: 10 | H8: NO | I8: 0 | J8: NO | K8: 0 | L8: NO | M8: 0 | N8: 15 | V8: SI | W8: NO
A9: ANT-032-06-06 | B9: Actualización de información por cambio de servicio de transporte | C9: 0 | D9: 0 | E9: 5 | F9: 0 | G9: 10 | H9: NO | I9: 0 | J9: NO | K9: 0 | L9: NO | M9: 0 | N9: 15
A10: ANT-032-08-02 | B10: Actualización de registro de pagos de delitos de tránsito | C10: 0 | D10: 0 | E10: 5 | F10: 30 | G10: 10 | H10: NO | I10: 0 | J10: NO | K10: 0 | L10: NO | M10: 0 | N10: 45
A11: ANT-032-06-07 | B11: Actualización o registro de fecha de revisión técnica vehicular | C11: 0 | D11: 0 | E11: 5 | F11: 0 | G11: 10 | H11: NO | I11: 0 | J11: NO | K11: 0 | L11: NO | M11: 0 | N11: 15
A12: ANT-032-08-01 | B12: Anulación de multa por infracciones de tránsito por sentencia absolutoria | C12: 0 | D12: 0 | E12: 5 | F12: 30 | G12: 10 | H12: NO | I12: 0 | J12: NO | K12: 0 | L12: NO | M12: 0 | N12: 45
A13: ANT-032-08-06 | B13: Anulación de multas por infracciones de tránsito por duplicidad | C13: 0 | D13: 0 | E13: 5 | F13: 30 | G13: 10 | H13: NO | I13: 0 | J13: NO | K13: 0 | L13: NO | M13: 0 | N13: 45
A14: ANT-032-08-10 | B14: Anulación de multas por infracciones de tránsito por fallecimiento | C14: 0 | D14: 0 | E14: 5 | F14: 30 | G14: 10 | H14: NO | I14: 0 | J14: NO | K14: 0 | L14: NO | M14: 0 | N14: 45
A15: ANT-034-01-12 | B15: Aprobación de vehículo incompleto - chasis motorizado para carrozaje nacional en categorías M2 y M3 INEN | C15: 0 | D15: 0 | E15: 5 | F15: 30 | G15: 10 | H15: NO | I15: 0 | J15: NO | K15: 0 | L15: NO | M15: 0 | N15: 45
A16: ANT-032-14-02 | B16: Atención al recurso de reposición | C16: 0 | D16: 0 | E16: 5 | F16: 30 | G16: 10 | H16: NO | I16: 0 | J16: NO | K16: 0 | L16: NO | M16: 0 | N16: 45
A17: ANT-042-04-09 | B17: Autorización de cambio de categoría de licencia Tipo F a tipología anteriormente obtenido No Profesional | C17: 0 | D17: 0 | E17: 5 | F17: 0 | G17: 10 | H17: NO | I17: 0 | J17: NO | K17: 0 | L17: NO | M17: 0 | N17: 15
A18: ANT-037-06-02 | B18: Autorización de cambio de socio con habilitación de vehículo para operadoras de transporte de carga pesada | C18: 0 | D18: 0 | E18: 5 | F18: 30 | G18: 10 | H18: NO | I18: 0 | J18: NO | K18: 0 | L18: NO | M18: 0 | N18: 45
A19: ANT-038-03-02 | B19: Autorización de cambio de socio con habilitación de vehículo para operadoras de transporte mixto | C19: 0 | D19: 0 | E19: 5 | F19: 30 | G19: 10 | H19: NO | I19: 0 | J19: NO | K19: 0 | L19: NO | M19: 0 | N19: 45
A20: ANT-038-03-01 | B20: Autorización de cambio de socio sin vehículo para operadoras de transporte mixto | C20: 0 | D20: 0 | E20: 5 | F20: 30 | G20: 10 | H20: NO | I20: 0 | J20: NO | K20: 0 | L20: NO | M20: 0 | N20: 45
A21: ANT-037-06-01 | B21: Autorización de cambio de socio sin vehículo para operadoras de transporte terrestre de carga pesada | C21: 0 | D21: 0 | E21: 5 | F21: 30 | G21: 10 | H21: NO | I21: 0 | J21: NO | K21: 0 | L21: NO | M21: 0 | N21: 45
A22: ANT-037-06-03 | B22: Autorización de cambio de socio y vehículo para operadoras de transporte de carga pesada | C22: 0 | D22: 0 | E22: 5 | F22: 30 | G22: 10 | H22: NO | I22: 0 | J22: NO | K22: 0 | L22: NO | M22: 0 | N22: 45
A23: ANT-039-02-01 | B23: Autorización de fusión de operadoras de transporte público de pasajeros | C23: 0 | D23: 0 | E23: 5 | F23: 30 | G23: 10 | H23: NO | I23: 0 | J23: NO | K23: 0 | L23: NO | M23: 0 | N23: 45
A24: ANT-040-02-02 | B24: Autorización de registro de flota vehicular en permiso especial complementario para transporte terrestre internacional por cuenta propia | C24: 0 | D24: 0 | E24: 5 | F24: 30 | G24: 10 | H24: NO | I24: 0 | J24: NO | K24: 0 | L24: NO | M24: 0 | N24: 45
A25: ANT-039-06-02 | B25: Autorización de registro de vehículos de operadoras extranjeras de pasajeros que requieren circular en el territorio nacional | C25: 0 | D25: 0 | E25: 5 | F25: 30 | G25: 10 | H25: NO | I25: 0 | J25: NO | K25: 0 | L25: NO | M25: 0 | N25: 45
A26: ANT-035-01-01 | B26: Autorización de uso de polarizados en vehículos | C26: 0 | D26: 0 | E26: 5 | F26: 30 | G26: 10 | H26: NO | I26: 0 | J26: NO | K26: 0 | L26: NO | M26: 0 | N26: 45
A27: ANT-039-06-01 | B27: Autorización del permiso de prestación de servicios a operadoras extranjeras registradas en los países miembros de la Comunidad Andina de Naciones que requieran realizar operaciones de Transporte de carga en el Ecuador. | C27: 0 | D27: 0 | E27: 5 | F27: 30 | G27: 10 | H27: NO | I27: 0 | J27: NO | K27: 0 | L27: NO | M27: 0 | N27: 45
A28: ANT-034-03-05 | B28: Calificación de aplicativos móviles para personas jurídicas | C28: 0 | D28: 0 | E28: 5 | F28: 30 | G28: 10 | H28: NO | I28: 0 | J28: NO | K28: 0 | L28: NO | M28: 0 | N28: 45
A29: ANT-034-03-02 | B29: Calificación de empresas fabricantes y/o ensambladoras de carrocerías de vehículos tipo M2 y M3 INEN para personas jurídicas | C29: 0 | D29: 0 | E29: 5 | F29: 30 | G29: 10 | H29: NO | I29: 0 | J29: NO | K29: 0 | L29: NO | M29: 0 | N29: 45
A30: ANT-034-03-01 | B30: Calificación de empresas fabricantes y/o ensambladoras de carrocerías de vehículos tipo M2 y M3 INEN para personas naturales | C30: 0 | D30: 0 | E30: 5 | F30: 30 | G30: 10 | H30: NO | I30: 0 | J30: NO | K30: 0 | L30: NO | M30: 0 | N30: 45
A31: ANT-040-01-01 | B31: Concesión de autorización del transporte por cuenta propia nacional a personas naturales o jurídicas | C31: 0 | D31: 0 | E31: 5 | F31: 30 | G31: 10 | H31: SI | I31: 5 | J31: NO | K31: 0 | L31: NO | M31: 0 | N31: 50
A32: ANT-032-04-04 | B32: Desactivación de bloqueo de reserva de dominio de vehículo por cupo discapacitado | C32: 0 | D32: 0 | E32: 5 | F32: 0 | G32: 10 | H32: NO | I32: 0 | J32: NO | K32: 0 | L32: NO | M32: 0 | N32: 15
A33: ANT-032-04-03 | B33: Desactivación de bloqueo de reserva de dominio de vehículo por diplomático | C33: 0 | D33: 0 | E33: 5 | F33: 0 | G33: 10 | H33: NO | I33: 0 | J33: NO | K33: 0 | L33: NO | M33: 0 | N33: 15
A34: ANT-032-04-07 | B34: Desactivación de bloqueo de vehículo por retención vehicular | C34: 0 | D34: 0 | E34: 5 | F34: 30 | G34: 10 | H34: NO | I34: 0 | J34: NO | K34: 0 | L34: NO | M34: 0 | N34: 45
A35: ANT-040-03-02 | B35: Deshabilitación de un vehículo de una autorización de transporte por cuenta propia | C35: 0 | D35: 0 | E35: 5 | F35: 0 | G35: 10 | H35: NO | I35: 0 | J35: NO | K35: 0 | L35: NO | M35: 0 | N35: 15
A36: ANT-037-04-02 | B36: Deshabilitación de vehículo para operadoras de transporte de carga pesada | C36: 0 | D36: 0 | E36: 5 | F36: 30 | G36: 10 | H36: NO | I36: 0 | J36: NO | K36: 0 | L36: NO | M36: 0 | N36: 45
A37: ANT-038-02-03 | B37: Deshabilitación de vehículo para operadoras de transporte mixto | C37: 0 | D37: 0 | E37: 5 | F37: 30 | G37: 10 | H37: NO | I37: 0 | J37: NO | K37: 0 | L37: NO | M37: 0 | N37: 45
A38: ANT-039-06-05 | B38: Desvinculación de vehículo de operadoras nacionales interprovinciales con permiso originario de prestación de servicios | C38: 0 | D38: 0 | E38: 5 | F38: 30 | G38: 10 | H38: NO | I38: 0 | J38: NO | K38: 0 | L38: NO | M38: 0 | N38: 45
A39: ANT-037-01-05 | B39: Emisión de Certificado de Idoneidad de operadora nacional que requiere realizar operaciones en los países miembros de la CAN. | C39: 0 | D39: 0 | E39: 5 | F39: 30 | G39: 10 | H39: NO | I39: 0 | J39: NO | K39: 0 | L39: NO | M39: 0 | N39: 45
A40: ANT-042-04-03 | B40: Emisión de duplicado de licencia profesional y NO profesional | C40: 0 | D40: 0 | E40: 5 | F40: 0 | G40: 10 | H40: NO | I40: 0 | J40: NO | K40: 0 | L40: NO | M40: 0 | N40: 15
A41: ANT-042-05-04 | B41: Emisión de duplicado, cambio de servicio y/o reemplazos de placas para motos | C41: 0 | D41: 0 | E41: 5 | F41: 30 | G41: 10 | H41: NO | I41: 0 | J41: NO | K41: 0 | L41: NO | M41: 0 | N41: 45
A42: ANT-037-03-01 | B42: Emisión de incremento de cupo para operadoras de transporte de carga pesada | C42: 0 | D42: 0 | E42: 5 | F42: 30 | G42: 10 | H42: NO | I42: 0 | J42: NO | K42: 0 | L42: NO | M42: 0 | N42: 45
A43: ANT-036-01-05 | B43: Emisión de informe favorable previo a la reforma de estatutos para compañías o cooperativas de transporte turístico | C43: 0 | D43: 0 | E43: 5 | F43: 30 | G43: 10 | H43: NO | I43: 0 | J43: NO | K43: 0 | L43: SI | M43: 5 | N43: 50
A44: ANT-039-01-01 | B44: Emisión de informe previo a la constitución jurídica de operadoras de transporte intraprovincial o interprovincial | C44: 0 | D44: 0 | E44: 5 | F44: 30 | G44: 10 | H44: NO | I44: 0 | J44: NO | K44: 0 | L44: NO | M44: 0 | N44: 45
A45: ANT-037-01-01 | B45: Emisión de informe previo a la constitución jurídica para compañías de transporte de carga pesada | C45: 0 | D45: 0 | E45: 5 | F45: 30 | G45: 10 | H45: NO | I45: 0 | J45: NO | K45: 0 | L45: NO | M45: 0 | N45: 45
A46: ANT-037-01-04 | B46: Emisión de informe previo a la reforma de estatutos para operadoras de transporte terrestre de carga pesada | C46: 0 | D46: 0 | E46: 5 | F46: 30 | G46: 10 | H46: NO | I46: 0 | J46: SI | K46: 10 | L46: SI | M46: 5 | N46: 60
A47: ANT-038-01-04 | B47: Emisión de informe previo a la reforma de estatutos para operadoras de transporte terrestre mixto | C47: 0 | D47: 0 | E47: 5 | F47: 30 | G47: 10 | H47: NO | I47: 0 | J47: NO | K47: 0 | L47: SI | M47: 5 | N47: 50
A48: ANT-042-04-08 | B48: Emisión de licencia de conducir por primera vez no profesional tipo: F | C48: 0 | D48: 0 | E48: 5 | F48: 0 | G48: 10 | H48: NO | I48: 0 | J48: NO | K48: 0 | L48: NO | M48: 0 | N48: 15
A49: ANT-036-01-07 | B49: Emisión de Permiso de Circuito Cerrado a operadoras nacionales de turismo que realizan transporte internacional turístico de pasajeros (Ecuador - Perú) | C49: 0 | D49: 0 | E49: 5 | F49: 30 | G49: 10 | H49: NO | I49: 0 | J49: NO | K49: 0 | L49: NO | M49: 0 | N49: 45
A50: ANT-042-03-01 | B50: Emisión de permiso de conducción para menor adulto (Licencia NO Profesional) | C50: 0 | D50: 0 | E50: 5 | F50: 0 | G50: 10 | H50: NO | I50: 0 | J50: NO | K50: 0 | L50: NO | M50: 0 | N50: 15
A51: ANT-037-02-01 | B51: Emisión de Permiso de Prestación de Servicios de operadora extranjera que requiere circular en el territorio nacional (PPS) | C51: 0 | D51: 0 | E51: 5 | F51: 30 | G51: 10 | H51: NO | I51: 0 | J51: NO | K51: 0 | L51: NO | M51: 0 | N51: 45
A52: ANT-040-02-01 | B52: Emisión de permiso especial complementario para transporte terrestre internacional por cuenta propia a empresas extranjeras | C52: 0 | D52: 0 | E52: 5 | F52: 30 | G52: 10 | H52: NO | I52: 0 | J52: NO | K52: 0 | L52: NO | M52: 0 | N52: 45
A53: ANT-042-04-10 | B53: Emisión de permiso internacional para conductores profesionales y no profesionales | C53: 0 | D53: 0 | E53: 5 | F53: 0 | G53: 10 | H53: NO | I53: 0 | J53: NO | K53: 0 | L53: NO | M53: 0 | N53: 15
A54: ANT-039-01-04 | B54: Emisión de reforma de estatutos de transporte intraprovincial o interprovincial por cambio de objeto social de transporte y otros a exclusivo | C54: 0 | D54: 0 | E54: 5 | F54: 30 | G54: 10 | H54: NO | I54: 0 | J54: NO | K54: 0 | L54: NO | M54: 0 | N54: 45
A55: ANT-032-09-05 | B55: Exoneración de multas por calendarización a vehículos del sector público por retraso en la certificación respecto a la asignación presupuestaria | C55: 0 | D55: 0 | E55: 5 | F55: 30 | G55: 10 | H55: NO | I55: 0 | J55: NO | K55: 0 | L55: NO | M55: 0 | N55: 45
A56: ANT-032-09-06 | B56: Exoneración de multas por calendarización a vehículos que previa su entrega a una institución pública se hubieren encontrado incautados por orden judicial | C56: 0 | D56: 0 | E56: 5 | F56: 30 | G56: 10 | H56: NO | I56: 0 | J56: NO | K56: 0 | L56: NO | M56: 0 | N56: 45
A57: ANT-040-03-03 | B57: Habilitación de nuevos vehículos con permiso especial de origen para transporte terrestre internacional por cuenta propia | C57: 0 | D57: 0 | E57: 5 | F57: 30 | G57: 10 | H57: NO | I57: 0 | J57: NO | K57: 0 | L57: NO | M57: 0 | N57: 45
A58: ANT-040-03-01 | B58: Habilitación de un vehículo de una autorización de transporte por cuenta propia | C58: 0 | D58: 0 | E58: 5 | F58: 30 | G58: 10 | H58: NO | I58: 0 | J58: NO | K58: 0 | L58: NO | M58: 0 | N58: 45
A59: ANT-039-06-03 | B59: Habilitación de vehículo a operadoras nacionales interprovinciales con permiso originario de prestación de servicios | C59: 0 | D59: 0 | E59: 5 | F59: 30 | G59: 10 | H59: NO | I59: 0 | J59: NO | K59: 0 | L59: NO | M59: 0 | N59: 45
A60: ANT-037-04-01 | B60: Habilitación de vehículo para operadoras de transporte de carga pesada | C60: 0 | D60: 0 | E60: 5 | F60: 30 | G60: 10 | H60: NO | I60: 0 | J60: NO | K60: 0 | L60: NO | M60: 0 | N60: 45
A61: ANT-034-02-09 | B61: Homologación de dispositivo de medición, control y seguridad "Disco Pare" importados para personas jurídicas | C61: 0 | D61: 0 | E61: 5 | F61: 30 | G61: 10 | H61: NO | I61: 0 | J61: NO | K61: 0 | L61: NO | M61: 0 | N61: 45
A62: ANT-034-02-08 | B62: Homologación de dispositivo de medición, control y seguridad "Disco Pare" importados para personas naturales | C62: 0 | D62: 0 | E62: 5 | F62: 30 | G62: 10 | H62: NO | I62: 0 | J62: NO | K62: 0 | L62: NO | M62: 0 | N62: 45
A63: ANT-034-02-07 | B63: Homologación de dispositivo de medición, control y seguridad "Disco Pare" nacionales para personas jurídicas | C63: 0 | D63: 0 | E63: 5 | F63: 30 | G63: 10 | H63: NO | I63: 0 | J63: NO | K63: 0 | L63: NO | M63: 0 | N63: 45
A64: ANT-034-02-06 | B64: Homologación de dispositivo de medición, control y seguridad "Disco Pare" nacionales para personas naturales | C64: 0 | D64: 0 | E64: 5 | F64: 30 | G64: 10 | H64: NO | I64: 0 | J64: NO | K64: 0 | L64: NO | M64: 0 | N64: 45
A65: ANT-034-02-03 | B65: Homologación de dispositivos y equipos tecnológicos para detección y notificación de infracciones de tránsito nacionales por parte de persona jurídica | C65: 0 | D65: 0 | E65: 5 | F65: 30 | G65: 10 | H65: NO | I65: 0 | J65: NO | K65: 0 | L65: NO | M65: 0 | N65: 45
A66: ANT-034-02-01 | B66: Homologación de dispositivos y equipos tecnológicos para detección y notificación de infracciones de tránsito nacionales por parte de persona natural | C66: 0 | D66: 0 | E66: 5 | F66: 30 | G66: 10 | H66: NO | I66: 0 | J66: NO | K66: 0 | L66: NO | M66: 0 | N66: 45
A67: ANT-042-04-05 | B67: Homologación de licencia de conducir extranjera por la ecuatoriana | C67: 0 | D67: 0 | E67: 5 | F67: 0 | G67: 10 | H67: NO | I67: 0 | J67: NO | K67: 0 | L67: NO | M67: 0 | N67: 15
A68: ANT-034-02-12 | B68: Homologación de simuladores de conducción y equipos psicosensométricos para personas jurídicas nacionales | C68: 0 | D68: 0 | E68: 5 | F68: 30 | G68: 10 | H68: NO | I68: 0 | J68: NO | K68: 0 | L68: NO | M68: 0 | N68: 45
A69: ANT-034-02-05 | B69: Homologación de taxímetro (dispositivos de medición, control y seguridad) | C69: 0 | D69: 0 | E69: 5 | F69: 30 | G69: =IF(ISBLANK(F69),"",IF(F69="Totalmente en línea",0,IF(F69="Inicia en línea",6,10))) -> 10 | H69: NO | I69: =IF(H69="SI",5,0) -> 0 | J69: NO | K69: =IF(J69="SI",10,0) -> 0 | L69: NO | M69: =IF(L69="SI",5,0) -> 0 | N69: =SUM(C69:G69,I69,K69,M69) -> 45
A70: ANT-034-01-05 | B70: Homologación de vehículos importados completos categoría M2 INEN destinados al servicio transporte público (incluye microbús de hasta 5000 kg de peso) | C70: 0 | D70: 0 | E70: 5 | F70: 30 | G70: 10 | H70: NO | I70: 0 | J70: NO | K70: 0 | L70: NO | M70: 0 | N70: 45
A71: ANT-034-02-13 | B71: Homologación del sistema tecnológico de recaudo electrónico de transporte público intracantonal | C71: 0 | D71: 0 | E71: 5 | F71: 30 | G71: 10 | H71: NO | I71: 0 | J71: NO | K71: 0 | L71: NO | M71: 0 | N71: 45
A72: ANT-032-08-04 | B72: Impugnación de multas por infracciones de tránsito | C72: 0 | D72: 0 | E72: 5 | F72: 30 | G72: 10 | H72: NO | I72: 0 | J72: NO | K72: 0 | L72: NO | M72: 0 | N72: 45
A73: ANT-034-01-09 | B73: Inclusión de versiones y/o aplicaciones en un modelo base homologado para subcategoría M3 | C73: 0 | D73: 0 | E73: 5 | F73: 30 | G73: 10 | H73: NO | I73: 0 | J73: NO | K73: 0 | L73: NO | M73: 0 | N73: 45
A74: ANT-032-07-01 | B74: Levantamiento de revocatoria o anulación de licencias de conducir | C74: 0 | D74: 0 | E74: 5 | F74: 30 | G74: 10 | H74: NO | I74: 0 | J74: NO | K74: 0 | L74: NO | M74: 0 | N74: 45
A75: ANT-032-07-02 | B75: Levantamiento de suspensión de licencia de conducir por aprobación de pruebas de renovación o canje de licencia internacional de conducir o infracciones de tránsito que conlleven sanción | C75: 0 | D75: 0 | E75: 5 | F75: 0 | G75: 10 | H75: NO | I75: 0 | J75: NO | K75: 0 | L75: NO | M75: 0 | N75: 15
A76: ANT-037-04-04 | B76: Matriculación de unidades de carga para operadoras de transporte terrestre de carga pesada | C76: 0 | D76: 0 | E76: 5 | F76: 30 | G76: 10 | H76: NO | I76: 0 | J76: NO | K76: 0 | L76: NO | M76: 0 | N76: 45
A77: ANT-032-15-03 | B77: Modificación de datos en resoluciones de operadoras de transporte | C77: 0 | D77: 0 | E77: 5 | F77: 30 | G77: 10 | H77: NO | I77: 0 | J77: NO | K77: 0 | L77: NO | M77: 0 | N77: 45
A78: ANT-032-15-01 | B78: Rectificación de chasis y/o motor por remarcado (por error de tipeo) | C78: 0 | D78: 0 | E78: 10 | F78: 30 | G78: 10 | H78: NO | I78: 0 | J78: NO | K78: 0 | L78: NO | M78: 0 | N78: 50
A79: ANT-032-06-05 | B79: Rectificación de número de identificación del vehículo VIN | C79: 0 | D79: 0 | E79: 10 | F79: 0 | G79: 10 | H79: NO | I79: 0 | J79: NO | K79: 0 | L79: NO | M79: 0 | N79: 20
A80: ANT-032-13-02 | B80: Recuperación automática de puntos a la licencia de conducir por no incurrir en multas por infracciones de tránsito durante un año | C80: 0 | D80: 0 | E80: 10 | F80: 30 | G80: 10 | H80: NO | I80: 0 | J80: NO | K80: 0 | L80: NO | M80: 0 | N80: 50
A81: ANT-042-02-05 | B81: Regularización de aulas en la escuela de capacitación para conductores profesionales y no profesionales (aumento o disminución de aulas) | C81: 0 | D81: 0 | E81: 10 | F81: 30 | G81: 10 | H81: NO | I81: 0 | J81: NO | K81: 0 | L81: NO | M81: 0 | N81: 50
A82: ANT-039-06-04 | B82: Renovación de habilitación de vehículo de operadoras nacionales interprovinciales con permiso originario de prestación de servicios | C82: 0 | D82: 0 | E82: 10 | F82: 30 | G82: 10 | H82: NO | I82: 0 | J82: NO | K82: 0 | L82: NO | M82: 0 | N82: 50
A83: ANT-037-01-03 | B83: Renovación de permiso de operación para operadoras de transporte de carga pesada | C83: 0 | D83: 0 | E83: 10 | F83: 30 | G83: 10 | H83: NO | I83: 0 | J83: NO | K83: 0 | L83: NO | M83: 0 | N83: 50
A84: ANT-039-04-03 | B84: Renovación de vehículo de operadora de transporte intraprovincial o interprovincial (cambio de vehículo) | C84: 0 | D84: 0 | E84: 10 | F84: 30 | G84: 10 | H84: NO | I84: 0 | J84: NO | K84: 0 | L84: NO | M84: 0 | N84: 50
A85: ANT-037-04-03 | B85: Renovación de vehículo para operadoras de transporte de carga pesada | C85: 0 | D85: 0 | E85: 10 | F85: 30 | G85: 10 | H85: NO | I85: 0 | J85: NO | K85: 0 | L85: NO | M85: 0 | N85: 50
A86: ANT-038-02-04 | B86: Renovación de vehículo para operadoras de transporte mixto (cambio de vehículo) | C86: 0 | D86: 0 | E86: 10 | F86: 30 | G86: 10 | H86: NO | I86: 0 | J86: NO | K86: 0 | L86: NO | M86: 0 | N86: 50
A87: ANT-039-01-03 | B87: Renovación del contrato de operación para la prestación del servicio de transporte público intraprovincial o interprovincial de pasajeros | C87: 0 | D87: 0 | E87: 10 | F87: 30 | G87: 10 | H87: NO | I87: 0 | J87: NO | K87: 0 | L87: NO | M87: 0 | N87: 50
A88: ANT-032-01-03 | B88: Revocación de licencia de conducir por incapacidad física y mental | C88: 0 | D88: 0 | E88: 10 | F88: 30 | G88: 10 | H88: NO | I88: 0 | J88: NO | K88: 0 | L88: NO | M88: 0 | N88: 50
A89: ANT-038-03-03 | B89: Solicitud de cambio de socio con vehículo para operadoras de transporte de carga mixta. | C89: 0 | D89: 0 | E89: 10 | F89: 30 | G89: 10 | H89: NO | I89: 0 | J89: NO | K89: 0 | L89: NO | M89: 0 | N89: 50
A90: ANT-039-02-02 | B90: Autorización de escisión de operadoras de transporte público de pasajeros | C90: 3 | D90: 0 | E90: 10 | F90: 30 | G90: 10 | H90: NO | I90: 0 | J90: NO | K90: 0 | L90: NO | M90: 0 | N90: 53
A91: ANT-034-03-04 | B91: Calificación de aplicativos móviles para personas naturales | C91: 3 | D91: 0 | E91: 10 | F91: 30 | G91: 10 | H91: NO | I91: 0 | J91: NO | K91: 0 | L91: NO | M91: 0 | N91: 53
A92: ANT-037-01-02 | B92: Concesión de permiso de operación para operadoras de transporte de carga pesada | C92: 3 | D92: 0 | E92: 10 | F92: 30 | G92: 10 | H92: NO | I92: 0 | J92: NO | K92: 0 | L92: NO | M92: 0 | N92: 53
A93: ANT-039-01-02 | B93: Concesión del contrato de operación para la prestación del servicio de transporte público intraprovincial o interprovincial de pasajeros | C93: 3 | D93: 0 | E93: 10 | F93: 30 | G93: 10 | H93: NO | I93: 0 | J93: NO | K93: 0 | L93: NO | M93: 0 | N93: 53
A94: ANT-032-04-01 | B94: Desactivación de bloqueo de prohibición de enajenar vehículo por juicio, embargo, insolvencia o inventario | C94: 3 | D94: 0 | E94: 10 | F94: 30 | G94: 10 | H94: NO | I94: 0 | J94: NO | K94: 0 | L94: NO | M94: 0 | N94: 53
A95: ANT-039-01-05 | B95: Emisión de reforma de estatutos de transporte intraprovincial o interprovincial por cambio de objeto social referente al tipo de servicio (cambio de modalidad) | C95: 3 | D95: 0 | E95: 10 | F95: 30 | G95: 10 | H95: NO | I95: 0 | J95: NO | K95: 0 | L95: NO | M95: 0 | N95: 53
A96: ANT-032-09-07 | B96: Exoneración de multas por calendarización a vehículo no matriculado por problemas técnicos de fuerza mayor presentados en la entidad competente | C96: 3 | D96: 0 | E96: 10 | F96: 30 | G96: 10 | H96: NO | I96: 0 | J96: NO | K96: 0 | L96: NO | M96: 0 | N96: 53
A97: ANT-038-02-02 | B97: Habilitación de vehículo para operadoras de transporte mixto | C97: 3 | D97: 10 | E97: 10 | F97: 30 | G97: 10 | H97: NO | I97: 0 | J97: NO | K97: 0 | L97: NO | M97: 0 | N97: 63
A98: ANT-042-01-03 | B98: Habilitación técnica y operación de terminal terrestre | C98: 3 | D98: 0 | E98: 10 | F98: 30 | G98: 10 | H98: NO | I98: 0 | J98: NO | K98: 0 | L98: NO | M98: 0 | N98: 53
A99: ANT-034-01-11 | B99: Homologación de vehículos eléctricos para carga, subcategoría N | C99: 3 | D99: 0 | E99: 10 | F99: 30 | G99: 10 | H99: NO | I99: 0 | J99: NO | K99: 0 | L99: NO | M99: 0 | N99: 53
A100: ANT-034-01-03 | B100: Inclusión de versiones y/o aplicaciones en un modelo base homologado de vehículos automotores, subcategoría M1 | C100: 3 | D100: 0 | E100: 10 | F100: 30 | G100: 10 | H100: NO | I100: 0 | J100: NO | K100: 0 | L100: NO | M100: 0 | N100: 53
A101: ANT-034-01-15 | B101: Inclusión de versiones y/o aplicaciones en un modelo base homologado para categoría M2 y M3 INEN de fabricación o ensamblaje nacional | C101: 3 | D101: 0 | E101: 10 | F101: 30 | G101: 10 | H101: NO | I101: 0 | J101: NO | K101: 0 | L101: NO | M101: 0 | N101: 53
A102: ANT-042-02-10 | B102: Rectificación de nómina de alumnos graduados del curso de recuperación de puntos de licencia de conducir | C102: 3 | D102: 0 | E102: 10 | F102: 0 | G102: 10 | H102: NO | I102: 0 | J102: NO | K102: 0 | L102: NO | M102: 0 | N102: 23
A103: ANT-039-03-04 | B103: Reversión de ruta y/o frecuencia de operadoras de transporte intraprovincial o interprovincial | C103: 3 | D103: 0 | E103: 10 | F103: 30 | G103: 10 | H103: NO | I103: 0 | J103: NO | K103: 0 | L103: NO | M103: 0 | N103: 53
A104: ANT-042-01-01 | B104: Aprobación y tipología de ubicación de terminal terrestre | C104: 3 | D104: 0 | E104: 10 | F104: 30 | G104: 10 | H104: NO | I104: 0 | J104: NO | K104: 0 | L104: NO | M104: 0 | N104: 53
A105: ANT-032-04-02 | B105: Desactivación de bloqueo de vehículo por haber cumplido el tiempo establecido de reserva de dominio por menaje de casa | C105: 3 | D105: 10 | E105: 10 | F105: 0 | G105: 10 | H105: NO | I105: 0 | J105: NO | K105: 0 | L105: NO | M105: 0 | N105: 33
A106: ANT-034-02-04 | B106: Homologación de dispositivos y equipos tecnológicos para detección y notificación de infracciones de tránsito importados por parte de persona jurídica | C106: 3 | D106: 0 | E106: 10 | F106: 30 | G106: 10 | H106: NO | I106: 0 | J106: NO | K106: 0 | L106: NO | M106: 0 | N106: 53
A107: ANT-034-02-02 | B107: Homologación de dispositivos y equipos tecnológicos para detección y notificación de infracciones de tránsito importados por parte de persona natural | C107: 3 | D107: 0 | E107: 10 | F107: 30 | G107: 10 | H107: NO | I107: 0 | J107: NO | K107: 0 | L107: NO | M107: 0 | N107: 53
A108: ANT-034-02-10 | B108: Homologación de sistemas de posicionamiento y administración para taxis ejecutivos (GPS) | C108: 3 | D108: 0 | E108: 10 | F108: 30 | G108: 10 | H108: NO | I108: 0 | J108: NO | K108: 0 | L108: NO | M108: 0 | N108: 53
A109: ANT-034-01-13 | B109: Inclusión de versiones y/o aplicaciones de modelo base de aprobado de vehículo incompleto - chasis motorizados para carrozaje nacional en categoría M2 y M3 INEN | C109: 3 | D109: 0 | E109: 10 | F109: 30 | G109: 10 | H109: NO | I109: 0 | J109: NO | K109: 0 | L109: NO | M109: 0 | N109: 53
A110: ANT-034-01-17 | B110: Inclusión de versiones y/o aplicaciones en un modelo base homologado de motocicletas, tricimotos y demás similares nacionales, Subcategoría L. | C110: 3 | D110: 0 | E110: 10 | F110: 30 | G110: 10 | H110: NO | I110: 0 | J110: NO | K110: 0 | L110: NO | M110: 0 | N110: 53
A111: ANT-032-01-04 | B111: Suspensión de licencia de conducir por no aprobación de pruebas de renovación o canje de licencia internacional de conducir o infracciones de tránsito que conlleven sanción | C111: 3 | D111: 0 | E111: 10 | F111: 30 | G111: 10 | H111: NO | I111: 0 | J111: NO | K111: 0 | L111: NO | M111: 0 | N111: 53
A112: ANT-032-03-08 | B112: Activación de bloqueo de vehículo por retención vehicular | C112: 3 | D112: 0 | E112: 10 | F112: 30 | G112: 10 | H112: NO | I112: 0 | J112: NO | K112: 0 | L112: NO | M112: 0 | N112: 53
A113: ANT-042-01-02 | B113: Aprobación de estudios y diseños arquitectónicos previos a la implementación de terminal terrestre | C113: 3 | D113: 0 | E113: 10 | F113: 30 | G113: 10 | H113: NO | I113: 0 | J113: NO | K113: 0 | L113: NO | M113: 0 | N113: 53
A114: ANT-034-03-03 | B114: Calificación de aplicativos móviles para personas jurídicas | C114: 3 | D114: 0 | E114: 10 | F114: 30 | G114: 10 | H114: NO | I114: 0 | J114: NO | K114: 0 | L114: NO | M114: 0 | N114: 53
A115: ANT-040-02-03 | B115: Emisión de permiso especial de origen para transporte internacional por cuenta propia | C115: 3 | D115: 0 | E115: 10 | F115: 30 | G115: 10 | H115: NO | I115: 0 | J115: NO | K115: 0 | L115: NO | M115: 0 | N115: 53
A116: ANT-032-09-04 | B116: Exoneración de multas por calendarización a vehículos del sector público que hubieren sido entregados por parte de otras instituciones, por haber asumido los derechos y obligaciones por mandato de la ley | C116: 3 | D116: 0 | E116: 10 | F116: 30 | G116: 10 | H116: NO | I116: 0 | J116: NO | K116: 0 | L116: NO | M116: 0 | N116: 53
A117: ANT-042-02-07 | B117: Habilitación de funcionamiento de la escuela de capacitación como centro de recuperación de puntos (convenio como centro de recuperación de puntos) | C117: 3 | D117: 0 | E117: 10 | F117: 30 | G117: 10 | H117: SI | I117: 5 | J117: NO | K117: 0 | L117: NO | M117: 0 | N117: 58
A118: ANT-032-02-02 | B118: Inactivación de vehículo por robo | C118: 3 | D118: 0 | E118: 10 | F118: 0 | G118: 10 | H118: NO | I118: 0 | J118: NO | K118: 0 | L118: NO | M118: 0 | N118: 23
A119: ANT-039-04-04 | B119: Racionalización de corredores viales a operadoras de transporte intraprovincial o interprovincial | C119: 3 | D119: 0 | E119: 10 | F119: 30 | G119: 10 | H119: NO | I119: 0 | J119: NO | K119: 0 | L119: NO | M119: 0 | N119: 53
A120: ANT-042-02-09 | B120: Rectificación de nóminas de alumnos matriculados de escuelas de conducción profesionales (por alumno) | C120: 3 | D120: 0 | E120: 10 | F120: 0 | G120: 10 | H120: NO | I120: 0 | J120: NO | K120: 0 | L120: NO | M120: 0 | N120: 23
A121: ANT-038-01-02 | B121: Renovación de permiso de operación para operadoras de transporte mixto | C121: 3 | D121: 0 | E121: 10 | F121: 30 | G121: 10 | H121: SI | I121: 5 | J121: SI | K121: 10 | L121: NO | M121: 0 | N121: 68
A122: ANT-034-01-06 | B122: Homologación de vehículos importados completos categoría M2 INEN destinados al servicio transporte comercial (incluye microbús de hasta 5000 kg de peso) | C122: 3 | D122: 0 | E122: 10 | F122: 30 | G122: 10 | H122: NO | I122: 0 | J122: NO | K122: 0 | L122: NO | M122: 0 | N122: 53
A123: ANT-032-03-04 | B123: Activación de bloqueo de reserva de dominio de vehículo por cupo discapacitado | C123: 3 | D123: 0 | E123: 10 | F123: 30 | G123: 10 | H123: NO | I123: 0 | J123: NO | K123: 0 | L123: NO | M123: 0 | N123: 53
A124: ANT-032-03-07 | B124: Activación de bloqueo de vehículo por gemelo o clonado | C124: 3 | D124: 0 | E124: 10 | F124: 30 | G124: 10 | H124: NO | I124: 0 | J124: NO | K124: 0 | L124: NO | M124: 0 | N124: 53
A125: ANT-032-03-03 | B125: Activación de bloqueo por reserva de dominio de vehículo de diplomático | C125: 3 | D125: 0 | E125: 10 | F125: 30 | G125: 10 | H125: NO | I125: 0 | J125: NO | K125: 0 | L125: NO | M125: 0 | N125: 53
A126: ANT-032-12-05 | B126: Atención de denuncia respecto a posibles actos de corrupción | C126: 3 | D126: 0 | E126: 10 | F126: 30 | G126: 10 | H126: NO | I126: 0 | J126: NO | K126: 0 | L126: NO | M126: 0 | N126: 53
A127: ANT-034-02-11 | B127: Homologación de simuladores de conducción y equipos psicosensométricos para personas jurídicas importados | C127: 3 | D127: 0 | E127: 10 | F127: 30 | G127: 10 | H127: NO | I127: 0 | J127: NO | K127: 0 | L127: NO | M127: 0 | N127: 53
A128: ANT-034-01-08 | B128: Inclusión de versiones y/o aplicaciones en un modelo base homologado para subcategoría M2 | C128: 3 | D128: 0 | E128: 10 | F128: 30 | G128: 10 | H128: NO | I128: 0 | J128: NO | K128: 0 | L128: NO | M128: 0 | N128: 53
A129: ANT-032-08-03 | B129: Ingreso de sentencia condenatoria (delitos de tránsito) | C129: 3 | D129: 0 | E129: 10 | F129: 30 | G129: 10 | H129: NO | I129: 0 | J129: NO | K129: 0 | L129: NO | M129: 0 | N129: 53
A130: ANT-039-03-02 | B130: Modificación de frecuencia (cambio de horario) de operadora de transporte intraprovincial o interprovincial | C130: 3 | D130: 0 | E130: 10 | F130: 30 | G130: 10 | H130: NO | I130: 0 | J130: NO | K130: 0 | L130: NO | M130: 0 | N130: 53
A131: ANT-032-15-02 | B131: Rectificación de resoluciones de operadoras de transporte | C131: 3 | D131: 10 | E131: 10 | F131: 30 | G131: 10 | H131: NO | I131: 0 | J131: NO | K131: 0 | L131: NO | M131: 0 | N131: 63
A132: ANT-042-02-04 | B132: Regularización de vehículos en escuelas de capacitación para conductores profesionales y no profesionales (aumento o disminución de vehículos) | C132: 3 | D132: 0 | E132: 10 | F132: 30 | G132: 10 | H132: NO | I132: 0 | J132: NO | K132: 0 | L132: NO | M132: 0 | N132: 53
A133: ANT-032-14-03 | B133: Atención al recurso extraordinario de revisión | C133: 3 | D133: 0 | E133: 10 | F133: 30 | G133: =IF(ISBLANK(F133),"",IF(F133="Totalmente en línea",0,IF(F133="Inicia en línea",6,10))) -> 10 | H133: NO | I133: =IF(H133="SI",5,0) -> 0 | J133: NO | K133: =IF(J133="SI",10,0) -> 0 | L133: NO | M133: =IF(L133="SI",5,0) -> 0 | N133: =SUM(C133:G133,I133,K133,M133) -> 53
A134: ANT-032-12-03 | B134: Atención de felicitaciones respecto a los servicios que presta la ANT | C134: 3 | D134: 0 | E134: 10 | F134: 0 | G134: 10 | H134: NO | I134: 0 | J134: NO | K134: 0 | L134: NO | M134: 0 | N134: 23
A135: ANT-042-02-06 | B135: Autorización de cambio de domicilio de la escuela de capacitación para conductores profesionales y no profesionales | C135: 3 | D135: 0 | E135: 10 | F135: 30 | G135: 10 | H135: NO | I135: 0 | J135: NO | K135: 0 | L135: NO | M135: 0 | N135: 53
A136: ANT-036-01-03 | B136: Renovación del permiso de operación para operadoras de transporte turístico | C136: 3 | D136: 0 | E136: 10 | F136: 30 | G136: 10 | H136: NO | I136: 0 | J136: SI | K136: 10 | L136: NO | M136: 0 | N136: 63
A137: ANT-041-01-01 | B137: Autorización para funcionamiento como compañía de renta de vehículos | C137: 6 | D137: 0 | E137: 10 | F137: 30 | G137: 10 | H137: NO | I137: 0 | J137: NO | K137: 0 | L137: NO | M137: 0 | N137: 56
A138: ANT-034-01-10 | B138: Homologación de vehículos eléctricos, subcategoría M1 | C138: 6 | D138: 0 | E138: 10 | F138: 30 | G138: 10 | H138: NO | I138: 0 | J138: NO | K138: 0 | L138: NO | M138: 0 | N138: 56
A139: ANT-032-03-01 | B139: Activación de bloqueo por prohibición de enajenar vehículo (por juicio, embargo, insolvencia o inventario) | C139: 6 | D139: 0 | E139: 10 | F139: 30 | G139: 10 | H139: NO | I139: 0 | J139: NO | K139: 0 | L139: NO | M139: 0 | N139: 56
A140: ANT-041-02-02 | B140: Deshabilitación de vehículo en compañía de renta de vehículos | C140: 6 | D140: 0 | E140: 10 | F140: 30 | G140: 10 | H140: NO | I140: 0 | J140: NO | K140: 0 | L140: NO | M140: 0 | N140: 56
A141: ANT-032-09-03 | B141: Exoneración de multas por calendarización a vehículo que se encontraba dentro de un proceso judicial | C141: 6 | D141: 0 | E141: 10 | F141: 30 | G141: 10 | H141: NO | I141: 0 | J141: NO | K141: 0 | L141: NO | M141: 0 | N141: 56
A142: ANT-038-01-01 | B142: Concesión de permiso de operación para operadoras de transporte mixto | C142: 6 | D142: 0 | E142: 10 | F142: 30 | G142: 10 | H142: NO | I142: 0 | J142: SI | K142: 10 | L142: NO | M142: 0 | N142: 66
A143: ANT-032-11-05 | B143: Devolución de pagos por sentencias absolutorias de infracciones | C143: 6 | D143: 0 | E143: 10 | F143: 30 | G143: 10 | H143: NO | I143: 0 | J143: NO | K143: 0 | L143: NO | M143: 0 | N143: 56
A144: ANT-032-03-02 | B144: Activación de bloqueo por reserva de dominio de vehículo por menaje de casa | C144: 6 | D144: 0 | E144: 10 | F144: 30 | G144: 10 | H144: NO | I144: 0 | J144: NO | K144: 0 | L144: NO | M144: 0 | N144: 56
A145: ANT-032-12-04 | B145: Atención de denuncia respecto al Transporte Terrestre, Tránsito y Seguridad Vial | C145: 6 | D145: 0 | E145: 10 | F145: 0 | G145: 10 | H145: NO | I145: 0 | J145: NO | K145: 0 | L145: NO | M145: 0 | N145: 26
A146: ANT-042-02-02 | B146: Autorización para funcionamiento por primera vez de escuelas de capacitación o sucursales para conductores profesionales y no profesionales | C146: 6 | D146: 0 | E146: 10 | F146: 30 | G146: 10 | H146: NO | I146: 0 | J146: NO | K146: 0 | L146: NO | M146: 0 | N146: 56
A147: ANT-042-02-08 | B147: Rectificación de nóminas de alumnos graduados de escuelas de conducción profesionales (por alumno) | C147: 6 | D147: 0 | E147: 10 | F147: 0 | G147: 10 | H147: NO | I147: 0 | J147: NO | K147: 0 | L147: NO | M147: 0 | N147: 26
A148: ANT-032-02-01 | B148: Inactivación definitiva voluntaria de vehículo por chatarrización | C148: 6 | D148: 0 | E148: 10 | F148: 0 | G148: 10 | H148: NO | I148: 0 | J148: NO | K148: 0 | L148: NO | M148: 0 | N148: 26
A149: ANT-034-01-04 | B149: Inclusión de versiones y/o aplicaciones en un modelo base homologado de vehículos automotores para carga subcategoría N | C149: 6 | D149: 0 | E149: 10 | F149: 30 | G149: 10 | H149: NO | I149: 0 | J149: NO | K149: 0 | L149: NO | M149: 0 | N149: 56
A150: ANT-042-02-01 | B150: Autorización para la creación de escuela de capacitación o sucursales para conductores profesionales y no profesionales | C150: 6 | D150: 0 | E150: 10 | F150: 30 | G150: 10 | H150: NO | I150: 0 | J150: NO | K150: 0 | L150: NO | M150: 0 | N150: 56
A151: ANT-039-03-03 | B151: Modificación y/o alargue de ruta de operadora de transporte intraprovincial o interprovincial | C151: 6 | D151: 0 | E151: 10 | F151: 30 | G151: 10 | H151: NO | I151: 0 | J151: NO | K151: 0 | L151: NO | M151: 0 | N151: 56
A152: ANT-038-02-01 | B152: Emisión de incremento de cupo para operadoras de transporte mixto | C152: 6 | D152: 0 | E152: 10 | F152: 30 | G152: 10 | H152: NO | I152: 0 | J152: NO | K152: 0 | L152: NO | M152: 0 | N152: 56
A153: ANT-039-03-01 | B153: Emisión de incremento de frecuencia de operadoras de transporte intraprovincial o interprovincial | C153: 6 | D153: 0 | E153: 20 | F153: 30 | G153: 10 | H153: NO | I153: 0 | J153: NO | K153: 0 | L153: NO | M153: 0 | N153: 66
A154: ANT-036-01-02 | B154: Emisión de permiso de operación a personas jurídicas en la modalidad de transporte turístico | C154: 6 | D154: 0 | E154: 20 | F154: 30 | G154: 10 | H154: SI | I154: 5 | J154: NO | K154: 0 | L154: NO | M154: 0 | N154: 71
A155: ANT-032-08-11 | B155: Actualización de pago de multas por infracciones de tránsito | C155: 6 | D155: 0 | E155: 20 | F155: 0 | G155: 10 | H155: NO | I155: 0 | J155: SI | K155: 10 | L155: NO | M155: 0 | N155: 46
A156: ANT-039-01-06 | B156: Concesión de nueva ruta y frecuencia de operadora de transporte intraprovincial o interprovincial | C156: 6 | D156: 0 | E156: 20 | F156: 30 | G156: 10 | H156: NO | I156: 0 | J156: SI | K156: 10 | L156: SI | M156: 5 | N156: 81
A157: ANT-032-11-04 | B157: Devolución de pagos indebido para personas jurídicas | C157: 6 | D157: 0 | E157: 20 | F157: 30 | G157: 10 | H157: NO | I157: 0 | J157: NO | K157: 0 | L157: NO | M157: 0 | N157: 66
A158: ANT-032-14-01 | B158: Atención al recurso de apelación | C158: 6 | D158: 0 | E158: 20 | F158: 30 | G158: 10 | H158: NO | I158: 0 | J158: NO | K158: 0 | L158: NO | M158: 0 | N158: 66
A159: ANT-032-01-02 | B159: Anulación de licencia de conducir por acto viciado o sin requisitos | C159: 6 | D159: 0 | E159: 20 | F159: 30 | G159: 10 | H159: NO | I159: 0 | J159: NO | K159: 0 | L159: NO | M159: 0 | N159: 66
A160: ANT-034-01-07 | B160: Homologación de vehículos importados completos categoría M3 INEN destinados al servicio transporte público y comercial (incluye microbús desde 5000 kg de peso) | C160: 6 | D160: 0 | E160: 20 | F160: 30 | G160: 10 | H160: NO | I160: 0 | J160: NO | K160: 0 | L160: NO | M160: 0 | N160: 66
A161: ANT-036-01-06 | B161: Emisión de Documento Único de Transporte Turístico (DUTT) a operadoras nacionales de turismo que realizan transporte internacional turístico de pasajeros (Ecuador - Colombia) | C161: 6 | D161: 0 | E161: 20 | F161: 30 | G161: 10 | H161: NO | I161: 0 | J161: NO | K161: 0 | L161: NO | M161: 0 | N161: 66
A162: ANT-034-03-07 | B162: Emisión de licencia de importación de un lote de tricimotos | C162: 6 | D162: 0 | E162: 20 | F162: 30 | G162: 10 | H162: NO | I162: 0 | J162: NO | K162: 0 | L162: NO | M162: 0 | N162: 66
A163: ANT-039-01-07 | B163: Emisión de dimensionamiento de flota vehicular para operadoras de transporte intraprovincial o interprovincial | C163: 6 | D163: 0 | E163: 20 | F163: 30 | G163: 10 | H163: NO | I163: 0 | J163: SI | K163: 10 | L163: NO | M163: 0 | N163: 76
A164: ANT-032-13-04 | B164: Registro de puntos recuperados que no se cargaron a tiempo por pago tardío de infracciones | C164: 6 | D164: 0 | E164: 20 | F164: 30 | G164: 10 | H164: NO | I164: 0 | J164: NO | K164: 0 | L164: NO | M164: 0 | N164: 66
A165: ANT-032-08-09 | B165: Anulación de multas por infracciones de tránsito por prescripción | C165: 6 | D165: 0 | E165: 20 | F165: 30 | G165: 10 | H165: NO | I165: 0 | J165: NO | K165: 0 | L165: NO | M165: 0 | N165: 66
A166: ANT-036-02-02 | B166: Deshabilitación de vehículo para operadoras de transporte turístico | C166: 6 | D166: 0 | E166: 20 | F166: 30 | G166: 10 | H166: NO | I166: 0 | J166: NO | K166: 0 | L166: NO | M166: 0 | N166: 66
A167: ANT-032-09-02 | B167: Exoneración de multas por calendarización a vehículo que ha sido objeto de robo | C167: 6 | D167: 0 | E167: 20 | F167: 30 | G167: 10 | H167: NO | I167: 0 | J167: NO | K167: 0 | L167: NO | M167: 0 | N167: 66
A168: ANT-037-04-06 | B168: Desvinculación de flota vehicular y unidades de carga de operadoras nacionales que realizan transporte terrestre internacional | C168: 6 | D168: 0 | E168: 20 | F168: 30 | G168: 10 | H168: NO | I168: 0 | J168: NO | K168: 0 | L168: NO | M168: 0 | N168: 66
A169: ANT-032-13-01 | B169: Autorización para matrícula e inicio de clases de centros de recuperación de puntos para conductores profesionales y no profesionales | C169: 6 | D169: 0 | E169: 20 | F169: 30 | G169: 10 | H169: NO | I169: 0 | J169: NO | K169: 0 | L169: NO | M169: 0 | N169: 66
A170: ANT-032-06-09 | B170: Actualización del beneficiario o arrendatario de un fideicomiso o leasing | C170: 6 | D170: 0 | E170: 20 | F170: 0 | G170: 10 | H170: NO | I170: 0 | J170: NO | K170: 0 | L170: NO | M170: 0 | N170: 36
A171: ANT-036-01-04 | B171: Emisión de incremento de cupo para operadoras de transporte turístico | C171: 6 | D171: 0 | E171: 20 | F171: 30 | G171: 10 | H171: SI | I171: 5 | J171: NO | K171: 0 | L171: NO | M171: 0 | N171: 71
A172: ANT-032-08-08 | B172: Actualización de registro de pagos de citaciones de tránsito que no dieron de baja en el sistema "pagos en línea" | C172: 6 | D172: 10 | E172: 20 | F172: 30 | G172: 10 | H172: NO | I172: 0 | J172: NO | K172: 0 | L172: NO | M172: 0 | N172: 76
A173: ANT-041-02-01 | B173: Habilitación de vehículo en compañía de renta de vehículos | C173: 6 | D173: 0 | E173: 20 | F173: 30 | G173: 10 | H173: NO | I173: 0 | J173: NO | K173: 0 | L173: NO | M173: 0 | N173: 66
A174: ANT-037-05-01 | B174: Registro de flota de operadora extranjera que requiere circular en el territorio nacional | C174: 6 | D174: 0 | E174: 20 | F174: 30 | G174: 10 | H174: NO | I174: 0 | J174: NO | K174: 0 | L174: NO | M174: 0 | N174: 66
A175: ANT-038-01-03 | B175: Emisión de informe previo a la constitución jurídica para operadoras de transporte mixto | C175: 6 | D175: 0 | E175: 20 | F175: 30 | G175: 10 | H175: NO | I175: 0 | J175: NO | K175: 0 | L175: NO | M175: 0 | N175: 66
A176: ANT-034-01-14 | B176: Homologación de vehículos de subtecategoría M2 y M3 INEN de fabricación o ensamblaje nacional | C176: 6 | D176: 0 | E176: 20 | F176: 30 | G176: 10 | H176: NO | I176: 0 | J176: NO | K176: 0 | L176: NO | M176: 0 | N176: 66
A177: ANT-036-02-03 | B177: Renovación de vehículo para operadoras de transporte turístico (Cambio de vehículo) | C177: 6 | D177: 0 | E177: 20 | F177: 30 | G177: 10 | H177: NO | I177: 0 | J177: NO | K177: 0 | L177: NO | M177: 0 | N177: 66
A178: ANT-036-01-01 | B178: Emisión de informe previo a la constitución jurídica para compañías o cooperativas de transporte turístico | C178: 6 | D178: 0 | E178: 20 | F178: 30 | G178: 10 | H178: NO | I178: 0 | J178: NO | K178: 0 | L178: NO | M178: 0 | N178: 66
A179: ANT-036-02-01 | B179: Habilitación de vehículo para operadoras de transporte turístico | C179: 6 | D179: 0 | E179: 20 | F179: 30 | G179: 10 | H179: NO | I179: 0 | J179: NO | K179: 0 | L179: NO | M179: 0 | N179: 66
A180: ANT-039-05-02 | B180: Autorización de cambio de socio con habilitación de vehículo de operadoras de transporte intraprovincial o interprovincial | C180: 10 | D180: 0 | E180: 20 | F180: 30 | G180: 10 | H180: NO | I180: 0 | J180: NO | K180: 0 | L180: NO | M180: 0 | N180: 70
A181: ANT-032-05-03 | B181: Actualización o registro de información de licencia de conducir | C181: 10 | D181: 0 | E181: 20 | F181: 0 | G181: 10 | H181: NO | I181: 0 | J181: NO | K181: 0 | L181: NO | M181: 0 | N181: 40
A182: ANT-039-05-01 | B182: Autorización de cambio de socio y vehículo de operadora de transporte intraprovincial o interprovincial | C182: 10 | D182: 0 | E182: 20 | F182: 30 | G182: 10 | H182: NO | I182: 0 | J182: NO | K182: 0 | L182: NO | M182: 0 | N182: 70
A183: ANT-039-05-03 | B183: Autorización de cambio de socio sin vehículo de operadoras de transporte intraprovincial o interprovincial | C183: 10 | D183: 0 | E183: 20 | F183: 30 | G183: 10 | H183: NO | I183: 0 | J183: NO | K183: 0 | L183: NO | M183: 0 | N183: 70
A184: ANT-033-01-06 | B184: Emisión de certificado de conformidad de vehículo para cambio de servicio | C184: 10 | D184: 0 | E184: 20 | F184: 30 | G184: 10 | H184: NO | I184: 0 | J184: NO | K184: 0 | L184: NO | M184: 0 | N184: 70
A185: ANT-032-09-01 | B185: Exoneración de multas por calendarización a vehículo que se encuentra en taller mecánico y no se presenta a revisión técnica vehicular | C185: 10 | D185: 0 | E185: 20 | F185: 30 | G185: 10 | H185: NO | I185: 0 | J185: NO | K185: 0 | L185: NO | M185: 0 | N185: 70
A186: ANT-032-12-06 | B186: Atención de consultas jurídicas sobre los servicios que presta la ANT | C186: 10 | D186: 4 | E186: 20 | F186: 30 | G186: 10 | H186: NO | I186: 0 | J186: NO | K186: 0 | L186: NO | M186: 0 | N186: 74
A187: ANT-034-01-02 | B187: Homologación de vehículos automotores para carga, subcategoría N | C187: 10 | D187: 0 | E187: 20 | F187: 30 | G187: 10 | H187: NO | I187: 0 | J187: NO | K187: 0 | L187: NO | M187: 0 | N187: 70
A188: ANT-042-03-02 | B188: Emisión de permiso de aprendizaje de manejo para alumnos de escuelas de capacitación de conductores profesionales y no profesionales | C188: 10 | D188: 0 | E188: 20 | F188: 0 | G188: 10 | H188: SI | I188: 5 | J188: NO | K188: 0 | L188: NO | M188: 0 | N188: 45
A189: ANT-034-01-16 | B189: Homologación de motocicletas, tricimotos y demás similares nacionales, subcategoría L | C189: 10 | D189: 0 | E189: 20 | F189: 30 | G189: 10 | H189: NO | I189: 0 | J189: NO | K189: 0 | L189: NO | M189: 0 | N189: 70
A190: ANT-034-01-01 | B190: Homologación de vehículos automotores, subcategoría M1 | C190: 10 | D190: 0 | E190: 20 | F190: 30 | G190: 10 | H190: NO | I190: 0 | J190: NO | K190: 0 | L190: NO | M190: 0 | N190: 70
A191: ANT-037-04-05 | B191: Habilitación de vehículo y registro de unidad de carga de operadoras nacionales que cuentan con certificado de idoneidad | C191: 10 | D191: 0 | E191: 20 | F191: 30 | G191: 10 | H191: NO | I191: 0 | J191: NO | K191: 0 | L191: NO | M191: 0 | N191: 70
A192: ANT-042-04-04 | B192: Autorización de canje de licencia de conducir extranjera por ecuatoriana | C192: 10 | D192: 0 | E192: 20 | F192: 0 | G192: 10 | H192: NO | I192: 0 | J192: NO | K192: 0 | L192: NO | M192: 0 | N192: 40
A193: ANT-032-12-01 | B193: Atención de queja respecto a los servicios que presta la ANT | C193: 10 | D193: 10 | E193: 20 | F193: 0 | G193: 10 | H193: NO | I193: 0 | J193: NO | K193: 0 | L193: NO | M193: 0 | N193: 50
A194: ANT-032-13-03 | B194: Recuperación de puntos a la licencia de conducir por aprobación de curso en un centro de recuperación de puntos | C194: 10 | D194: 10 | E194: 20 | F194: 30 | G194: 10 | H194: NO | I194: 0 | J194: NO | K194: 0 | L194: NO | M194: 0 | N194: 80
A195: ANT-032-05-02 | B195: Actualización o registro de información de persona jurídica | C195: 10 | D195: 0 | E195: 20 | F195: 0 | G195: 10 | H195: NO | I195: 0 | J195: NO | K195: 0 | L195: NO | M195: 0 | N195: 40
A196: ANT-033-01-02 | B196: Emisión de certificado de historial de infracciones del vehículo persona natural y jurídica | C196: 10 | D196: 0 | E196: 20 | F196: 0 | G196: 10 | H196: NO | I196: 0 | J196: NO | K196: 0 | L196: NO | M196: 0 | N196: 40
A197: ANT-039-04-01 | B197: Habilitación de vehículo de operadora de transporte intraprovincial o interprovincial | C197: 10 | D197: 0 | E197: 20 | F197: 30 | G197: =IF(ISBLANK(F197),"",IF(F197="Totalmente en línea",0,IF(F197="Inicia en línea",6,10))) -> 10 | H197: NO | I197: =IF(H197="SI",5,0) -> 0 | J197: NO | K197: =IF(J197="SI",10,0) -> 0 | L197: NO | M197: =IF(L197="SI",5,0) -> 0 | N197: =SUM(C197:G197,I197,K197,M197) -> 70
A198: ANT-032-11-03 | B198: Devolución de pagos indebidos para personas naturales | C198: 10 | D198: 0 | E198: 20 | F198: 30 | G198: 10 | H198: NO | I198: 0 | J198: NO | K198: 0 | L198: NO | M198: 0 | N198: 70
A199: ANT-039-04-02 | B199: Deshabilitación de vehículo de operadora de transporte intraprovincial o interprovincial | C199: 10 | D199: 0 | E199: 20 | F199: 30 | G199: 10 | H199: NO | I199: 0 | J199: NO | K199: 0 | L199: NO | M199: 0 | N199: 70
A200: ANT-042-02-03 | B200: Autorización de período de matrículas e inicio de clases y/o prórrogas de la escuela de capacitación para conductores profesionales y no profesionales | C200: 10 | D200: 0 | E200: 20 | F200: 30 | G200: 10 | H200: NO | I200: 0 | J200: NO | K200: 0 | L200: NO | M200: 0 | N200: 70
... 25 more rows
